Organisation name,Organisation Code,Directorate,Service Category label,Service Category code,Supplier name,Payment date,Transaction number, Net Amount ,Purpose of spend,Procurement category name
Southend-on-Sea Borough Council,http://www.opendatacommunities.org/id/unitary-authority/southend,ED Finance & Resources,Environmental and Regulatory Services,7535,(G) Amalgamated Lifts Limited,04/01/2021,12068528, 590.00 ,Repairs And Maintenance Lifts,"Repairs, alterations and maintenance of buildings"
Southend-on-Sea Borough Council,http://www.opendatacommunities.org/id/unitary-authority/southend,ED Adults & Communities,Adult Social Care,1090,(G) R & A Mechanical Services Ltd,04/01/2021,12068528, 735.00 ,Repairs And Maintenance Contracts,"Repairs, alterations and maintenance of buildings"
Southend-on-Sea Borough Council,http://www.opendatacommunities.org/id/unitary-authority/southend,ED Children & Public Health,Children And Education Services,3250,Affinity Fostering Services Ltd,04/01/2021,12068528," 3,396.00 ",Private Contractors,Other Agencies
Southend-on-Sea Borough Council,http://www.opendatacommunities.org/id/unitary-authority/southend,ED Adults & Communities,Adult Social Care,1105,Angel Solutions Community Care,04/01/2021,12068528, 500.85 ,Private Contractors,Other Agencies
Southend-on-Sea Borough Council,http://www.opendatacommunities.org/id/unitary-authority/southend,ED Adults & Communities,Adult Social Care,1105,Angel Solutions Community Care,04/01/2021,12068528, 532.65 ,Private Contractors,Other Agencies
Southend-on-Sea Borough Council,http://www.opendatacommunities.org/id/unitary-authority/southend,ED Growth & Housing,Planning Services,5638,C3 International Limited,04/01/2021,12068528," 2,977.98 ",Grants,Grants And Subscriptions
Southend-on-Sea Borough Council,http://www.opendatacommunities.org/id/unitary-authority/southend,ED Growth & Housing,Planning Services,5638,Camelia Hotel,04/01/2021,12068528," 2,500.00 ",Grants,Grants And Subscriptions
Southend-on-Sea Borough Council,http://www.opendatacommunities.org/id/unitary-authority/southend,ED Children & Public Health,Children And Education Services,3492,Cast Communities And Sanctuary Seekers Together,04/01/2021,12068528," 1,423.43 ",3rd Party Payments - Board & Lodgings,Other Agencies
Southend-on-Sea Borough Council,http://www.opendatacommunities.org/id/unitary-authority/southend,ED Growth & Housing,Planning Services,5638,Emither Ltd,04/01/2021,12068528," 2,573.05 ",Grants,Grants And Subscriptions
Southend-on-Sea Borough Council,http://www.opendatacommunities.org/id/unitary-authority/southend,ED Adults & Communities,Cultural And Related Services,4010,Fraser Muggeridge Studio,04/01/2021,12068528," 2,200.00 ",Professional Fees,Services
Southend-on-Sea Borough Council,http://www.opendatacommunities.org/id/unitary-authority/southend,ED Neighbourhoods & Environment,Highways And Transport Services,5005,Hays Specialist Recruitment Ltd,04/01/2021,12068528,"-7,182.00 ",Consultancy Services,Services
Southend-on-Sea Borough Council,http://www.opendatacommunities.org/id/unitary-authority/southend,ED Neighbourhoods & Environment,Highways And Transport Services,5005,Hays Specialist Recruitment Ltd,04/01/2021,12068528," 7,182.00 ",Consultancy Services,Services
Southend-on-Sea Borough Council,http://www.opendatacommunities.org/id/unitary-authority/southend,ED Transformation,Central Services,7130,Hays Specialist Recruitment Ltd,04/01/2021,12068528," 33,495.00 ",Consultancy Services,Services
Southend-on-Sea Borough Council,http://www.opendatacommunities.org/id/unitary-authority/southend,ED Adults & Communities,Cultural And Related Services,4120,Hitachi Capital (Uk) Plc Re Fisk Fire Protection Ltd,04/01/2021,12068528, 530.00 ,Repairs And Maintenance Contracts,"Repairs, alterations and maintenance of buildings"
Southend-on-Sea Borough Council,http://www.opendatacommunities.org/id/unitary-authority/southend,ED Children & Public Health,Children And Education Services,3390,Hitachi Capital (Uk) Plc Re Fisk Fire Protection Ltd,04/01/2021,12068528," 4,200.00 ",Repairs And Maintenance Contracts,"Repairs, alterations and maintenance of buildings"
Southend-on-Sea Borough Council,http://www.opendatacommunities.org/id/unitary-authority/southend,ED Adults & Communities,Adult Social Care,1391,J M Carehomes Limited,04/01/2021,12068528," 3,435.04 ",Private Contractors,Other Agencies
Southend-on-Sea Borough Council,http://www.opendatacommunities.org/id/unitary-authority/southend,ED Adults & Communities,Adult Social Care,1644,J M Carehomes Limited,04/01/2021,12068528," 3,183.32 ",Private Contractors,Other Agencies
Southend-on-Sea Borough Council,http://www.opendatacommunities.org/id/unitary-authority/southend,ED Adults & Communities,Adult Social Care,1675,J M Carehomes Limited,04/01/2021,12068528," 1,736.84 ",Private Contractors,Other Agencies
Southend-on-Sea Borough Council,http://www.opendatacommunities.org/id/unitary-authority/southend,ED Adults & Communities,Adult Social Care,1391,J M Carehomes Limited,04/01/2021,12068528," 2,878.12 ",Private Contractors,Other Agencies
Southend-on-Sea Borough Council,http://www.opendatacommunities.org/id/unitary-authority/southend,ED Adults & Communities,Adult Social Care,1294,J M Carehomes Limited,04/01/2021,12068528," 3,308.20 ",Private Contractors,Other Agencies
Southend-on-Sea Borough Council,http://www.opendatacommunities.org/id/unitary-authority/southend,ED Adults & Communities,Adult Social Care,1391,J M Carehomes Limited,04/01/2021,12068528," 3,319.40 ",Private Contractors,Other Agencies
Southend-on-Sea Borough Council,http://www.opendatacommunities.org/id/unitary-authority/southend,ED Adults & Communities,Adult Social Care,1294,J M Carehomes Limited,04/01/2021,12068528," 3,496.64 ",Private Contractors,Other Agencies
Southend-on-Sea Borough Council,http://www.opendatacommunities.org/id/unitary-authority/southend,ED Adults & Communities,Adult Social Care,1391,J M Carehomes Limited,04/01/2021,12068528," 1,734.60 ",Private Contractors,Other Agencies
Southend-on-Sea Borough Council,http://www.opendatacommunities.org/id/unitary-authority/southend,ED Adults & Communities,Adult Social Care,1294,J M Carehomes Limited,04/01/2021,12068528," 3,188.92 ",Private Contractors,Other Agencies
Southend-on-Sea Borough Council,http://www.opendatacommunities.org/id/unitary-authority/southend,ED Adults & Communities,Adult Social Care,1391,J M Carehomes Limited,04/01/2021,12068528," 3,294.48 ",Private Contractors,Other Agencies
Southend-on-Sea Borough Council,http://www.opendatacommunities.org/id/unitary-authority/southend,ED Adults & Communities,Adult Social Care,1294,J M Carehomes Limited,04/01/2021,12068528," 3,584.00 ",Private Contractors,Other Agencies
Southend-on-Sea Borough Council,http://www.opendatacommunities.org/id/unitary-authority/southend,ED Adults & Communities,Adult Social Care,1294,J M Carehomes Limited,04/01/2021,12068528," 4,962.72 ",Private Contractors,Other Agencies
Southend-on-Sea Borough Council,http://www.opendatacommunities.org/id/unitary-authority/southend,ED Growth & Housing,Planning Services,5638,Kalibrate Limited,04/01/2021,12068528," 1,056.00 ",Grants,Grants And Subscriptions
Southend-on-Sea Borough Council,http://www.opendatacommunities.org/id/unitary-authority/southend,ED Adults & Communities,Adult Social Care,1674,Kolours Healthcare Limited,04/01/2021,12068528," 1,001.70 ",Private Contractors,Other Agencies
Southend-on-Sea Borough Council,http://www.opendatacommunities.org/id/unitary-authority/southend,ED Adults & Communities,Cultural And Related Services,4055,Laurence Harding Photography,04/01/2021,12068528, 660.00 ,Professional Fees,Services
Southend-on-Sea Borough Council,http://www.opendatacommunities.org/id/unitary-authority/southend,ED Adults & Communities,Cultural And Related Services,4055,Laurence Harding Photography,04/01/2021,12068528, 616.00 ,Professional Fees,Services
Southend-on-Sea Borough Council,http://www.opendatacommunities.org/id/unitary-authority/southend,ED Adults & Communities,Cultural And Related Services,4055,Mr A G Shrimpton T/A New Waverley Studios,04/01/2021,12068528," 1,650.00 ",Professional Fees,Services
Southend-on-Sea Borough Council,http://www.opendatacommunities.org/id/unitary-authority/southend,ED Growth & Housing,Planning Services,5637,Nrgbase Ltd,04/01/2021,12068528," 5,907.00 ",Grants,Grants And Subscriptions
Southend-on-Sea Borough Council,http://www.opendatacommunities.org/id/unitary-authority/southend,ED Growth & Housing,Planning Services,5637,Poppy Productions Limited,04/01/2021,12068528," 2,483.30 ",Grants,Grants And Subscriptions
Southend-on-Sea Borough Council,http://www.opendatacommunities.org/id/unitary-authority/southend,ED Adults & Communities,Adult Social Care,1266,REDACTED PERSONAL DATA,04/01/2021,12068528," 1,287.36 ",Private Contractors,Other Agencies
Southend-on-Sea Borough Council,http://www.opendatacommunities.org/id/unitary-authority/southend,ED Adults & Communities,Adult Social Care,1365,Richmond Fellowship,04/01/2021,12068528," 2,695.42 ",Additional Allowances (non employee),Services
Southend-on-Sea Borough Council,http://www.opendatacommunities.org/id/unitary-authority/southend,ED Adults & Communities,Adult Social Care,1105,Seven Day Care (Uk) Ltd T/A Surecare Southend,04/01/2021,12068528," 9,393.54 ",Private Contractors,Other Agencies
Southend-on-Sea Borough Council,http://www.opendatacommunities.org/id/unitary-authority/southend,ED Adults & Communities,Adult Social Care,1205,Seven Day Care (Uk) Ltd T/A Surecare Southend,04/01/2021,12068528, 529.21 ,Private Contractors,Other Agencies
Southend-on-Sea Borough Council,http://www.opendatacommunities.org/id/unitary-authority/southend,ED Adults & Communities,Adult Social Care,1115,Seven Day Care (Uk) Ltd T/A Surecare Southend,04/01/2021,12068528," 1,058.95 ",Contractor - Programmed Works,Other Agencies
Southend-on-Sea Borough Council,http://www.opendatacommunities.org/id/unitary-authority/southend,ED Adults & Communities,Adult Social Care,1294,Victor Chima Egbulefu T/A Lake Livings,04/01/2021,12068528," 12,000.00 ",Private Contractors,Other Agencies
Southend-on-Sea Borough Council,http://www.opendatacommunities.org/id/unitary-authority/southend,ED Adults & Communities,Adult Social Care,9002,(G) Arj Construction Ltd,05/01/2021,12068543," 2,195,277.48 ",Main Contractor,Main Contractor
Southend-on-Sea Borough Council,http://www.opendatacommunities.org/id/unitary-authority/southend,ED Adults & Communities,Adult Social Care,9010,(G) Close Brothers Rail Ltd,05/01/2021,12068543," 15,400.00 ",Main Contractor,Main Contractor
Southend-on-Sea Borough Council,http://www.opendatacommunities.org/id/unitary-authority/southend,ED Neighbourhoods & Environment,Central Services,9008,(G) Nusteel Structures Limited,05/01/2021,12068543," 107,494.52 ",Contractors General,Contractors General
Southend-on-Sea Borough Council,http://www.opendatacommunities.org/id/unitary-authority/southend,ED Adults & Communities,Adult Social Care,1085,(G) R & A Mechanical Services Ltd,05/01/2021,12068543, 954.00 ,Tools And Equipment Purchase,Equipment Furniture And Materials
Southend-on-Sea Borough Council,http://www.opendatacommunities.org/id/unitary-authority/southend,ED Adults & Communities,Cultural And Related Services,4150,(G) R & A Mechanical Services Ltd,05/01/2021,12068543, 550.00 ,Repairs And Maintenance Contracts,"Repairs, alterations and maintenance of buildings"
Southend-on-Sea Borough Council,http://www.opendatacommunities.org/id/unitary-authority/southend,ED Adults & Communities,Adult Social Care,9010,(N) Ccr Property Services Ltd,05/01/2021,12068543, 900.00 ,Main Contractor,Main Contractor
Southend-on-Sea Borough Council,http://www.opendatacommunities.org/id/unitary-authority/southend,ED Neighbourhoods & Environment,Environmental And Regulatory Services,4591,Acres Way Ltd,05/01/2021,12068543," 2,320.00 ",Private Contractors,Other Agencies
Southend-on-Sea Borough Council,http://www.opendatacommunities.org/id/unitary-authority/southend,ED Children & Public Health,Children And Education Services,3250,Affinity Fostering Services Ltd,05/01/2021,12068543," 5,580.00 ",Private Contractors,Other Agencies
Southend-on-Sea Borough Council,http://www.opendatacommunities.org/id/unitary-authority/southend,ED Children & Public Health,Children And Education Services,3250,Affinity Fostering Services Ltd,05/01/2021,12068543," 3,396.00 ",Private Contractors,Other Agencies
Southend-on-Sea Borough Council,http://www.opendatacommunities.org/id/unitary-authority/southend,ED Children & Public Health,Children And Education Services,3250,Affinity Fostering Services Ltd,05/01/2021,12068543," 3,396.00 ",Private Contractors,Other Agencies
Southend-on-Sea Borough Council,http://www.opendatacommunities.org/id/unitary-authority/southend,ED Children & Public Health,Children And Education Services,3201,Ambulance Service College,05/01/2021,12068543," 1,345.00 ",Commissioned Training,Services
Southend-on-Sea Borough Council,http://www.opendatacommunities.org/id/unitary-authority/southend,ED Adults & Communities,Adult Social Care,1105,Angel Solutions Community Care,05/01/2021,12068543, 516.80 ,Private Contractors,Other Agencies
Southend-on-Sea Borough Council,http://www.opendatacommunities.org/id/unitary-authority/southend,ED Adults & Communities,Adult Social Care,1105,Angel Solutions Community Care,05/01/2021,12068543, 500.85 ,Private Contractors,Other Agencies
Southend-on-Sea Borough Council,http://www.opendatacommunities.org/id/unitary-authority/southend,ED Adults & Communities,Adult Social Care,1105,Ashley Community Care Services Ltd T/A Ashley Care,05/01/2021,12068543," 14,480.95 ",Private Contractors,Other Agencies
Southend-on-Sea Borough Council,http://www.opendatacommunities.org/id/unitary-authority/southend,ED Adults & Communities,Adult Social Care,1108,Ashley Community Care Services Ltd T/A Ashley Care,05/01/2021,12068543, 660.15 ,Private Contractors,Other Agencies
Southend-on-Sea Borough Council,http://www.opendatacommunities.org/id/unitary-authority/southend,ED Adults & Communities,Adult Social Care,1205,Ashley Community Care Services Ltd T/A Ashley Care,05/01/2021,12068543," 2,389.66 ",Private Contractors,Other Agencies
Southend-on-Sea Borough Council,http://www.opendatacommunities.org/id/unitary-authority/southend,ED Adults & Communities,Adult Social Care,1115,Ashley Community Care Services Ltd T/A Ashley Care,05/01/2021,12068543, 824.73 ,Contractor - Programmed Works,Other Agencies
Southend-on-Sea Borough Council,http://www.opendatacommunities.org/id/unitary-authority/southend,ED Adults & Communities,Adult Social Care,1165,Ashley Community Care Services Ltd T/A Ashley Care,05/01/2021,12068543," 2,980.75 ",COVID-19 Response,Other Agencies
Southend-on-Sea Borough Council,http://www.opendatacommunities.org/id/unitary-authority/southend,ED Adults & Communities,Adult Social Care,1170,Ashley Community Care Services Ltd T/A Ashley Care,05/01/2021,12068543," 5,645.00 ",Social Care Services,Services
Southend-on-Sea Borough Council,http://www.opendatacommunities.org/id/unitary-authority/southend,ED Children & Public Health,Children And Education Services,3250,Aspirations Fostering Limited,05/01/2021,12068543," 1,078.56 ",Private Contractors,Other Agencies
Southend-on-Sea Borough Council,http://www.opendatacommunities.org/id/unitary-authority/southend,ED Children & Public Health,Children And Education Services,3250,Aspirations Fostering Limited,05/01/2021,12068543," 2,187.92 ",Private Contractors,Other Agencies
Southend-on-Sea Borough Council,http://www.opendatacommunities.org/id/unitary-authority/southend,ED Children & Public Health,Children And Education Services,3250,Aspirations Fostering Limited,05/01/2021,12068543," 3,243.52 ",Private Contractors,Other Agencies
Southend-on-Sea Borough Council,http://www.opendatacommunities.org/id/unitary-authority/southend,ED Children & Public Health,Children And Education Services,3250,Aspirations Fostering Limited,05/01/2021,12068543," 3,345.44 ",Private Contractors,Other Agencies
Southend-on-Sea Borough Council,http://www.opendatacommunities.org/id/unitary-authority/southend,ED Children & Public Health,Children And Education Services,3250,Aspirations Fostering Limited,05/01/2021,12068543," 3,355.52 ",Private Contractors,Other Agencies
Southend-on-Sea Borough Council,http://www.opendatacommunities.org/id/unitary-authority/southend,ED Children & Public Health,Children And Education Services,3290,Avance Ltd,05/01/2021,12068543, 750.00 ,Accomodation Payment,Services
Southend-on-Sea Borough Council,http://www.opendatacommunities.org/id/unitary-authority/southend,ED Children & Public Health,Children And Education Services,3307,Avance Ltd,05/01/2021,12068543," 1,500.00 ",Accomodation Payment,Services
Southend-on-Sea Borough Council,http://www.opendatacommunities.org/id/unitary-authority/southend,ED Children & Public Health,Children And Education Services,3250,Brighter Futures Foster Care Ltd,05/01/2021,12068543," 2,735.88 ",Private Contractors,Other Agencies
Southend-on-Sea Borough Council,http://www.opendatacommunities.org/id/unitary-authority/southend,ED Children & Public Health,Children And Education Services,3250,Brighter Futures Foster Care Ltd,05/01/2021,12068543," 4,000.08 ",Private Contractors,Other Agencies
Southend-on-Sea Borough Council,http://www.opendatacommunities.org/id/unitary-authority/southend,ED Children & Public Health,Children And Education Services,3250,Cambian Childcare Limited,05/01/2021,12068543," 24,135.67 ",Private Contractors,Other Agencies
Southend-on-Sea Borough Council,http://www.opendatacommunities.org/id/unitary-authority/southend,ED Children & Public Health,Children And Education Services,3290,Canary House Care Limited,05/01/2021,12068543, 950.00 ,Accomodation Payment,Services
Southend-on-Sea Borough Council,http://www.opendatacommunities.org/id/unitary-authority/southend,ED Children & Public Health,Children And Education Services,3290,Canary House Care Limited,05/01/2021,12068543," 1,650.00 ",Accomodation Payment,Services
Southend-on-Sea Borough Council,http://www.opendatacommunities.org/id/unitary-authority/southend,ED Children & Public Health,Children And Education Services,3307,Canary House Care Limited,05/01/2021,12068543, 950.00 ,Accomodation Payment,Services
Southend-on-Sea Borough Council,http://www.opendatacommunities.org/id/unitary-authority/southend,ED Children & Public Health,Children And Education Services,3308,Canary House Care Limited,05/01/2021,12068543," 1,350.00 ",Accomodation Payment,Services
Southend-on-Sea Borough Council,http://www.opendatacommunities.org/id/unitary-authority/southend,ED Adults & Communities,Adult Social Care,1105,Concept Care Solutions Ltd T/A Dolphin Care,05/01/2021,12068543," 2,600.89 ",Private Contractors,Other Agencies
Southend-on-Sea Borough Council,http://www.opendatacommunities.org/id/unitary-authority/southend,ED Children & Public Health,Children And Education Services,3250,Dmr Services Limited,05/01/2021,12068543," 15,000.00 ",Private Contractors,Other Agencies
Southend-on-Sea Borough Council,http://www.opendatacommunities.org/id/unitary-authority/southend,ED Neighbourhoods & Environment,Environmental And Regulatory Services,4660,Enovert South Limited,05/01/2021,12068543," 32,846.60 ",Waste Management,Cleaning And Domestic Supplies
Southend-on-Sea Borough Council,http://www.opendatacommunities.org/id/unitary-authority/southend,ED Adults & Communities,Adult Social Care,1195,Focus Care Agency Limited,05/01/2021,12068543," 5,656.00 ",Private Contractors,Other Agencies
Southend-on-Sea Borough Council,http://www.opendatacommunities.org/id/unitary-authority/southend,ED Children & Public Health,Children And Education Services,3250,Foster Care Associates Ltd,05/01/2021,12068543," 3,611.72 ",Private Contractors,Other Agencies
Southend-on-Sea Borough Council,http://www.opendatacommunities.org/id/unitary-authority/southend,ED Children & Public Health,Children And Education Services,3250,Foster Care Associates Ltd,05/01/2021,12068543," 3,976.00 ",Private Contractors,Other Agencies
Southend-on-Sea Borough Council,http://www.opendatacommunities.org/id/unitary-authority/southend,ED Children & Public Health,Children And Education Services,3250,Foster Care Associates Ltd,05/01/2021,12068543," 5,572.00 ",Private Contractors,Other Agencies
Southend-on-Sea Borough Council,http://www.opendatacommunities.org/id/unitary-authority/southend,ED Children & Public Health,Children And Education Services,3250,Foster Care Associates Ltd,05/01/2021,12068543," 3,976.00 ",Private Contractors,Other Agencies
Southend-on-Sea Borough Council,http://www.opendatacommunities.org/id/unitary-authority/southend,ED Children & Public Health,Children And Education Services,3290,Griha Care And Support Limited,05/01/2021,12068543," 2,860.00 ",Accomodation Payment,Services
Southend-on-Sea Borough Council,http://www.opendatacommunities.org/id/unitary-authority/southend,ED Children & Public Health,Children And Education Services,3307,Griha Care And Support Limited,05/01/2021,12068543," 2,915.00 ",Accomodation Payment,Services
Southend-on-Sea Borough Council,http://www.opendatacommunities.org/id/unitary-authority/southend,ED Neighbourhoods & Environment,Highways And Transport Services,5005,Hays Specialist Recruitment Ltd,05/01/2021,12068543," 9,975.00 ",Consultancy Services,Services
Southend-on-Sea Borough Council,http://www.opendatacommunities.org/id/unitary-authority/southend,ED Children & Public Health,Children And Education Services,3250,Integrated Services Programme,05/01/2021,12068543," 4,055.52 ",Private Contractors,Other Agencies
Southend-on-Sea Borough Council,http://www.opendatacommunities.org/id/unitary-authority/southend,ED Children & Public Health,Children And Education Services,3250,Integrated Services Programme,05/01/2021,12068543," 3,144.12 ",Private Contractors,Other Agencies
Southend-on-Sea Borough Council,http://www.opendatacommunities.org/id/unitary-authority/southend,ED Adults & Communities,Adult Social Care,1105,Kolours Healthcare Limited,05/01/2021,12068543, 779.10 ,Private Contractors,Other Agencies
Southend-on-Sea Borough Council,http://www.opendatacommunities.org/id/unitary-authority/southend,ED Adults & Communities,Adult Social Care,1674,Kolours Healthcare Limited,05/01/2021,12068543," 1,001.70 ",Private Contractors,Other Agencies
Southend-on-Sea Borough Council,http://www.opendatacommunities.org/id/unitary-authority/southend,ED Adults & Communities,Adult Social Care,1105,Kolours Healthcare Limited,05/01/2021,12068543, 500.85 ,Private Contractors,Other Agencies
Southend-on-Sea Borough Council,http://www.opendatacommunities.org/id/unitary-authority/southend,ED Children & Public Health,Children And Education Services,3290,Leighview House Ltd,05/01/2021,12068543, 552.16 ,Additional Allowances (non employee),Services
Southend-on-Sea Borough Council,http://www.opendatacommunities.org/id/unitary-authority/southend,ED Children & Public Health,Children And Education Services,3290,Leighview House Ltd,05/01/2021,12068543," 5,719.84 ",Accomodation Payment,Services
Southend-on-Sea Borough Council,http://www.opendatacommunities.org/id/unitary-authority/southend,ED Children & Public Health,Children And Education Services,3290,Leighview House Ltd,05/01/2021,12068543, 999.99 ,Accomodation Payment,Services
Southend-on-Sea Borough Council,http://www.opendatacommunities.org/id/unitary-authority/southend,ED Children & Public Health,Children And Education Services,3307,Leighview House Ltd,05/01/2021,12068543, 750.00 ,Accomodation Payment,Services
Southend-on-Sea Borough Council,http://www.opendatacommunities.org/id/unitary-authority/southend,ED Children & Public Health,Children And Education Services,3290,Leighview House Ltd T/A Leighview House Romford Ltd,05/01/2021,12068543," 1,199.94 ",Accomodation Payment,Services
Southend-on-Sea Borough Council,http://www.opendatacommunities.org/id/unitary-authority/southend,ED Adults & Communities,Housing Services,6011,Mrs D D Grattan T/A Elizabeth Guest House,05/01/2021,12068543," 1,680.00 ",COVID-19 Response,Other Agencies
Southend-on-Sea Borough Council,http://www.opendatacommunities.org/id/unitary-authority/southend,ED Children & Public Health,Children And Education Services,3250,Quality Foster Care Limited,05/01/2021,12068543," 2,934.52 ",Private Contractors,Other Agencies
Southend-on-Sea Borough Council,http://www.opendatacommunities.org/id/unitary-authority/southend,ED Children & Public Health,Children And Education Services,3265,REDACTED PERSONAL DATA,05/01/2021,12068543, 592.34 ,Foster Carer Allowance,Other Agencies
Southend-on-Sea Borough Council,http://www.opendatacommunities.org/id/unitary-authority/southend,ED Finance & Resources,Central Services,2118,REDACTED PERSONAL DATA,05/01/2021,12068543, 500.00 ,Grants,Grants And Subscriptions
Southend-on-Sea Borough Council,http://www.opendatacommunities.org/id/unitary-authority/southend,ED Children & Public Health,Children And Education Services,3265,REDACTED PERSONAL DATA,05/01/2021,12068543, 930.86 ,Foster Carer Allowance,Other Agencies
Southend-on-Sea Borough Council,http://www.opendatacommunities.org/id/unitary-authority/southend,ED Children & Public Health,Children And Education Services,3265,REDACTED PERSONAL DATA,05/01/2021,12068543, 572.95 ,Foster Carer Allowance,Other Agencies
Southend-on-Sea Borough Council,http://www.opendatacommunities.org/id/unitary-authority/southend,ED Children & Public Health,Children And Education Services,3265,REDACTED PERSONAL DATA,05/01/2021,12068543, 536.55 ,Foster Carer Fee Paid,Other Agencies
Southend-on-Sea Borough Council,http://www.opendatacommunities.org/id/unitary-authority/southend,ED Children & Public Health,Children And Education Services,3265,REDACTED PERSONAL DATA,05/01/2021,12068543, 536.55 ,Foster Carer Fee Paid,Other Agencies
Southend-on-Sea Borough Council,http://www.opendatacommunities.org/id/unitary-authority/southend,ED Children & Public Health,Children And Education Services,3265,REDACTED PERSONAL DATA,05/01/2021,12068543, 684.39 ,Specialist foster carer allowance,Other Agencies
Southend-on-Sea Borough Council,http://www.opendatacommunities.org/id/unitary-authority/southend,ED Children & Public Health,Children And Education Services,3265,REDACTED PERSONAL DATA,05/01/2021,12068543, 536.55 ,Foster Carer Specialist,Other Agencies
Southend-on-Sea Borough Council,http://www.opendatacommunities.org/id/unitary-authority/southend,ED Children & Public Health,Children And Education Services,3265,REDACTED PERSONAL DATA,05/01/2021,12068543, 536.55 ,Foster Carer Specialist,Other Agencies
Southend-on-Sea Borough Council,http://www.opendatacommunities.org/id/unitary-authority/southend,ED Children & Public Health,Children And Education Services,3265,REDACTED PERSONAL DATA,05/01/2021,12068543, 720.09 ,Foster Carer Allowance,Other Agencies
Southend-on-Sea Borough Council,http://www.opendatacommunities.org/id/unitary-authority/southend,ED Children & Public Health,Children And Education Services,3265,REDACTED PERSONAL DATA,05/01/2021,12068543, 763.14 ,Foster Carer Allowance,Other Agencies
Southend-on-Sea Borough Council,http://www.opendatacommunities.org/id/unitary-authority/southend,ED Children & Public Health,Children And Education Services,3265,REDACTED PERSONAL DATA,05/01/2021,12068543, 683.71 ,Foster Carer Allowance,Other Agencies
Southend-on-Sea Borough Council,http://www.opendatacommunities.org/id/unitary-authority/southend,ED Finance & Resources,Central Services,2118,REDACTED PERSONAL DATA,05/01/2021,12068543, 500.00 ,Grants,Grants And Subscriptions
Southend-on-Sea Borough Council,http://www.opendatacommunities.org/id/unitary-authority/southend,ED Children & Public Health,Children And Education Services,3265,REDACTED PERSONAL DATA,05/01/2021,12068543, 536.55 ,Foster Carer Specialist,Other Agencies
Southend-on-Sea Borough Council,http://www.opendatacommunities.org/id/unitary-authority/southend,ED Children & Public Health,Children And Education Services,3265,REDACTED PERSONAL DATA,05/01/2021,12068543, 536.55 ,Foster Carer Fee Paid,Other Agencies
Southend-on-Sea Borough Council,http://www.opendatacommunities.org/id/unitary-authority/southend,ED Children & Public Health,Children And Education Services,3265,REDACTED PERSONAL DATA,05/01/2021,12068543, 697.91 ,Foster Carer Allowance,Other Agencies
Southend-on-Sea Borough Council,http://www.opendatacommunities.org/id/unitary-authority/southend,ED Children & Public Health,Children And Education Services,3265,REDACTED PERSONAL DATA,05/01/2021,12068543, 914.55 ,Foster Carer Allowance,Other Agencies
Southend-on-Sea Borough Council,http://www.opendatacommunities.org/id/unitary-authority/southend,ED Children & Public Health,Children And Education Services,3265,REDACTED PERSONAL DATA,05/01/2021,12068543, 665.00 ,Foster Carer Allowance,Other Agencies
Southend-on-Sea Borough Council,http://www.opendatacommunities.org/id/unitary-authority/southend,ED Children & Public Health,Children And Education Services,3265,REDACTED PERSONAL DATA,05/01/2021,12068543, 536.55 ,Foster Carer Fee Paid,Other Agencies
Southend-on-Sea Borough Council,http://www.opendatacommunities.org/id/unitary-authority/southend,ED Children & Public Health,Children And Education Services,3265,REDACTED PERSONAL DATA,05/01/2021,12068543, 536.55 ,Foster Carer Fee Paid,Other Agencies
Southend-on-Sea Borough Council,http://www.opendatacommunities.org/id/unitary-authority/southend,ED Children & Public Health,Children And Education Services,3265,REDACTED PERSONAL DATA,05/01/2021,12068543, 676.20 ,Foster Carer Allowance,Other Agencies
Southend-on-Sea Borough Council,http://www.opendatacommunities.org/id/unitary-authority/southend,ED Children & Public Health,Children And Education Services,3265,REDACTED PERSONAL DATA,05/01/2021,12068543, 854.77 ,Specialist foster carer allowance,Other Agencies
Southend-on-Sea Borough Council,http://www.opendatacommunities.org/id/unitary-authority/southend,ED Children & Public Health,Children And Education Services,3265,REDACTED PERSONAL DATA,05/01/2021,12068543, 536.55 ,Foster Carer Specialist,Other Agencies
Southend-on-Sea Borough Council,http://www.opendatacommunities.org/id/unitary-authority/southend,ED Children & Public Health,Children And Education Services,3265,REDACTED PERSONAL DATA,05/01/2021,12068543, 536.55 ,Foster Carer Fee Paid,Other Agencies
Southend-on-Sea Borough Council,http://www.opendatacommunities.org/id/unitary-authority/southend,ED Children & Public Health,Children And Education Services,3265,REDACTED PERSONAL DATA,05/01/2021,12068543, 552.37 ,Foster Carer Allowance,Other Agencies
Southend-on-Sea Borough Council,http://www.opendatacommunities.org/id/unitary-authority/southend,ED Adults & Communities,Housing Services,6010,Rent Connect,05/01/2021,12068543," 1,705.00 ",Accommodation Costs,Expenses
Southend-on-Sea Borough Council,http://www.opendatacommunities.org/id/unitary-authority/southend,ED Adults & Communities,Housing Services,6130,Rentguarantor Ltd,05/01/2021,12068543, 807.50 ,Loans,Services
Southend-on-Sea Borough Council,http://www.opendatacommunities.org/id/unitary-authority/southend,ED Children & Public Health,Children And Education Services,3290,Safe Haven Services Ltd,05/01/2021,12068543," 1,985.00 ",Accomodation Payment,Services
Southend-on-Sea Borough Council,http://www.opendatacommunities.org/id/unitary-authority/southend,ED Children & Public Health,Children And Education Services,3307,Safe Haven Services Ltd,05/01/2021,12068543, 730.00 ,Accomodation Payment,Services
Southend-on-Sea Borough Council,http://www.opendatacommunities.org/id/unitary-authority/southend,ED Children & Public Health,Children And Education Services,3308,Safe Haven Services Ltd,05/01/2021,12068543, 515.00 ,Accomodation Payment,Services
Southend-on-Sea Borough Council,http://www.opendatacommunities.org/id/unitary-authority/southend,ED Finance & Resources,Housing Services,6165,Sale Appliances,05/01/2021,12068543, 633.17 ,Materials,Equipment Furniture And Materials
Southend-on-Sea Borough Council,http://www.opendatacommunities.org/id/unitary-authority/southend,ED Neighbourhoods & Environment,Highways and Transport Services,9003,Severn Lamb Transportation Ltd,05/01/2021,12068543," 104,156.24 ",Main Contractor,Main Contractor
Southend-on-Sea Borough Council,http://www.opendatacommunities.org/id/unitary-authority/southend,ED Adults & Communities,Central Services,2220,Southend Mencap,05/01/2021,12068543," 10,000.00 ",Grants,Grants And Subscriptions
Southend-on-Sea Borough Council,http://www.opendatacommunities.org/id/unitary-authority/southend,ED Children & Public Health,Children And Education Services,3092,The National Teaching Advisory Service,05/01/2021,12068543," 2,925.00 ",Services On Behalf Of Pupils,Services
Southend-on-Sea Borough Council,http://www.opendatacommunities.org/id/unitary-authority/southend,ED Children & Public Health,Children And Education Services,3092,The National Teaching Advisory Service,05/01/2021,12068543," 3,900.00 ",Services On Behalf Of Pupils,Services
Southend-on-Sea Borough Council,http://www.opendatacommunities.org/id/unitary-authority/southend,ED Children & Public Health,Children And Education Services,3092,The National Teaching Advisory Service,05/01/2021,12068543," 2,633.50 ",Services On Behalf Of Pupils,Services
Southend-on-Sea Borough Council,http://www.opendatacommunities.org/id/unitary-authority/southend,ED Children & Public Health,Children And Education Services,3092,The National Teaching Advisory Service,05/01/2021,12068543," 1,852.50 ",Services On Behalf Of Pupils,Services
Southend-on-Sea Borough Council,http://www.opendatacommunities.org/id/unitary-authority/southend,ED Adults & Communities,Adult Social Care,1105,Trends Healthcare Ltd,05/01/2021,12068543," 1,001.70 ",Private Contractors,Other Agencies
Southend-on-Sea Borough Council,http://www.opendatacommunities.org/id/unitary-authority/southend,ED Adults & Communities,Adult Social Care,1105,Trends Healthcare Ltd,05/01/2021,12068543," 1,097.10 ",Private Contractors,Other Agencies
Southend-on-Sea Borough Council,http://www.opendatacommunities.org/id/unitary-authority/southend,ED Adults & Communities,Adult Social Care,1105,Trends Healthcare Ltd,05/01/2021,12068543, 556.50 ,Private Contractors,Other Agencies
Southend-on-Sea Borough Council,http://www.opendatacommunities.org/id/unitary-authority/southend,ED Adults & Communities,Adult Social Care,1205,Trends Healthcare Ltd,05/01/2021,12068543, 890.40 ,Private Contractors,Other Agencies
Southend-on-Sea Borough Council,http://www.opendatacommunities.org/id/unitary-authority/southend,ED Children & Public Health,Children And Education Services,3290,Victor Chima Egbulefu T/A Lake Livings,05/01/2021,12068543, 813.00 ,Accomodation Payment,Services
Southend-on-Sea Borough Council,http://www.opendatacommunities.org/id/unitary-authority/southend,ED Children & Public Health,Children And Education Services,3250,Young People At Heart Limited,05/01/2021,12068543," 4,032.00 ",Private Contractors,Other Agencies
Southend-on-Sea Borough Council,http://www.opendatacommunities.org/id/unitary-authority/southend,ED Finance & Resources,Central Services,9004,(G) Blake Contractors Limited,06/01/2021,12068568," 46,918.00 ",Main Contractor,Main Contractor
Southend-on-Sea Borough Council,http://www.opendatacommunities.org/id/unitary-authority/southend,ED Neighbourhoods & Environment,Central Services,9008,(G) Marlborough Surfacing Limited,06/01/2021,12068568," 41,441.60 ",Main Contractor,Main Contractor
Southend-on-Sea Borough Council,http://www.opendatacommunities.org/id/unitary-authority/southend,ED Neighbourhoods & Environment,Central Services,9008,(G) Marlborough Surfacing Limited,06/01/2021,12068568," 233,021.36 ",Main Contractor,Main Contractor
Southend-on-Sea Borough Council,http://www.opendatacommunities.org/id/unitary-authority/southend,ED Neighbourhoods & Environment,Highways And Transport Services,5170,(G) Marlborough Surfacing Limited,06/01/2021,12068568," 10,677.16 ",Private Contractors,Other Agencies
Southend-on-Sea Borough Council,http://www.opendatacommunities.org/id/unitary-authority/southend,ED Adults & Communities,Adult Social Care,9010,(G) Mde Power Ltd,06/01/2021,12068568," 3,550.00 ",Main Contractor,Main Contractor
Southend-on-Sea Borough Council,http://www.opendatacommunities.org/id/unitary-authority/southend,ED Adults & Communities,Adult Social Care,9010,(G) Mde Power Ltd,06/01/2021,12068568," 32,240.00 ",Main Contractor,Main Contractor
Southend-on-Sea Borough Council,http://www.opendatacommunities.org/id/unitary-authority/southend,ED Adults & Communities,Cultural And Related Services,4115,(G) Rw & Jr Burroughs,06/01/2021,12068568, 900.00 ,Tools And Equipment Repair And Maintenance,Equipment Furniture And Materials
Southend-on-Sea Borough Council,http://www.opendatacommunities.org/id/unitary-authority/southend,ED Adults & Communities,Adult Social Care,9010,(N) Cia Fire And Security Ltd,06/01/2021,12068568," 2,405.60 ",S106 Community/Leisure expend,S106 Community/Leisure expend
Southend-on-Sea Borough Council,http://www.opendatacommunities.org/id/unitary-authority/southend,ED Adults & Communities,Adult Social Care,9010,(N) Cia Fire And Security Ltd,06/01/2021,12068568," 2,405.60 ",S106 Community/Leisure expend,S106 Community/Leisure expend
Southend-on-Sea Borough Council,http://www.opendatacommunities.org/id/unitary-authority/southend,ED Adults & Communities,Adult Social Care,9010,(N) Specialist Structural Waterproofing Ltd,06/01/2021,12068568," 37,600.00 ",Main Contractor,Main Contractor
Southend-on-Sea Borough Council,http://www.opendatacommunities.org/id/unitary-authority/southend,ED Adults & Communities,Adult Social Care,1070,A H Care Home Ltd,06/01/2021,12068568," 11,682.44 ",Private Contractors,Other Agencies
Southend-on-Sea Borough Council,http://www.opendatacommunities.org/id/unitary-authority/southend,ED Adults & Communities,Adult Social Care,1079,A H Care Home Ltd,06/01/2021,12068568," 2,107.56 ",Private Contractors,Other Agencies
Southend-on-Sea Borough Council,http://www.opendatacommunities.org/id/unitary-authority/southend,ED Adults & Communities,Adult Social Care,1083,A H Care Home Ltd,06/01/2021,12068568," 2,107.56 ",Private Contractors,Other Agencies
Southend-on-Sea Borough Council,http://www.opendatacommunities.org/id/unitary-authority/southend,ED Adults & Communities,Adult Social Care,1165,A H Care Home Ltd,06/01/2021,12068568, 526.89 ,COVID-19 Response,Other Agencies
Southend-on-Sea Borough Council,http://www.opendatacommunities.org/id/unitary-authority/southend,ED Adults & Communities,Adult Social Care,1070,Aarandale Lodge Ltd,06/01/2021,12068568," 16,634.67 ",Private Contractors,Other Agencies
Southend-on-Sea Borough Council,http://www.opendatacommunities.org/id/unitary-authority/southend,ED Adults & Communities,Adult Social Care,1079,Aarandale Lodge Ltd,06/01/2021,12068568," 2,107.56 ",Private Contractors,Other Agencies
Southend-on-Sea Borough Council,http://www.opendatacommunities.org/id/unitary-authority/southend,ED Adults & Communities,Adult Social Care,1176,Aarandale Lodge Ltd,06/01/2021,12068568," 2,107.56 ",Private Contractors,Other Agencies
Southend-on-Sea Borough Council,http://www.opendatacommunities.org/id/unitary-authority/southend,ED Adults & Communities,Adult Social Care,1165,Aarandale Lodge Ltd,06/01/2021,12068568," 2,107.56 ",COVID-19 Response,Other Agencies
Southend-on-Sea Borough Council,http://www.opendatacommunities.org/id/unitary-authority/southend,ED Adults & Communities,Adult Social Care,1260,Abbey Care Saxon Ltd T/A Saxon Court,06/01/2021,12068568," 2,828.92 ",Private Contractors,Other Agencies
Southend-on-Sea Borough Council,http://www.opendatacommunities.org/id/unitary-authority/southend,ED Adults & Communities,Adult Social Care,1260,Acorn Villages Ltd,06/01/2021,12068568," 6,147.96 ",Private Contractors,Other Agencies
Southend-on-Sea Borough Council,http://www.opendatacommunities.org/id/unitary-authority/southend,ED Neighbourhoods & Environment,Highways And Transport Services,5703,Active Cycling Projects Ltd,06/01/2021,12068568," 15,000.00 ",Professional Fees,Services
Southend-on-Sea Borough Council,http://www.opendatacommunities.org/id/unitary-authority/southend,ED Adults & Communities,Adult Social Care,1070,Adalah Residential Home,06/01/2021,12068568," 11,208.12 ",Private Contractors,Other Agencies
Southend-on-Sea Borough Council,http://www.opendatacommunities.org/id/unitary-authority/southend,ED Adults & Communities,Adult Social Care,1079,Adalah Residential Home,06/01/2021,12068568," 4,907.56 ",Private Contractors,Other Agencies
Southend-on-Sea Borough Council,http://www.opendatacommunities.org/id/unitary-authority/southend,ED Adults & Communities,Adult Social Care,1083,Adalah Residential Home,06/01/2021,12068568, 677.43 ,Private Contractors,Other Agencies
Southend-on-Sea Borough Council,http://www.opendatacommunities.org/id/unitary-authority/southend,ED Adults & Communities,Adult Social Care,1581,Adalah Residential Home,06/01/2021,12068568," 2,107.56 ",Private Contractors,Other Agencies
Southend-on-Sea Borough Council,http://www.opendatacommunities.org/id/unitary-authority/southend,ED Adults & Communities,Adult Social Care,1165,Adalah Residential Home,06/01/2021,12068568,"-1,430.13 ",COVID-19 Response,Other Agencies
Southend-on-Sea Borough Council,http://www.opendatacommunities.org/id/unitary-authority/southend,ED Adults & Communities,Adult Social Care,1260,Addington House Limited,06/01/2021,12068568," 6,779.64 ",Private Contractors,Other Agencies
Southend-on-Sea Borough Council,http://www.opendatacommunities.org/id/unitary-authority/southend,ED Adults & Communities,Adult Social Care,1391,Adjuvo Care & Support Ltd,06/01/2021,12068568," 24,512.30 ",Private Contractors,Other Agencies
Southend-on-Sea Borough Council,http://www.opendatacommunities.org/id/unitary-authority/southend,ED Adults & Communities,Adult Social Care,1294,Advance Housing And Support Ltd T/A Advance,06/01/2021,12068568," 13,471.40 ",Private Contractors,Other Agencies
Southend-on-Sea Borough Council,http://www.opendatacommunities.org/id/unitary-authority/southend,ED Adults & Communities,Adult Social Care,1675,Advance Housing And Support Ltd T/A Advance,06/01/2021,12068568," 7,536.40 ",Private Contractors,Other Agencies
Southend-on-Sea Borough Council,http://www.opendatacommunities.org/id/unitary-authority/southend,ED Adults & Communities,Adult Social Care,1391,Akaba Social Uk Ltd,06/01/2021,12068568," 2,200.00 ",Private Contractors,Other Agencies
Southend-on-Sea Borough Council,http://www.opendatacommunities.org/id/unitary-authority/southend,ED Adults & Communities,Adult Social Care,1070,"Akhtar Latif, Ncs Solution T/A Kimberley Grace Care Home",06/01/2021,12068568," 15,004.29 ",Private Contractors,Other Agencies
Southend-on-Sea Borough Council,http://www.opendatacommunities.org/id/unitary-authority/southend,ED Adults & Communities,Adult Social Care,1192,"Akhtar Latif, Ncs Solution T/A Kimberley Grace Care Home",06/01/2021,12068568," 2,107.56 ",Private Contractors,Other Agencies
Southend-on-Sea Borough Council,http://www.opendatacommunities.org/id/unitary-authority/southend,ED Adults & Communities,Adult Social Care,1165,"Akhtar Latif, Ncs Solution T/A Kimberley Grace Care Home",06/01/2021,12068568," 4,440.93 ",COVID-19 Response,Other Agencies
Southend-on-Sea Borough Council,http://www.opendatacommunities.org/id/unitary-authority/southend,ED Adults & Communities,Adult Social Care,1260,Aldanat Care Ltd,06/01/2021,12068568," 4,910.36 ",Private Contractors,Other Agencies
Southend-on-Sea Borough Council,http://www.opendatacommunities.org/id/unitary-authority/southend,ED Adults & Communities,Adult Social Care,1260,Alyson House Rch Ltd,06/01/2021,12068568," 14,945.56 ",Private Contractors,Other Agencies
Southend-on-Sea Borough Council,http://www.opendatacommunities.org/id/unitary-authority/southend,ED Adults & Communities,Adult Social Care,1671,Alyson House Rch Ltd,06/01/2021,12068568," 3,547.88 ",Private Contractors,Other Agencies
Southend-on-Sea Borough Council,http://www.opendatacommunities.org/id/unitary-authority/southend,ED Adults & Communities,Adult Social Care,1070,Ama Generic Ltd,06/01/2021,12068568," 6,237.28 ",Private Contractors,Other Agencies
Southend-on-Sea Borough Council,http://www.opendatacommunities.org/id/unitary-authority/southend,ED Adults & Communities,Adult Social Care,1192,Ama Generic Ltd,06/01/2021,12068568, 602.16 ,Private Contractors,Other Agencies
Southend-on-Sea Borough Council,http://www.opendatacommunities.org/id/unitary-authority/southend,ED Adults & Communities,Adult Social Care,1260,Ama Generic Ltd,06/01/2021,12068568," 2,032.29 ",Private Contractors,Other Agencies
Southend-on-Sea Borough Council,http://www.opendatacommunities.org/id/unitary-authority/southend,ED Adults & Communities,Adult Social Care,1386,Ama Generic Ltd,06/01/2021,12068568," 2,107.56 ",Private Contractors,Other Agencies
Southend-on-Sea Borough Council,http://www.opendatacommunities.org/id/unitary-authority/southend,ED Children & Public Health,Children And Education Services,3250,Anchor Foster Care,06/01/2021,12068568," 3,482.92 ",Private Contractors,Other Agencies
Southend-on-Sea Borough Council,http://www.opendatacommunities.org/id/unitary-authority/southend,ED Adults & Communities,Adult Social Care,1105,Angel Solutions Community Care,06/01/2021,12068568, 516.80 ,Private Contractors,Other Agencies
Southend-on-Sea Borough Council,http://www.opendatacommunities.org/id/unitary-authority/southend,ED Adults & Communities,Adult Social Care,1391,Aran Homes Ltd,06/01/2021,12068568," 11,629.52 ",Private Contractors,Other Agencies
Southend-on-Sea Borough Council,http://www.opendatacommunities.org/id/unitary-authority/southend,ED Adults & Communities,Adult Social Care,1644,Aran Homes Ltd,06/01/2021,12068568," 1,699.88 ",Private Contractors,Other Agencies
Southend-on-Sea Borough Council,http://www.opendatacommunities.org/id/unitary-authority/southend,ED Adults & Communities,Adult Social Care,1070,Arti Care Homes (South West) Limited T/A Whitehaven Care Home,06/01/2021,12068568," 4,178.57 ",Private Contractors,Other Agencies
Southend-on-Sea Borough Council,http://www.opendatacommunities.org/id/unitary-authority/southend,ED Adults & Communities,Cultural And Related Services,4261,Askews And Holts Library Services Ltd,06/01/2021,12068568, 536.22 ,Books & education equipment,Printing Stationery And General Office Expenses
Southend-on-Sea Borough Council,http://www.opendatacommunities.org/id/unitary-authority/southend,ED Adults & Communities,Adult Social Care,1070,Astral Lodge Ltd,06/01/2021,12068568," 18,655.34 ",Private Contractors,Other Agencies
Southend-on-Sea Borough Council,http://www.opendatacommunities.org/id/unitary-authority/southend,ED Adults & Communities,Adult Social Care,1079,Astral Lodge Ltd,06/01/2021,12068568," 2,107.56 ",Private Contractors,Other Agencies
Southend-on-Sea Borough Council,http://www.opendatacommunities.org/id/unitary-authority/southend,ED Adults & Communities,Adult Social Care,1070,Avondale Care Home Ltd,06/01/2021,12068568,"-8,692.44 ",Private Contractors,Other Agencies
Southend-on-Sea Borough Council,http://www.opendatacommunities.org/id/unitary-authority/southend,ED Adults & Communities,Adult Social Care,1641,Avondale Care Home Ltd,06/01/2021,12068568," 5,739.16 ",Private Contractors,Other Agencies
Southend-on-Sea Borough Council,http://www.opendatacommunities.org/id/unitary-authority/southend,ED Adults & Communities,Adult Social Care,1070,Avondale Care Home Ltd,06/01/2021,12068568," 2,107.56 ",Private Contractors,Other Agencies
Southend-on-Sea Borough Council,http://www.opendatacommunities.org/id/unitary-authority/southend,ED Adults & Communities,Adult Social Care,1641,Avondale Care Home Ltd,06/01/2021,12068568," 5,739.16 ",Private Contractors,Other Agencies
Southend-on-Sea Borough Council,http://www.opendatacommunities.org/id/unitary-authority/southend,ED Adults & Communities,Adult Social Care,1070,Beaufort Lodge Ltd,06/01/2021,12068568," 11,705.39 ",Private Contractors,Other Agencies
Southend-on-Sea Borough Council,http://www.opendatacommunities.org/id/unitary-authority/southend,ED Adults & Communities,Adult Social Care,1079,Beaufort Lodge Ltd,06/01/2021,12068568," 2,107.56 ",Private Contractors,Other Agencies
Southend-on-Sea Borough Council,http://www.opendatacommunities.org/id/unitary-authority/southend,ED Adults & Communities,Adult Social Care,1641,Beaufort Lodge Ltd,06/01/2021,12068568," 4,365.66 ",Private Contractors,Other Agencies
Southend-on-Sea Borough Council,http://www.opendatacommunities.org/id/unitary-authority/southend,ED Adults & Communities,Adult Social Care,1671,Beaufort Lodge Ltd,06/01/2021,12068568," 1,961.68 ",Private Contractors,Other Agencies
Southend-on-Sea Borough Council,http://www.opendatacommunities.org/id/unitary-authority/southend,ED Adults & Communities,Adult Social Care,1165,Beaufort Lodge Ltd,06/01/2021,12068568," 2,107.56 ",COVID-19 Response,Other Agencies
Southend-on-Sea Borough Council,http://www.opendatacommunities.org/id/unitary-authority/southend,ED Adults & Communities,Adult Social Care,1070,Biffins Residential Home,06/01/2021,12068568," 15,100.68 ",Private Contractors,Other Agencies
Southend-on-Sea Borough Council,http://www.opendatacommunities.org/id/unitary-authority/southend,ED Adults & Communities,Adult Social Care,1079,Biffins Residential Home,06/01/2021,12068568," 4,796.68 ",Private Contractors,Other Agencies
Southend-on-Sea Borough Council,http://www.opendatacommunities.org/id/unitary-authority/southend,ED Adults & Communities,Adult Social Care,1641,Biffins Residential Home,06/01/2021,12068568," 2,107.56 ",Private Contractors,Other Agencies
Southend-on-Sea Borough Council,http://www.opendatacommunities.org/id/unitary-authority/southend,ED Adults & Communities,Adult Social Care,1611,Black Swan International Ltd,06/01/2021,12068568," 3,800.00 ",Private Contractors,Other Agencies
Southend-on-Sea Borough Council,http://www.opendatacommunities.org/id/unitary-authority/southend,ED Adults & Communities,Adult Social Care,1070,Braemar Lodge,06/01/2021,12068568," 13,545.28 ",Private Contractors,Other Agencies
Southend-on-Sea Borough Council,http://www.opendatacommunities.org/id/unitary-authority/southend,ED Adults & Communities,Adult Social Care,1070,Brambles Rest Home Limited,06/01/2021,12068568," 4,620.28 ",Private Contractors,Other Agencies
Southend-on-Sea Borough Council,http://www.opendatacommunities.org/id/unitary-authority/southend,ED Children & Public Health,Children And Education Services,3093,British Youth Council,06/01/2021,12068568, 565.00 ,Professional Fees,Services
Southend-on-Sea Borough Council,http://www.opendatacommunities.org/id/unitary-authority/southend,ED Adults & Communities,Adult Social Care,1260,Broadlands Hall Ltd,06/01/2021,12068568," 8,075.60 ",Private Contractors,Other Agencies
Southend-on-Sea Borough Council,http://www.opendatacommunities.org/id/unitary-authority/southend,ED Adults & Communities,Adult Social Care,1065,Brooklands Care Home Ltd,06/01/2021,12068568," 2,434.88 ",Private Contractors,Other Agencies
Southend-on-Sea Borough Council,http://www.opendatacommunities.org/id/unitary-authority/southend,ED Adults & Communities,Adult Social Care,1070,Brooklands Care Home Ltd,06/01/2021,12068568," 8,448.20 ",Private Contractors,Other Agencies
Southend-on-Sea Borough Council,http://www.opendatacommunities.org/id/unitary-authority/southend,ED Adults & Communities,Adult Social Care,1079,Brooklands Care Home Ltd,06/01/2021,12068568," 4,215.12 ",Private Contractors,Other Agencies
Southend-on-Sea Borough Council,http://www.opendatacommunities.org/id/unitary-authority/southend,ED Adults & Communities,Adult Social Care,1671,Brooklands Care Home Ltd,06/01/2021,12068568," 2,107.56 ",Private Contractors,Other Agencies
Southend-on-Sea Borough Council,http://www.opendatacommunities.org/id/unitary-authority/southend,ED Adults & Communities,Adult Social Care,1165,Brooklands Care Home Ltd,06/01/2021,12068568," 2,107.56 ",COVID-19 Response,Other Agencies
Southend-on-Sea Borough Council,http://www.opendatacommunities.org/id/unitary-authority/southend,ED Adults & Communities,Adult Social Care,1105,Brooks Care & Nursing Services Ltd,06/01/2021,12068568," 4,805.52 ",Private Contractors,Other Agencies
Southend-on-Sea Borough Council,http://www.opendatacommunities.org/id/unitary-authority/southend,ED Adults & Communities,Adult Social Care,1165,Brooks Care & Nursing Services Ltd,06/01/2021,12068568, 664.11 ,COVID-19 Response,Other Agencies
Southend-on-Sea Borough Council,http://www.opendatacommunities.org/id/unitary-authority/southend,ED Adults & Communities,Adult Social Care,1260,Brookvale,06/01/2021,12068568," 2,700.88 ",Private Contractors,Other Agencies
Southend-on-Sea Borough Council,http://www.opendatacommunities.org/id/unitary-authority/southend,ED Adults & Communities,Adult Social Care,1070,Bupa Care Services Bacs Receipts,06/01/2021,12068568," 2,235.52 ",Private Contractors,Other Agencies
Southend-on-Sea Borough Council,http://www.opendatacommunities.org/id/unitary-authority/southend,ED Adults & Communities,Adult Social Care,1070,Canaryford Ltd T/A Parklands Nursing Home,06/01/2021,12068568," 2,356.44 ",Private Contractors,Other Agencies
Southend-on-Sea Borough Council,http://www.opendatacommunities.org/id/unitary-authority/southend,ED Adults & Communities,Adult Social Care,1070,Care Concern (Frinton) Ltd T/A Beaumont Manor Care Home,06/01/2021,12068568," 4,800.00 ",Private Contractors,Other Agencies
Southend-on-Sea Borough Council,http://www.opendatacommunities.org/id/unitary-authority/southend,ED Adults & Communities,Adult Social Care,1260,Care In Style T/As Lighthouse,06/01/2021,12068568," 17,506.16 ",Private Contractors,Other Agencies
Southend-on-Sea Borough Council,http://www.opendatacommunities.org/id/unitary-authority/southend,ED Adults & Communities,Adult Social Care,1070,Carlton Hall (Lowestoft) Ltd,06/01/2021,12068568," 2,546.04 ",Private Contractors,Other Agencies
Southend-on-Sea Borough Council,http://www.opendatacommunities.org/id/unitary-authority/southend,ED Adults & Communities,Adult Social Care,1070,Caroline Hunt - Gairloch Care Ltd,06/01/2021,12068568," 2,066.12 ",Private Contractors,Other Agencies
Southend-on-Sea Borough Council,http://www.opendatacommunities.org/id/unitary-authority/southend,ED Children & Public Health,Children And Education Services,3091,Castledon School,06/01/2021,12068568," 6,614.10 ",Private Contractors,Other Agencies
Southend-on-Sea Borough Council,http://www.opendatacommunities.org/id/unitary-authority/southend,ED Adults & Communities,Adult Social Care,1070,Catherine Miller House Ltd,06/01/2021,12068568," 15,384.53 ",Private Contractors,Other Agencies
Southend-on-Sea Borough Council,http://www.opendatacommunities.org/id/unitary-authority/southend,ED Adults & Communities,Adult Social Care,1083,Catherine Miller House Ltd,06/01/2021,12068568," 3,300.00 ",Private Contractors,Other Agencies
Southend-on-Sea Borough Council,http://www.opendatacommunities.org/id/unitary-authority/southend,ED Adults & Communities,Adult Social Care,1105,Choices Healthcare Ltd,06/01/2021,12068568," 9,374.10 ",Private Contractors,Other Agencies
Southend-on-Sea Borough Council,http://www.opendatacommunities.org/id/unitary-authority/southend,ED Adults & Communities,Adult Social Care,1108,Choices Healthcare Ltd,06/01/2021,12068568, 712.94 ,Private Contractors,Other Agencies
Southend-on-Sea Borough Council,http://www.opendatacommunities.org/id/unitary-authority/southend,ED Adults & Communities,Adult Social Care,1205,Choices Healthcare Ltd,06/01/2021,12068568, 655.78 ,Private Contractors,Other Agencies
Southend-on-Sea Borough Council,http://www.opendatacommunities.org/id/unitary-authority/southend,ED Adults & Communities,Adult Social Care,1165,Choices Healthcare Ltd,06/01/2021,12068568," 3,289.79 ",COVID-19 Response,Other Agencies
Southend-on-Sea Borough Council,http://www.opendatacommunities.org/id/unitary-authority/southend,ED Adults & Communities,Adult Social Care,1260,Cmg Homes,06/01/2021,12068568," 7,215.60 ",Private Contractors,Other Agencies
Southend-on-Sea Borough Council,http://www.opendatacommunities.org/id/unitary-authority/southend,ED Adults & Communities,Adult Social Care,1070,Corvell Health Care Ltd,06/01/2021,12068568," 4,215.12 ",Private Contractors,Other Agencies
Southend-on-Sea Borough Council,http://www.opendatacommunities.org/id/unitary-authority/southend,ED Adults & Communities,Adult Social Care,1079,Corvell Health Care Ltd,06/01/2021,12068568," 2,107.56 ",Private Contractors,Other Agencies
Southend-on-Sea Borough Council,http://www.opendatacommunities.org/id/unitary-authority/southend,ED Adults & Communities,Adult Social Care,1165,Corvell Health Care Ltd,06/01/2021,12068568," 3,321.43 ",COVID-19 Response,Other Agencies
Southend-on-Sea Borough Council,http://www.opendatacommunities.org/id/unitary-authority/southend,ED Adults & Communities,Adult Social Care,1260,Craegmoor Fcl New Directions,06/01/2021,12068568," 5,241.60 ",Private Contractors,Other Agencies
Southend-on-Sea Borough Council,http://www.opendatacommunities.org/id/unitary-authority/southend,ED Adults & Communities,Adult Social Care,1070,Crowstone Home,06/01/2021,12068568," 4,821.32 ",Private Contractors,Other Agencies
Southend-on-Sea Borough Council,http://www.opendatacommunities.org/id/unitary-authority/southend,ED Adults & Communities,Adult Social Care,1192,Crowstone Home,06/01/2021,12068568," 3,286.36 ",Private Contractors,Other Agencies
Southend-on-Sea Borough Council,http://www.opendatacommunities.org/id/unitary-authority/southend,ED Adults & Communities,Adult Social Care,1386,Crowstone Home,06/01/2021,12068568," 4,953.20 ",Private Contractors,Other Agencies
Southend-on-Sea Borough Council,http://www.opendatacommunities.org/id/unitary-authority/southend,ED Adults & Communities,Adult Social Care,1641,Crowstone Home,06/01/2021,12068568," 12,274.64 ",Private Contractors,Other Agencies
Southend-on-Sea Borough Council,http://www.opendatacommunities.org/id/unitary-authority/southend,ED Adults & Communities,Adult Social Care,1192,Cumberland Lodge,06/01/2021,12068568," 1,691.20 ",Private Contractors,Other Agencies
Southend-on-Sea Borough Council,http://www.opendatacommunities.org/id/unitary-authority/southend,ED Adults & Communities,Adult Social Care,1386,Cumberland Lodge,06/01/2021,12068568," 15,473.56 ",Private Contractors,Other Agencies
Southend-on-Sea Borough Council,http://www.opendatacommunities.org/id/unitary-authority/southend,ED Adults & Communities,Adult Social Care,1641,Cumberland Lodge,06/01/2021,12068568," 2,147.88 ",Private Contractors,Other Agencies
Southend-on-Sea Borough Council,http://www.opendatacommunities.org/id/unitary-authority/southend,ED Neighbourhoods & Environment,Environmental And Regulatory Services,4501,Dignity Funerals Ltd T/A J W Tate & Son,06/01/2021,12068568," 1,122.00 ",Crematoria And Cemetery Services,Services
Southend-on-Sea Borough Council,http://www.opendatacommunities.org/id/unitary-authority/southend,ED Adults & Communities,Adult Social Care,1294,Dimensions Uk Ltd,06/01/2021,12068568," 10,085.04 ",Private Contractors,Other Agencies
Southend-on-Sea Borough Council,http://www.opendatacommunities.org/id/unitary-authority/southend,ED Legal & Democratic Services,Central Services,7105,East Anglian Chambers T/A Jonathan Taylor,06/01/2021,12068568, 500.00 ,Barristers fees,Services
Southend-on-Sea Borough Council,http://www.opendatacommunities.org/id/unitary-authority/southend,ED Legal & Democratic Services,Central Services,7105,East Anglian Chambers T/A Lorene Hodkinson,06/01/2021,12068568, 850.00 ,Barristers fees,Services
Southend-on-Sea Borough Council,http://www.opendatacommunities.org/id/unitary-authority/southend,ED Adults & Communities,Adult Social Care,1070,Ebury Court Residential Home Ltd,06/01/2021,12068568," 4,000.00 ",Private Contractors,Other Agencies
Southend-on-Sea Borough Council,http://www.opendatacommunities.org/id/unitary-authority/southend,ED Adults & Communities,Adult Social Care,1260,Eldercroft Care Home Ltd,06/01/2021,12068568," 6,209.80 ",Private Contractors,Other Agencies
Southend-on-Sea Borough Council,http://www.opendatacommunities.org/id/unitary-authority/southend,ED Adults & Communities,Adult Social Care,1671,Eldercroft Care Home Ltd,06/01/2021,12068568," 9,665.60 ",Private Contractors,Other Agencies
Southend-on-Sea Borough Council,http://www.opendatacommunities.org/id/unitary-authority/southend,ED Adults & Communities,Adult Social Care,1070,Elgincare,06/01/2021,12068568," 20,454.28 ",Private Contractors,Other Agencies
Southend-on-Sea Borough Council,http://www.opendatacommunities.org/id/unitary-authority/southend,ED Adults & Communities,Adult Social Care,1079,Elgincare,06/01/2021,12068568," 4,215.12 ",Private Contractors,Other Agencies
Southend-on-Sea Borough Council,http://www.opendatacommunities.org/id/unitary-authority/southend,ED Adults & Communities,Adult Social Care,1083,Elgincare,06/01/2021,12068568, 978.51 ,Private Contractors,Other Agencies
Southend-on-Sea Borough Council,http://www.opendatacommunities.org/id/unitary-authority/southend,ED Adults & Communities,Adult Social Care,1260,Elora,06/01/2021,12068568," 3,176.88 ",Private Contractors,Other Agencies
Southend-on-Sea Borough Council,http://www.opendatacommunities.org/id/unitary-authority/southend,ED Adults & Communities,Adult Social Care,1294,Essex Autistic Society,06/01/2021,12068568," 6,847.32 ",Private Contractors,Other Agencies
Southend-on-Sea Borough Council,http://www.opendatacommunities.org/id/unitary-authority/southend,ED Adults & Communities,Adult Social Care,1260,Essex Autistic Society,06/01/2021,12068568," 4,593.96 ",Private Contractors,Other Agencies
Southend-on-Sea Borough Council,http://www.opendatacommunities.org/id/unitary-authority/southend,ED Adults & Communities,Adult Social Care,1260,Essex Care Consortium Ltd,06/01/2021,12068568," 10,498.84 ",Private Contractors,Other Agencies
Southend-on-Sea Borough Council,http://www.opendatacommunities.org/id/unitary-authority/southend,ED Adults & Communities,Adult Social Care,1391,Essex County Council,06/01/2021,12068568, 614.40 ,Private Contractors,Other Agencies
Southend-on-Sea Borough Council,http://www.opendatacommunities.org/id/unitary-authority/southend,ED Adults & Communities,Adult Social Care,1260,Estuary Housing Association Ltd,06/01/2021,12068568," 3,005.36 ",Private Contractors,Other Agencies
Southend-on-Sea Borough Council,http://www.opendatacommunities.org/id/unitary-authority/southend,ED Adults & Communities,Adult Social Care,1391,Excellence Care Co. Ltd,06/01/2021,12068568," 2,964.68 ",Private Contractors,Other Agencies
Southend-on-Sea Borough Council,http://www.opendatacommunities.org/id/unitary-authority/southend,ED Adults & Communities,Adult Social Care,1386,Excellence Care Co. Ltd,06/01/2021,12068568," 3,200.00 ",Private Contractors,Other Agencies
Southend-on-Sea Borough Council,http://www.opendatacommunities.org/id/unitary-authority/southend,ED Adults & Communities,Adult Social Care,1195,Excellence Care Ltd,06/01/2021,12068568," 2,714.88 ",Private Contractors,Other Agencies
Southend-on-Sea Borough Council,http://www.opendatacommunities.org/id/unitary-authority/southend,ED Adults & Communities,Adult Social Care,1065,Fernbrook Care Homes Ltd,06/01/2021,12068568," 9,117.86 ",Private Contractors,Other Agencies
Southend-on-Sea Borough Council,http://www.opendatacommunities.org/id/unitary-authority/southend,ED Adults & Communities,Adult Social Care,1083,Fernbrook Care Homes Ltd,06/01/2021,12068568," 1,478.57 ",Private Contractors,Other Agencies
Southend-on-Sea Borough Council,http://www.opendatacommunities.org/id/unitary-authority/southend,ED Adults & Communities,Adult Social Care,1294,Field Lane Foundation,06/01/2021,12068568," 13,297.84 ",Private Contractors,Other Agencies
Southend-on-Sea Borough Council,http://www.opendatacommunities.org/id/unitary-authority/southend,ED Adults & Communities,Adult Social Care,1391,Field Lane Foundation,06/01/2021,12068568," 3,799.32 ",Private Contractors,Other Agencies
Southend-on-Sea Borough Council,http://www.opendatacommunities.org/id/unitary-authority/southend,ED Adults & Communities,Adult Social Care,1675,Field Lane Foundation,06/01/2021,12068568," 5,158.44 ",Private Contractors,Other Agencies
Southend-on-Sea Borough Council,http://www.opendatacommunities.org/id/unitary-authority/southend,ED Adults & Communities,Adult Social Care,1260,Fitzroy,06/01/2021,12068568," 5,625.20 ",Private Contractors,Other Agencies
Southend-on-Sea Borough Council,http://www.opendatacommunities.org/id/unitary-authority/southend,ED Adults & Communities,Adult Social Care,1260,Fitzroy,06/01/2021,12068568," 4,769.80 ",Private Contractors,Other Agencies
Southend-on-Sea Borough Council,http://www.opendatacommunities.org/id/unitary-authority/southend,ED Adults & Communities,Adult Social Care,1192,Fitzroy Support Ltd,06/01/2021,12068568," 2,611.00 ",Private Contractors,Other Agencies
Southend-on-Sea Borough Council,http://www.opendatacommunities.org/id/unitary-authority/southend,ED Children & Public Health,Children And Education Services,3250,Fostering London Limited,06/01/2021,12068568," 3,640.00 ",Private Contractors,Other Agencies
Southend-on-Sea Borough Council,http://www.opendatacommunities.org/id/unitary-authority/southend,ED Adults & Communities,Adult Social Care,1070,Fremington Manor,06/01/2021,12068568," 2,332.00 ",Private Contractors,Other Agencies
Southend-on-Sea Borough Council,http://www.opendatacommunities.org/id/unitary-authority/southend,ED Transformation,Central Services,8602,Gamma Business Communication Limited,06/01/2021,12068568," 1,086.70 ",Communications Telephone Rental,Communications And Computing
Southend-on-Sea Borough Council,http://www.opendatacommunities.org/id/unitary-authority/southend,ED Children & Public Health,Children And Education Services,3091,Glenwood School,06/01/2021,12068568," 49,230.77 ",Private Contractors,Other Agencies
Southend-on-Sea Borough Council,http://www.opendatacommunities.org/id/unitary-authority/southend,ED Adults & Communities,Adult Social Care,1165,Golden Keys Care Agency Limited,06/01/2021,12068568, 969.90 ,COVID-19 Response,Other Agencies
Southend-on-Sea Borough Council,http://www.opendatacommunities.org/id/unitary-authority/southend,ED Adults & Communities,Adult Social Care,1205,Golden Keys Care Agency Limited,06/01/2021,12068568, 715.50 ,Private Contractors,Other Agencies
Southend-on-Sea Borough Council,http://www.opendatacommunities.org/id/unitary-authority/southend,ED Adults & Communities,Adult Social Care,1165,Golden Keys Care Agency Limited,06/01/2021,12068568," 1,081.20 ",COVID-19 Response,Other Agencies
Southend-on-Sea Borough Council,http://www.opendatacommunities.org/id/unitary-authority/southend,ED Adults & Communities,Adult Social Care,1209,Gordon Ellis & Co T/A Langham,06/01/2021,12068568, 515.85 ,Tools And Equipment Purchase,Equipment Furniture And Materials
Southend-on-Sea Borough Council,http://www.opendatacommunities.org/id/unitary-authority/southend,ED Adults & Communities,Adult Social Care,1070,Grandville Lodge Limited,06/01/2021,12068568," 6,555.52 ",Private Contractors,Other Agencies
Southend-on-Sea Borough Council,http://www.opendatacommunities.org/id/unitary-authority/southend,ED Adults & Communities,Adult Social Care,1079,Grandville Lodge Limited,06/01/2021,12068568," 2,651.32 ",Private Contractors,Other Agencies
Southend-on-Sea Borough Council,http://www.opendatacommunities.org/id/unitary-authority/southend,ED Adults & Communities,Adult Social Care,1079,Greensleeves Care,06/01/2021,12068568," 3,720.00 ",Private Contractors,Other Agencies
Southend-on-Sea Borough Council,http://www.opendatacommunities.org/id/unitary-authority/southend,ED Adults & Communities,Adult Social Care,1070,Hallmark Care Homes Ltd,06/01/2021,12068568," 10,433.64 ",Private Contractors,Other Agencies
Southend-on-Sea Borough Council,http://www.opendatacommunities.org/id/unitary-authority/southend,ED Adults & Communities,Adult Social Care,1079,Hallmark Care Homes Ltd,06/01/2021,12068568," 5,728.80 ",Private Contractors,Other Agencies
Southend-on-Sea Borough Council,http://www.opendatacommunities.org/id/unitary-authority/southend,ED Adults & Communities,Adult Social Care,1070,Havengore House Residential Care Home T/A Mistis Ltd,06/01/2021,12068568," 8,430.24 ",Private Contractors,Other Agencies
Southend-on-Sea Borough Council,http://www.opendatacommunities.org/id/unitary-authority/southend,ED Adults & Communities,Adult Social Care,1079,Havengore House Residential Care Home T/A Mistis Ltd,06/01/2021,12068568," 2,107.56 ",Private Contractors,Other Agencies
Southend-on-Sea Borough Council,http://www.opendatacommunities.org/id/unitary-authority/southend,ED Adults & Communities,Adult Social Care,1165,Havengore House Residential Care Home T/A Mistis Ltd,06/01/2021,12068568," 2,107.56 ",COVID-19 Response,Other Agencies
Southend-on-Sea Borough Council,http://www.opendatacommunities.org/id/unitary-authority/southend,ED Adults & Communities,Adult Social Care,1192,Hc One Limited T/A Ashingdon Grange Care Home,06/01/2021,12068568," 2,195.00 ",Private Contractors,Other Agencies
Southend-on-Sea Borough Council,http://www.opendatacommunities.org/id/unitary-authority/southend,ED Adults & Communities,Adult Social Care,1070,Hc-One Oval Limited,06/01/2021,12068568," 1,900.00 ",Private Contractors,Other Agencies
Southend-on-Sea Borough Council,http://www.opendatacommunities.org/id/unitary-authority/southend,ED Adults & Communities,Adult Social Care,1083,Health & Home (Essex) Limited T/As Alexander House,06/01/2021,12068568," 7,680.00 ",Private Contractors,Other Agencies
Southend-on-Sea Borough Council,http://www.opendatacommunities.org/id/unitary-authority/southend,ED Adults & Communities,Adult Social Care,1165,Health & Home (Essex) Limited T/As Alexander House,06/01/2021,12068568,"-3,086.07 ",COVID-19 Response,Other Agencies
Southend-on-Sea Borough Council,http://www.opendatacommunities.org/id/unitary-authority/southend,ED Adults & Communities,Adult Social Care,1070,Health & Home (Essex) Limited T/As Barling Lodge,06/01/2021,12068568," 3,033.64 ",Private Contractors,Other Agencies
Southend-on-Sea Borough Council,http://www.opendatacommunities.org/id/unitary-authority/southend,ED Adults & Communities,Adult Social Care,1386,Health & Home (Essex) Limited T/As Barling Lodge,06/01/2021,12068568," 2,700.00 ",Private Contractors,Other Agencies
Southend-on-Sea Borough Council,http://www.opendatacommunities.org/id/unitary-authority/southend,ED Adults & Communities,Adult Social Care,1641,Health & Home (Essex) Limited T/As Barling Lodge,06/01/2021,12068568," 2,632.68 ",Private Contractors,Other Agencies
Southend-on-Sea Borough Council,http://www.opendatacommunities.org/id/unitary-authority/southend,ED Adults & Communities,Adult Social Care,1165,Health & Home (Essex) Limited T/As Barling Lodge,06/01/2021,12068568," 3,115.68 ",COVID-19 Response,Other Agencies
Southend-on-Sea Borough Council,http://www.opendatacommunities.org/id/unitary-authority/southend,ED Adults & Communities,Adult Social Care,1070,Health & Home (Essex) Limited T/As Ravensmere Rest Home,06/01/2021,12068568," 3,660.00 ",Private Contractors,Other Agencies
Southend-on-Sea Borough Council,http://www.opendatacommunities.org/id/unitary-authority/southend,ED Adults & Communities,Adult Social Care,1083,Health & Home (Essex) Limited T/As Ravensmere Rest Home,06/01/2021,12068568," 1,210.00 ",Private Contractors,Other Agencies
Southend-on-Sea Borough Council,http://www.opendatacommunities.org/id/unitary-authority/southend,ED Adults & Communities,Adult Social Care,1192,Health & Home (Essex) Limited T/As Ravensmere Rest Home,06/01/2021,12068568," 3,080.00 ",Private Contractors,Other Agencies
Southend-on-Sea Borough Council,http://www.opendatacommunities.org/id/unitary-authority/southend,ED Adults & Communities,Adult Social Care,1070,Hollymede Cottage Ltd,06/01/2021,12068568," 1,986.04 ",Private Contractors,Other Agencies
Southend-on-Sea Borough Council,http://www.opendatacommunities.org/id/unitary-authority/southend,ED Children & Public Health,Children And Education Services,3250,Horizon Care And Education Group,06/01/2021,12068568," 20,198.67 ",Private Contractors,Other Agencies
Southend-on-Sea Borough Council,http://www.opendatacommunities.org/id/unitary-authority/southend,ED Children & Public Health,Children And Education Services,3250,Horizon Care And Education Group,06/01/2021,12068568," 16,075.67 ",Private Contractors,Other Agencies
Southend-on-Sea Borough Council,http://www.opendatacommunities.org/id/unitary-authority/southend,ED Adults & Communities,Adult Social Care,1070,Integrity Care Services Ltd T/A Penny Pot,06/01/2021,12068568," 2,218.16 ",Private Contractors,Other Agencies
Southend-on-Sea Borough Council,http://www.opendatacommunities.org/id/unitary-authority/southend,ED Adults & Communities,Adult Social Care,1195,J M Carehomes Limited,06/01/2021,12068568," 3,125.32 ",Private Contractors,Other Agencies
Southend-on-Sea Borough Council,http://www.opendatacommunities.org/id/unitary-authority/southend,ED Adults & Communities,Adult Social Care,1195,J M Carehomes Limited,06/01/2021,12068568," 3,125.32 ",Private Contractors,Other Agencies
Southend-on-Sea Borough Council,http://www.opendatacommunities.org/id/unitary-authority/southend,ED Adults & Communities,Adult Social Care,1195,J M Carehomes Limited,06/01/2021,12068568," 3,125.32 ",Private Contractors,Other Agencies
Southend-on-Sea Borough Council,http://www.opendatacommunities.org/id/unitary-authority/southend,ED Adults & Communities,Adult Social Care,1195,J M Carehomes Limited,06/01/2021,12068568," 3,125.32 ",Private Contractors,Other Agencies
Southend-on-Sea Borough Council,http://www.opendatacommunities.org/id/unitary-authority/southend,ED Adults & Communities,Adult Social Care,1294,Jamesons Residential Care Home Limited,06/01/2021,12068568," 4,070.88 ",Private Contractors,Other Agencies
Southend-on-Sea Borough Council,http://www.opendatacommunities.org/id/unitary-authority/southend,ED Adults & Communities,Adult Social Care,1675,Jamesons Residential Care Home Limited,06/01/2021,12068568," 4,527.60 ",Private Contractors,Other Agencies
Southend-on-Sea Borough Council,http://www.opendatacommunities.org/id/unitary-authority/southend,ED Adults & Communities,Adult Social Care,1070,Jewish Care,06/01/2021,12068568," 1,821.28 ",Private Contractors,Other Agencies
Southend-on-Sea Borough Council,http://www.opendatacommunities.org/id/unitary-authority/southend,ED Adults & Communities,Adult Social Care,1070,Jewish Care,06/01/2021,12068568," 2,179.84 ",Private Contractors,Other Agencies
Southend-on-Sea Borough Council,http://www.opendatacommunities.org/id/unitary-authority/southend,ED Adults & Communities,Adult Social Care,1070,Joseph House (Trading) Ltd,06/01/2021,12068568," 2,107.56 ",Private Contractors,Other Agencies
Southend-on-Sea Borough Council,http://www.opendatacommunities.org/id/unitary-authority/southend,ED Adults & Communities,Adult Social Care,1083,Joseph House (Trading) Ltd,06/01/2021,12068568," 6,808.39 ",Private Contractors,Other Agencies
Southend-on-Sea Borough Council,http://www.opendatacommunities.org/id/unitary-authority/southend,ED Children & Public Health,Children And Education Services,3250,Kasper Ltd T/A Kasper Fostering,06/01/2021,12068568," 3,948.00 ",Private Contractors,Other Agencies
Southend-on-Sea Borough Council,http://www.opendatacommunities.org/id/unitary-authority/southend,ED Children & Public Health,Children And Education Services,3250,Kasper Ltd T/A Kasper Fostering,06/01/2021,12068568," 3,283.84 ",Private Contractors,Other Agencies
Southend-on-Sea Borough Council,http://www.opendatacommunities.org/id/unitary-authority/southend,ED Children & Public Health,Children And Education Services,3250,Kasper Ltd T/A Kasper Fostering,06/01/2021,12068568," 3,456.60 ",Private Contractors,Other Agencies
Southend-on-Sea Borough Council,http://www.opendatacommunities.org/id/unitary-authority/southend,ED Adults & Communities,Adult Social Care,1260,Kingswood Care Services Ltd,06/01/2021,12068568," 6,001.72 ",Private Contractors,Other Agencies
Southend-on-Sea Borough Council,http://www.opendatacommunities.org/id/unitary-authority/southend,ED Adults & Communities,Adult Social Care,1260,Kingswood Care Services Ltd,06/01/2021,12068568," 6,233.64 ",Private Contractors,Other Agencies
Southend-on-Sea Borough Council,http://www.opendatacommunities.org/id/unitary-authority/southend,ED Adults & Communities,Adult Social Care,1165,Kolours Healthcare Limited,06/01/2021,12068568, 512.78 ,COVID-19 Response,Other Agencies
Southend-on-Sea Borough Council,http://www.opendatacommunities.org/id/unitary-authority/southend,ED Adults & Communities,Adult Social Care,1105,Kolours Healthcare Limited,06/01/2021,12068568," 1,114.50 ",Private Contractors,Other Agencies
Southend-on-Sea Borough Council,http://www.opendatacommunities.org/id/unitary-authority/southend,ED Adults & Communities,Adult Social Care,1205,Kolours Healthcare Limited,06/01/2021,12068568, 676.86 ,Private Contractors,Other Agencies
Southend-on-Sea Borough Council,http://www.opendatacommunities.org/id/unitary-authority/southend,ED Adults & Communities,Adult Social Care,1674,Kolours Healthcare Limited,06/01/2021,12068568, 604.20 ,Private Contractors,Other Agencies
Southend-on-Sea Borough Council,http://www.opendatacommunities.org/id/unitary-authority/southend,ED Adults & Communities,Adult Social Care,1105,Kolours Healthcare Limited,06/01/2021,12068568, 500.85 ,Private Contractors,Other Agencies
Southend-on-Sea Borough Council,http://www.opendatacommunities.org/id/unitary-authority/southend,ED Adults & Communities,Adult Social Care,1108,Kolours Healthcare Limited,06/01/2021,12068568," 1,329.75 ",Private Contractors,Other Agencies
Southend-on-Sea Borough Council,http://www.opendatacommunities.org/id/unitary-authority/southend,ED Adults & Communities,Adult Social Care,1105,Kolours Healthcare Limited,06/01/2021,12068568," 1,224.30 ",Private Contractors,Other Agencies
Southend-on-Sea Borough Council,http://www.opendatacommunities.org/id/unitary-authority/southend,ED Adults & Communities,Adult Social Care,1070,Larchwood Care Homes (South) Limited T/A Rose Martha Court,06/01/2021,12068568," 34,098.82 ",Private Contractors,Other Agencies
Southend-on-Sea Borough Council,http://www.opendatacommunities.org/id/unitary-authority/southend,ED Adults & Communities,Adult Social Care,1079,Larchwood Care Homes (South) Limited T/A Rose Martha Court,06/01/2021,12068568," 1,662.65 ",Private Contractors,Other Agencies
Southend-on-Sea Borough Council,http://www.opendatacommunities.org/id/unitary-authority/southend,ED Adults & Communities,Adult Social Care,1192,Larchwood Care Homes (South) Limited T/A Rose Martha Court,06/01/2021,12068568," 4,215.12 ",Private Contractors,Other Agencies
Southend-on-Sea Borough Council,http://www.opendatacommunities.org/id/unitary-authority/southend,ED Adults & Communities,Adult Social Care,1581,Larchwood Care Homes (South) Limited T/A Rose Martha Court,06/01/2021,12068568," 2,107.56 ",Private Contractors,Other Agencies
Southend-on-Sea Borough Council,http://www.opendatacommunities.org/id/unitary-authority/southend,ED Adults & Communities,Adult Social Care,1641,Larchwood Care Homes (South) Limited T/A Rose Martha Court,06/01/2021,12068568," 2,107.56 ",Private Contractors,Other Agencies
Southend-on-Sea Borough Council,http://www.opendatacommunities.org/id/unitary-authority/southend,ED Adults & Communities,Adult Social Care,1079,Larchwood Care Homes (South) Limited T/A Stambridge Meadows,06/01/2021,12068568," 2,700.00 ",Private Contractors,Other Agencies
Southend-on-Sea Borough Council,http://www.opendatacommunities.org/id/unitary-authority/southend,ED Adults & Communities,Adult Social Care,1192,Laycraft Ltd,06/01/2021,12068568," 2,107.56 ",Private Contractors,Other Agencies
Southend-on-Sea Borough Council,http://www.opendatacommunities.org/id/unitary-authority/southend,ED Adults & Communities,Adult Social Care,1260,Laycraft Ltd,06/01/2021,12068568," 9,573.02 ",Private Contractors,Other Agencies
Southend-on-Sea Borough Council,http://www.opendatacommunities.org/id/unitary-authority/southend,ED Adults & Communities,Adult Social Care,1671,Laycraft Ltd,06/01/2021,12068568," 6,392.96 ",Private Contractors,Other Agencies
Southend-on-Sea Borough Council,http://www.opendatacommunities.org/id/unitary-authority/southend,ED Adults & Communities,Adult Social Care,1070,Leaders Of Worship & Preachers Homes,06/01/2021,12068568," 9,143.32 ",Private Contractors,Other Agencies
Southend-on-Sea Borough Council,http://www.opendatacommunities.org/id/unitary-authority/southend,ED Adults & Communities,Adult Social Care,1079,Leaders Of Worship & Preachers Homes,06/01/2021,12068568," 2,107.56 ",Private Contractors,Other Agencies
Southend-on-Sea Borough Council,http://www.opendatacommunities.org/id/unitary-authority/southend,ED Neighbourhoods & Environment,Environmental And Regulatory Services,4716,Lees & Lees Saltrick T/A Cg Lee Ltd,06/01/2021,12068568," 1,687.50 ",Consultancy Services,Services
Southend-on-Sea Borough Council,http://www.opendatacommunities.org/id/unitary-authority/southend,ED Adults & Communities,Adult Social Care,1070,Legra Residential Care Home,06/01/2021,12068568," 6,281.52 ",Private Contractors,Other Agencies
Southend-on-Sea Borough Council,http://www.opendatacommunities.org/id/unitary-authority/southend,ED Adults & Communities,Adult Social Care,1294,Lifeways Community Care,06/01/2021,12068568," 6,962.36 ",Private Contractors,Other Agencies
Southend-on-Sea Borough Council,http://www.opendatacommunities.org/id/unitary-authority/southend,ED Adults & Communities,Adult Social Care,1294,Livability,06/01/2021,12068568," 8,653.82 ",Private Contractors,Other Agencies
Southend-on-Sea Borough Council,http://www.opendatacommunities.org/id/unitary-authority/southend,ED Adults & Communities,Adult Social Care,1065,Livability,06/01/2021,12068568," 4,753.56 ",Private Contractors,Other Agencies
Southend-on-Sea Borough Council,http://www.opendatacommunities.org/id/unitary-authority/southend,ED Adults & Communities,Adult Social Care,1192,Livability,06/01/2021,12068568," 5,534.20 ",Private Contractors,Other Agencies
Southend-on-Sea Borough Council,http://www.opendatacommunities.org/id/unitary-authority/southend,ED Adults & Communities,Adult Social Care,1260,Livability,06/01/2021,12068568," 7,523.60 ",Private Contractors,Other Agencies
Southend-on-Sea Borough Council,http://www.opendatacommunities.org/id/unitary-authority/southend,ED Adults & Communities,Adult Social Care,1386,Longcroft,06/01/2021,12068568," 2,800.00 ",Private Contractors,Other Agencies
Southend-on-Sea Borough Council,http://www.opendatacommunities.org/id/unitary-authority/southend,ED Adults & Communities,Housing Services,6130,Lordsons Estates Ltd,06/01/2021,12068568," 4,800.00 ",Loans,Services
Southend-on-Sea Borough Council,http://www.opendatacommunities.org/id/unitary-authority/southend,ED Adults & Communities,Adult Social Care,1070,M S & S A Waycot T/A Crown House Care Home,06/01/2021,12068568," 1,688.00 ",Private Contractors,Other Agencies
Southend-on-Sea Borough Council,http://www.opendatacommunities.org/id/unitary-authority/southend,ED Adults & Communities,Adult Social Care,1260,Macintyre Care,06/01/2021,12068568," 4,476.08 ",Private Contractors,Other Agencies
Southend-on-Sea Borough Council,http://www.opendatacommunities.org/id/unitary-authority/southend,ED Adults & Communities,Adult Social Care,1260,Maes Teg,06/01/2021,12068568," 4,478.04 ",Private Contractors,Other Agencies
Southend-on-Sea Borough Council,http://www.opendatacommunities.org/id/unitary-authority/southend,ED Adults & Communities,Adult Social Care,1070,Manor Rest Home,06/01/2021,12068568," 9,142.84 ",Private Contractors,Other Agencies
Southend-on-Sea Borough Council,http://www.opendatacommunities.org/id/unitary-authority/southend,ED Adults & Communities,Adult Social Care,1079,Manor Rest Home,06/01/2021,12068568," 2,966.60 ",Private Contractors,Other Agencies
Southend-on-Sea Borough Council,http://www.opendatacommunities.org/id/unitary-authority/southend,ED Adults & Communities,Adult Social Care,1260,Maple Health Uk Limited T/A Maple House,06/01/2021,12068568," 6,556.00 ",Private Contractors,Other Agencies
Southend-on-Sea Borough Council,http://www.opendatacommunities.org/id/unitary-authority/southend,ED Neighbourhoods & Environment,Cultural and Related Services,7515,Marlow Integrated Designs Ltd,06/01/2021,12068568, 715.50 ,Repairs And Maintenance Contracts,"Repairs, alterations and maintenance of buildings"
Southend-on-Sea Borough Council,http://www.opendatacommunities.org/id/unitary-authority/southend,ED Finance & Resources,Central Services,9011,Marstan Bdb Llp,06/01/2021,12068568," 12,800.00 ",Main Contractor,Main Contractor
Southend-on-Sea Borough Council,http://www.opendatacommunities.org/id/unitary-authority/southend,ED Adults & Communities,Adult Social Care,1391,Maviswood Ltd,06/01/2021,12068568," 3,707.48 ",Private Contractors,Other Agencies
Southend-on-Sea Borough Council,http://www.opendatacommunities.org/id/unitary-authority/southend,ED Adults & Communities,Adult Social Care,1391,Maviswood Ltd,06/01/2021,12068568," 1,065.96 ",Private Contractors,Other Agencies
Southend-on-Sea Borough Council,http://www.opendatacommunities.org/id/unitary-authority/southend,ED Adults & Communities,Adult Social Care,1641,Maviswood Ltd,06/01/2021,12068568," 1,626.24 ",Private Contractors,Other Agencies
Southend-on-Sea Borough Council,http://www.opendatacommunities.org/id/unitary-authority/southend,ED Adults & Communities,Adult Social Care,1391,Mcch Society,06/01/2021,12068568," 5,118.60 ",Private Contractors,Other Agencies
Southend-on-Sea Borough Council,http://www.opendatacommunities.org/id/unitary-authority/southend,ED Adults & Communities,Adult Social Care,1391,Mcch Society,06/01/2021,12068568," 7,482.16 ",Private Contractors,Other Agencies
Southend-on-Sea Borough Council,http://www.opendatacommunities.org/id/unitary-authority/southend,ED Neighbourhoods & Environment,Environmental And Regulatory Services,4715,Media Agency Group Ltd,06/01/2021,12068568," 6,396.00 ",Services Design And Photography,Services
Southend-on-Sea Borough Council,http://www.opendatacommunities.org/id/unitary-authority/southend,ED Adults & Communities,Adult Social Care,1070,Melrose House,06/01/2021,12068568," 15,719.85 ",Private Contractors,Other Agencies
Southend-on-Sea Borough Council,http://www.opendatacommunities.org/id/unitary-authority/southend,ED Adults & Communities,Adult Social Care,1079,Melrose House,06/01/2021,12068568," 4,441.36 ",Private Contractors,Other Agencies
Southend-on-Sea Borough Council,http://www.opendatacommunities.org/id/unitary-authority/southend,ED Adults & Communities,Adult Social Care,1083,Melrose House,06/01/2021,12068568," 11,892.66 ",Private Contractors,Other Agencies
Southend-on-Sea Borough Council,http://www.opendatacommunities.org/id/unitary-authority/southend,ED Adults & Communities,Adult Social Care,1192,Melrose House,06/01/2021,12068568," 2,107.56 ",Private Contractors,Other Agencies
Southend-on-Sea Borough Council,http://www.opendatacommunities.org/id/unitary-authority/southend,ED Adults & Communities,Adult Social Care,1070,Meteor Rest Home Ltd,06/01/2021,12068568," 20,322.90 ",Private Contractors,Other Agencies
Southend-on-Sea Borough Council,http://www.opendatacommunities.org/id/unitary-authority/southend,ED Adults & Communities,Adult Social Care,1083,Meteor Rest Home Ltd,06/01/2021,12068568," 8,129.16 ",Private Contractors,Other Agencies
Southend-on-Sea Borough Council,http://www.opendatacommunities.org/id/unitary-authority/southend,ED Adults & Communities,Adult Social Care,1641,Meteor Rest Home Ltd,06/01/2021,12068568," 1,969.80 ",Private Contractors,Other Agencies
Southend-on-Sea Borough Council,http://www.opendatacommunities.org/id/unitary-authority/southend,ED Adults & Communities,Adult Social Care,1070,Minster Care Management Ltd T/A Meadows & Haywain,06/01/2021,12068568," 2,124.00 ",Private Contractors,Other Agencies
Southend-on-Sea Borough Council,http://www.opendatacommunities.org/id/unitary-authority/southend,ED Growth & Housing,Housing Services,9005,Mobility Solutions (South) Ltd,06/01/2021,12068568," 9,896.00 ",Contractors General,Contractors General
Southend-on-Sea Borough Council,http://www.opendatacommunities.org/id/unitary-authority/southend,ED Adults & Communities,Adult Social Care,1065,Mountdale Nursing Home,06/01/2021,12068568," 2,107.56 ",Private Contractors,Other Agencies
Southend-on-Sea Borough Council,http://www.opendatacommunities.org/id/unitary-authority/southend,ED Adults & Communities,Adult Social Care,1176,Mountdale Nursing Home,06/01/2021,12068568," 2,157.12 ",Private Contractors,Other Agencies
Southend-on-Sea Borough Council,http://www.opendatacommunities.org/id/unitary-authority/southend,ED Adults & Communities,Housing Services,6011,Mr & Mrs G Cetnik T/A Pavilion Hotel,06/01/2021,12068568," 3,780.00 ",COVID-19 Response,Other Agencies
Southend-on-Sea Borough Council,http://www.opendatacommunities.org/id/unitary-authority/southend,ED Adults & Communities,Adult Social Care,1070,Mr K Singh & Mrs D Kaur T/As Poppy Lodge Care Residential Homes Ltd,06/01/2021,12068568," 12,235.44 ",Private Contractors,Other Agencies
Southend-on-Sea Borough Council,http://www.opendatacommunities.org/id/unitary-authority/southend,ED Adults & Communities,Adult Social Care,1079,Mr K Singh & Mrs D Kaur T/As Poppy Lodge Care Residential Homes Ltd,06/01/2021,12068568," 2,411.08 ",Private Contractors,Other Agencies
Southend-on-Sea Borough Council,http://www.opendatacommunities.org/id/unitary-authority/southend,ED Adults & Communities,Adult Social Care,1386,Mrs V L Rattan T/As Bali Hai Care Home,06/01/2021,12068568," 9,308.04 ",Private Contractors,Other Agencies
Southend-on-Sea Borough Council,http://www.opendatacommunities.org/id/unitary-authority/southend,ED Adults & Communities,Adult Social Care,1079,Mrs V L Rattan T/As Brook Care Home,06/01/2021,12068568," 2,362.36 ",Private Contractors,Other Agencies
Southend-on-Sea Borough Council,http://www.opendatacommunities.org/id/unitary-authority/southend,ED Adults & Communities,Adult Social Care,1611,Mrs V L Rattan T/As Brook Care Home,06/01/2021,12068568," 1,934.24 ",Private Contractors,Other Agencies
Southend-on-Sea Borough Council,http://www.opendatacommunities.org/id/unitary-authority/southend,ED Adults & Communities,Adult Social Care,1641,Mrs V L Rattan T/As Brook Care Home,06/01/2021,12068568," 2,506.84 ",Private Contractors,Other Agencies
Southend-on-Sea Borough Council,http://www.opendatacommunities.org/id/unitary-authority/southend,ED Adults & Communities,Adult Social Care,1065,Nah Care Ltd T/A Langley Lodge Nursing Home,06/01/2021,12068568," 4,215.12 ",Private Contractors,Other Agencies
Southend-on-Sea Borough Council,http://www.opendatacommunities.org/id/unitary-authority/southend,ED Adults & Communities,Adult Social Care,1070,Nah Care Ltd T/A Langley Lodge Nursing Home,06/01/2021,12068568," 2,426.20 ",Private Contractors,Other Agencies
Southend-on-Sea Borough Council,http://www.opendatacommunities.org/id/unitary-authority/southend,ED Children & Public Health,Children And Education Services,3312,National Youth Advocacy Service,06/01/2021,12068568," 3,831.75 ",Professional Fees,Services
Southend-on-Sea Borough Council,http://www.opendatacommunities.org/id/unitary-authority/southend,ED Adults & Communities,Adult Social Care,1070,Nazareth Care Charitable Trust T/A Nazareth House (Hammersmith),06/01/2021,12068568," 4,320.00 ",Private Contractors,Other Agencies
Southend-on-Sea Borough Council,http://www.opendatacommunities.org/id/unitary-authority/southend,ED Adults & Communities,Adult Social Care,1070,Ncs Solutions T/A Abbottswood Lodge Care Home,06/01/2021,12068568," 19,527.89 ",Private Contractors,Other Agencies
Southend-on-Sea Borough Council,http://www.opendatacommunities.org/id/unitary-authority/southend,ED Adults & Communities,Adult Social Care,1083,Ncs Solutions T/A Abbottswood Lodge Care Home,06/01/2021,12068568," 1,053.78 ",Private Contractors,Other Agencies
Southend-on-Sea Borough Council,http://www.opendatacommunities.org/id/unitary-authority/southend,ED Adults & Communities,Adult Social Care,1070,Ncs T/A Westbury Day Care,06/01/2021,12068568," 10,537.80 ",Private Contractors,Other Agencies
Southend-on-Sea Borough Council,http://www.opendatacommunities.org/id/unitary-authority/southend,ED Adults & Communities,Adult Social Care,1079,Ncs T/A Westbury Day Care,06/01/2021,12068568," 2,107.56 ",Private Contractors,Other Agencies
Southend-on-Sea Borough Council,http://www.opendatacommunities.org/id/unitary-authority/southend,ED Adults & Communities,Adult Social Care,1083,Ncs T/A Westbury Day Care,06/01/2021,12068568," 4,742.01 ",Private Contractors,Other Agencies
Southend-on-Sea Borough Council,http://www.opendatacommunities.org/id/unitary-authority/southend,ED Adults & Communities,Adult Social Care,1641,Ncs T/A Westbury Day Care,06/01/2021,12068568," 2,107.56 ",Private Contractors,Other Agencies
Southend-on-Sea Borough Council,http://www.opendatacommunities.org/id/unitary-authority/southend,ED Adults & Communities,Adult Social Care,1165,Ncs T/A Westbury Day Care,06/01/2021,12068568," 7,527.00 ",COVID-19 Response,Other Agencies
Southend-on-Sea Borough Council,http://www.opendatacommunities.org/id/unitary-authority/southend,ED Adults & Communities,Adult Social Care,1070,Newbrae Care Home,06/01/2021,12068568," 10,601.08 ",Private Contractors,Other Agencies
Southend-on-Sea Borough Council,http://www.opendatacommunities.org/id/unitary-authority/southend,ED Adults & Communities,Adult Social Care,1083,Newbrae Care Home,06/01/2021,12068568," 9,182.94 ",Private Contractors,Other Agencies
Southend-on-Sea Borough Council,http://www.opendatacommunities.org/id/unitary-authority/southend,ED Adults & Communities,Adult Social Care,1641,Newbrae Care Home,06/01/2021,12068568," 2,107.56 ",Private Contractors,Other Agencies
Southend-on-Sea Borough Council,http://www.opendatacommunities.org/id/unitary-authority/southend,ED Adults & Communities,Adult Social Care,1165,Newbrae Care Home,06/01/2021,12068568," 2,483.91 ",COVID-19 Response,Other Agencies
Southend-on-Sea Borough Council,http://www.opendatacommunities.org/id/unitary-authority/southend,ED Adults & Communities,Adult Social Care,1070,Nightingale Hammerson Trustee Company Limited General Account,06/01/2021,12068568," 2,774.72 ",Private Contractors,Other Agencies
Southend-on-Sea Borough Council,http://www.opendatacommunities.org/id/unitary-authority/southend,ED Adults & Communities,Adult Social Care,1294,Oasis Supported Living Ltd,06/01/2021,12068568," 20,068.16 ",Private Contractors,Other Agencies
Southend-on-Sea Borough Council,http://www.opendatacommunities.org/id/unitary-authority/southend,ED Adults & Communities,Adult Social Care,1391,Oasis Supported Living Ltd,06/01/2021,12068568," 3,280.32 ",Private Contractors,Other Agencies
Southend-on-Sea Borough Council,http://www.opendatacommunities.org/id/unitary-authority/southend,ED Adults & Communities,Adult Social Care,1070,Obee Ltd T/A Bliss Residential Care Home,06/01/2021,12068568," 8,204.43 ",Private Contractors,Other Agencies
Southend-on-Sea Borough Council,http://www.opendatacommunities.org/id/unitary-authority/southend,ED Adults & Communities,Adult Social Care,1079,Obee Ltd T/A Bliss Residential Care Home,06/01/2021,12068568," 6,281.52 ",Private Contractors,Other Agencies
Southend-on-Sea Borough Council,http://www.opendatacommunities.org/id/unitary-authority/southend,ED Adults & Communities,Adult Social Care,1070,Orsett House Retirement Home Ltd,06/01/2021,12068568," 2,600.00 ",Private Contractors,Other Agencies
Southend-on-Sea Borough Council,http://www.opendatacommunities.org/id/unitary-authority/southend,ED Adults & Communities,Adult Social Care,1294,Outlook Care,06/01/2021,12068568," 16,148.96 ",Private Contractors,Other Agencies
Southend-on-Sea Borough Council,http://www.opendatacommunities.org/id/unitary-authority/southend,ED Adults & Communities,Adult Social Care,1675,Outlook Care,06/01/2021,12068568,-673.26 ,Private Contractors,Other Agencies
Southend-on-Sea Borough Council,http://www.opendatacommunities.org/id/unitary-authority/southend,ED Children & Public Health,Children And Education Services,3201,Oyster Training,06/01/2021,12068568," 1,000.00 ",Commissioned Training,Services
Southend-on-Sea Borough Council,http://www.opendatacommunities.org/id/unitary-authority/southend,ED Adults & Communities,Adult Social Care,1070,Palmerston Care Home,06/01/2021,12068568," 20,828.08 ",Private Contractors,Other Agencies
Southend-on-Sea Borough Council,http://www.opendatacommunities.org/id/unitary-authority/southend,ED Adults & Communities,Adult Social Care,1386,Partnerships In Care 1 Limited T/A Priory Group T/A Riverbank,06/01/2021,12068568," 3,069.08 ",Private Contractors,Other Agencies
Southend-on-Sea Borough Council,http://www.opendatacommunities.org/id/unitary-authority/southend,ED Adults & Communities,Adult Social Care,1260,Pathways Care Group Limited,06/01/2021,12068568," 3,673.04 ",Private Contractors,Other Agencies
Southend-on-Sea Borough Council,http://www.opendatacommunities.org/id/unitary-authority/southend,ED Adults & Communities,Adult Social Care,1386,Pathways Care Group Limited,06/01/2021,12068568," 3,908.24 ",Private Contractors,Other Agencies
Southend-on-Sea Borough Council,http://www.opendatacommunities.org/id/unitary-authority/southend,ED Children & Public Health,Children And Education Services,3250,Pathways Care Group Limited,06/01/2021,12068568," 16,728.04 ",Private Contractors,Other Agencies
Southend-on-Sea Borough Council,http://www.opendatacommunities.org/id/unitary-authority/southend,ED Children & Public Health,Children And Education Services,3250,Pathways Care Group Limited,06/01/2021,12068568," 16,728.04 ",Private Contractors,Other Agencies
Southend-on-Sea Borough Council,http://www.opendatacommunities.org/id/unitary-authority/southend,ED Children & Public Health,Children And Education Services,3250,Pathways Care Group Limited,06/01/2021,12068568," 23,028.57 ",Private Contractors,Other Agencies
Southend-on-Sea Borough Council,http://www.opendatacommunities.org/id/unitary-authority/southend,ED Adults & Communities,Adult Social Care,1079,Priory Supporting Care Ltd,06/01/2021,12068568," 2,520.00 ",Private Contractors,Other Agencies
Southend-on-Sea Borough Council,http://www.opendatacommunities.org/id/unitary-authority/southend,ED Transformation,Central Services,9012,Probrand Limited,06/01/2021,12068568," 290,189.60 ","Equipment, Furniture Fitting","Equipment, Furniture Fitting"
Southend-on-Sea Borough Council,http://www.opendatacommunities.org/id/unitary-authority/southend,ED Adults & Communities,Adult Social Care,1260,R G Care Ltd T/As Lifstan Way Ltd,06/01/2021,12068568," 4,536.84 ",Private Contractors,Other Agencies
Southend-on-Sea Borough Council,http://www.opendatacommunities.org/id/unitary-authority/southend,ED Adults & Communities,Adult Social Care,1386,R G Care Ltd T/As Lifstan Way Ltd,06/01/2021,12068568," 15,945.44 ",Private Contractors,Other Agencies
Southend-on-Sea Borough Council,http://www.opendatacommunities.org/id/unitary-authority/southend,ED Adults & Communities,Adult Social Care,1260,R G Care Ltd T/As Sands Lodge Residential Home,06/01/2021,12068568," 2,327.92 ",Private Contractors,Other Agencies
Southend-on-Sea Borough Council,http://www.opendatacommunities.org/id/unitary-authority/southend,ED Adults & Communities,Adult Social Care,1386,R G Care Ltd T/As Sands Lodge Residential Home,06/01/2021,12068568," 16,883.80 ",Private Contractors,Other Agencies
Southend-on-Sea Borough Council,http://www.opendatacommunities.org/id/unitary-authority/southend,ED Adults & Communities,Adult Social Care,1641,R G Care Ltd T/As Sands Lodge Residential Home,06/01/2021,12068568," 3,156.72 ",Private Contractors,Other Agencies
Southend-on-Sea Borough Council,http://www.opendatacommunities.org/id/unitary-authority/southend,ED Adults & Communities,Adult Social Care,1070,Randale Care Ltd,06/01/2021,12068568," 3,600.00 ",Private Contractors,Other Agencies
Southend-on-Sea Borough Council,http://www.opendatacommunities.org/id/unitary-authority/southend,ED Adults & Communities,Adult Social Care,1266,REDACTED PERSONAL DATA,06/01/2021,12068568, 728.28 ,Private Contractors,Other Agencies
Southend-on-Sea Borough Council,http://www.opendatacommunities.org/id/unitary-authority/southend,ED Adults & Communities,Adult Social Care,1266,REDACTED PERSONAL DATA,06/01/2021,12068568," 2,901.36 ",Private Contractors,Other Agencies
Southend-on-Sea Borough Council,http://www.opendatacommunities.org/id/unitary-authority/southend,ED Adults & Communities,Adult Social Care,1266,REDACTED PERSONAL DATA,06/01/2021,12068568," 2,990.68 ",Private Contractors,Other Agencies
Southend-on-Sea Borough Council,http://www.opendatacommunities.org/id/unitary-authority/southend,ED Adults & Communities,Adult Social Care,1266,REDACTED PERSONAL DATA,06/01/2021,12068568," 4,302.76 ",Private Contractors,Other Agencies
Southend-on-Sea Borough Council,http://www.opendatacommunities.org/id/unitary-authority/southend,ED Adults & Communities,Adult Social Care,1266,REDACTED PERSONAL DATA,06/01/2021,12068568," 1,063.75 ",Private Contractors,Other Agencies
Southend-on-Sea Borough Council,http://www.opendatacommunities.org/id/unitary-authority/southend,ED Adults & Communities,Adult Social Care,1266,REDACTED PERSONAL DATA,06/01/2021,12068568," 4,161.36 ",Private Contractors,Other Agencies
Southend-on-Sea Borough Council,http://www.opendatacommunities.org/id/unitary-authority/southend,ED Adults & Communities,Adult Social Care,1266,REDACTED PERSONAL DATA,06/01/2021,12068568," 1,295.00 ",Private Contractors,Other Agencies
Southend-on-Sea Borough Council,http://www.opendatacommunities.org/id/unitary-authority/southend,ED Adults & Communities,Adult Social Care,1266,REDACTED PERSONAL DATA,06/01/2021,12068568," 1,606.36 ",Private Contractors,Other Agencies
Southend-on-Sea Borough Council,http://www.opendatacommunities.org/id/unitary-authority/southend,ED Finance & Resources,Central Services,2182,REDACTED PERSONAL DATA,06/01/2021,12068568," 1,334.00 ",Grants,Grants And Subscriptions
Southend-on-Sea Borough Council,http://www.opendatacommunities.org/id/unitary-authority/southend,ED Finance & Resources,Central Services,2182,REDACTED PERSONAL DATA,06/01/2021,12068568," 1,334.00 ",Grants,Grants And Subscriptions
Southend-on-Sea Borough Council,http://www.opendatacommunities.org/id/unitary-authority/southend,ED Finance & Resources,Central Services,2182,REDACTED PERSONAL DATA,06/01/2021,12068568," 1,334.00 ",Grants,Grants And Subscriptions
Southend-on-Sea Borough Council,http://www.opendatacommunities.org/id/unitary-authority/southend,ED Adults & Communities,Adult Social Care,1266,REDACTED PERSONAL DATA,06/01/2021,12068568, 740.00 ,Private Contractors,Other Agencies
Southend-on-Sea Borough Council,http://www.opendatacommunities.org/id/unitary-authority/southend,ED Finance & Resources,Central Services,2182,REDACTED PERSONAL DATA,06/01/2021,12068568," 2,000.00 ",Grants,Grants And Subscriptions
Southend-on-Sea Borough Council,http://www.opendatacommunities.org/id/unitary-authority/southend,ED Adults & Communities,Adult Social Care,1266,REDACTED PERSONAL DATA,06/01/2021,12068568," 2,901.36 ",Private Contractors,Other Agencies
Southend-on-Sea Borough Council,http://www.opendatacommunities.org/id/unitary-authority/southend,ED Finance & Resources,Central Services,2182,REDACTED PERSONAL DATA,06/01/2021,12068568," 3,000.00 ",Grants,Grants And Subscriptions
Southend-on-Sea Borough Council,http://www.opendatacommunities.org/id/unitary-authority/southend,ED Adults & Communities,Adult Social Care,1266,REDACTED PERSONAL DATA,06/01/2021,12068568," 1,295.00 ",Private Contractors,Other Agencies
Southend-on-Sea Borough Council,http://www.opendatacommunities.org/id/unitary-authority/southend,ED Adults & Communities,Adult Social Care,1266,REDACTED PERSONAL DATA,06/01/2021,12068568," 1,295.00 ",Private Contractors,Other Agencies
Southend-on-Sea Borough Council,http://www.opendatacommunities.org/id/unitary-authority/southend,ED Adults & Communities,Adult Social Care,1266,REDACTED PERSONAL DATA,06/01/2021,12068568," 1,606.36 ",Private Contractors,Other Agencies
Southend-on-Sea Borough Council,http://www.opendatacommunities.org/id/unitary-authority/southend,ED Adults & Communities,Adult Social Care,1266,REDACTED PERSONAL DATA,06/01/2021,12068568," 1,559.60 ",Private Contractors,Other Agencies
Southend-on-Sea Borough Council,http://www.opendatacommunities.org/id/unitary-authority/southend,ED Adults & Communities,Adult Social Care,1266,REDACTED PERSONAL DATA,06/01/2021,12068568," 1,606.36 ",Private Contractors,Other Agencies
Southend-on-Sea Borough Council,http://www.opendatacommunities.org/id/unitary-authority/southend,ED Adults & Communities,Adult Social Care,1266,REDACTED PERSONAL DATA,06/01/2021,12068568," 1,839.04 ",Private Contractors,Other Agencies
Southend-on-Sea Borough Council,http://www.opendatacommunities.org/id/unitary-authority/southend,ED Adults & Communities,Adult Social Care,1672,REDACTED PERSONAL DATA,06/01/2021,12068568," 1,295.00 ",Private Contractors,Other Agencies
Southend-on-Sea Borough Council,http://www.opendatacommunities.org/id/unitary-authority/southend,ED Adults & Communities,Adult Social Care,1266,REDACTED PERSONAL DATA,06/01/2021,12068568," 3,919.72 ",Private Contractors,Other Agencies
Southend-on-Sea Borough Council,http://www.opendatacommunities.org/id/unitary-authority/southend,ED Adults & Communities,Adult Social Care,1266,REDACTED PERSONAL DATA,06/01/2021,12068568," 2,975.56 ",Private Contractors,Other Agencies
Southend-on-Sea Borough Council,http://www.opendatacommunities.org/id/unitary-authority/southend,ED Adults & Communities,Adult Social Care,1266,REDACTED PERSONAL DATA,06/01/2021,12068568," 4,819.08 ",Private Contractors,Other Agencies
Southend-on-Sea Borough Council,http://www.opendatacommunities.org/id/unitary-authority/southend,ED Children & Public Health,Children And Education Services,3201,REDACTED PERSONAL DATA,06/01/2021,12068568, 550.00 ,Commissioned Training,Services
Southend-on-Sea Borough Council,http://www.opendatacommunities.org/id/unitary-authority/southend,ED Adults & Communities,Adult Social Care,1266,REDACTED PERSONAL DATA,06/01/2021,12068568, 554.88 ,Private Contractors,Other Agencies
Southend-on-Sea Borough Council,http://www.opendatacommunities.org/id/unitary-authority/southend,ED Adults & Communities,Adult Social Care,1266,REDACTED PERSONAL DATA,06/01/2021,12068568, 609.28 ,Private Contractors,Other Agencies
Southend-on-Sea Borough Council,http://www.opendatacommunities.org/id/unitary-authority/southend,ED Adults & Communities,Adult Social Care,1266,REDACTED PERSONAL DATA,06/01/2021,12068568," 1,341.76 ",Private Contractors,Other Agencies
Southend-on-Sea Borough Council,http://www.opendatacommunities.org/id/unitary-authority/southend,ED Adults & Communities,Adult Social Care,1266,REDACTED PERSONAL DATA,06/01/2021,12068568," 2,080.68 ",Private Contractors,Other Agencies
Southend-on-Sea Borough Council,http://www.opendatacommunities.org/id/unitary-authority/southend,ED Adults & Communities,Adult Social Care,1266,REDACTED PERSONAL DATA,06/01/2021,12068568," 1,606.36 ",Private Contractors,Other Agencies
Southend-on-Sea Borough Council,http://www.opendatacommunities.org/id/unitary-authority/southend,ED Adults & Communities,Adult Social Care,1266,REDACTED PERSONAL DATA,06/01/2021,12068568," 2,901.36 ",Private Contractors,Other Agencies
Southend-on-Sea Borough Council,http://www.opendatacommunities.org/id/unitary-authority/southend,ED Adults & Communities,Adult Social Care,1260,REDACTED PERSONAL DATA,06/01/2021,12068568," 4,170.04 ",Private Contractors,Other Agencies
Southend-on-Sea Borough Council,http://www.opendatacommunities.org/id/unitary-authority/southend,ED Adults & Communities,Adult Social Care,1260,REDACTED PERSONAL DATA,06/01/2021,12068568," 10,096.52 ",Private Contractors,Other Agencies
Southend-on-Sea Borough Council,http://www.opendatacommunities.org/id/unitary-authority/southend,ED Finance & Resources,Central Services,2118,REDACTED PERSONAL DATA,06/01/2021,12068568, 500.00 ,Grants,Grants And Subscriptions
Southend-on-Sea Borough Council,http://www.opendatacommunities.org/id/unitary-authority/southend,ED Adults & Communities,Adult Social Care,1266,REDACTED PERSONAL DATA,06/01/2021,12068568," 3,600.00 ",Private Contractors,Other Agencies
Southend-on-Sea Borough Council,http://www.opendatacommunities.org/id/unitary-authority/southend,ED Adults & Communities,Adult Social Care,1266,REDACTED PERSONAL DATA,06/01/2021,12068568," 3,445.40 ",Private Contractors,Other Agencies
Southend-on-Sea Borough Council,http://www.opendatacommunities.org/id/unitary-authority/southend,ED Adults & Communities,Adult Social Care,1386,Reed Care Homes Ltd T/As Nayland Lodge,06/01/2021,12068568," 3,560.00 ",Private Contractors,Other Agencies
Southend-on-Sea Borough Council,http://www.opendatacommunities.org/id/unitary-authority/southend,ED Neighbourhoods & Environment,Central Services,9008,Ricardo-Aea Ltd,06/01/2021,12068568," 6,100.00 ",Consultant Fees,Consultant Fees
Southend-on-Sea Borough Council,http://www.opendatacommunities.org/id/unitary-authority/southend,ED Adults & Communities,Adult Social Care,1070,Rochcare (Uk) Limited T/A Coniston House,06/01/2021,12068568," 2,521.84 ",Private Contractors,Other Agencies
Southend-on-Sea Borough Council,http://www.opendatacommunities.org/id/unitary-authority/southend,ED Adults & Communities,Adult Social Care,1070,Rootcroft Ltd T/A West House,06/01/2021,12068568," 14,896.00 ",Private Contractors,Other Agencies
Southend-on-Sea Borough Council,http://www.opendatacommunities.org/id/unitary-authority/southend,ED Adults & Communities,Adult Social Care,1079,Rootcroft Ltd T/A West House,06/01/2021,12068568," 2,935.53 ",Private Contractors,Other Agencies
Southend-on-Sea Borough Council,http://www.opendatacommunities.org/id/unitary-authority/southend,ED Adults & Communities,Adult Social Care,1083,Rootcroft Ltd T/A West House,06/01/2021,12068568," 2,408.64 ",Private Contractors,Other Agencies
Southend-on-Sea Borough Council,http://www.opendatacommunities.org/id/unitary-authority/southend,ED Adults & Communities,Adult Social Care,1079,Royal Masonic Benevolent Institutions Care Company Number Four Account,06/01/2021,12068568," 2,328.00 ",Private Contractors,Other Agencies
Southend-on-Sea Borough Council,http://www.opendatacommunities.org/id/unitary-authority/southend,ED Adults & Communities,Adult Social Care,1294,Royal Mencap Society,06/01/2021,12068568," 6,765.08 ",Private Contractors,Other Agencies
Southend-on-Sea Borough Council,http://www.opendatacommunities.org/id/unitary-authority/southend,ED Adults & Communities,Adult Social Care,1294,Royal Mencap Society,06/01/2021,12068568," 2,338.56 ",Private Contractors,Other Agencies
Southend-on-Sea Borough Council,http://www.opendatacommunities.org/id/unitary-authority/southend,ED Adults & Communities,Adult Social Care,1294,Royal Mencap Society,06/01/2021,12068568," 7,080.82 ",Private Contractors,Other Agencies
Southend-on-Sea Borough Council,http://www.opendatacommunities.org/id/unitary-authority/southend,ED Adults & Communities,Adult Social Care,1675,Royal Mencap Society,06/01/2021,12068568," 3,038.84 ",Private Contractors,Other Agencies
Southend-on-Sea Borough Council,http://www.opendatacommunities.org/id/unitary-authority/southend,ED Adults & Communities,Adult Social Care,1675,Royal Mencap Society,06/01/2021,12068568," 11,933.08 ",Private Contractors,Other Agencies
Southend-on-Sea Borough Council,http://www.opendatacommunities.org/id/unitary-authority/southend,ED Adults & Communities,Adult Social Care,1294,Royal Mencap Society,06/01/2021,12068568," 1,146.32 ",Private Contractors,Other Agencies
Southend-on-Sea Borough Council,http://www.opendatacommunities.org/id/unitary-authority/southend,ED Adults & Communities,Adult Social Care,1294,Royal Mencap Society,06/01/2021,12068568," 10,813.20 ",Private Contractors,Other Agencies
Southend-on-Sea Borough Council,http://www.opendatacommunities.org/id/unitary-authority/southend,ED Adults & Communities,Adult Social Care,1260,Royal Mencap Society,06/01/2021,12068568," 5,365.36 ",Private Contractors,Other Agencies
Southend-on-Sea Borough Council,http://www.opendatacommunities.org/id/unitary-authority/southend,ED Adults & Communities,Adult Social Care,1070,Runwood Homes,06/01/2021,12068568," 4,495.68 ",Private Contractors,Other Agencies
Southend-on-Sea Borough Council,http://www.opendatacommunities.org/id/unitary-authority/southend,ED Adults & Communities,Adult Social Care,1070,Runwood Homes,06/01/2021,12068568," 22,360.54 ",Private Contractors,Other Agencies
Southend-on-Sea Borough Council,http://www.opendatacommunities.org/id/unitary-authority/southend,ED Adults & Communities,Adult Social Care,1079,Runwood Homes,06/01/2021,12068568," 10,384.49 ",Private Contractors,Other Agencies
Southend-on-Sea Borough Council,http://www.opendatacommunities.org/id/unitary-authority/southend,ED Adults & Communities,Adult Social Care,1260,Runwood Homes,06/01/2021,12068568," 1,934.24 ",Private Contractors,Other Agencies
Southend-on-Sea Borough Council,http://www.opendatacommunities.org/id/unitary-authority/southend,ED Adults & Communities,Adult Social Care,1641,Runwood Homes,06/01/2021,12068568," 1,969.80 ",Private Contractors,Other Agencies
Southend-on-Sea Borough Council,http://www.opendatacommunities.org/id/unitary-authority/southend,ED Adults & Communities,Adult Social Care,1070,Runwood Homes,06/01/2021,12068568," 25,230.25 ",Private Contractors,Other Agencies
Southend-on-Sea Borough Council,http://www.opendatacommunities.org/id/unitary-authority/southend,ED Adults & Communities,Adult Social Care,1079,Runwood Homes,06/01/2021,12068568," 8,600.76 ",Private Contractors,Other Agencies
Southend-on-Sea Borough Council,http://www.opendatacommunities.org/id/unitary-authority/southend,ED Adults & Communities,Adult Social Care,1083,Runwood Homes,06/01/2021,12068568," 3,169.71 ",Private Contractors,Other Agencies
Southend-on-Sea Borough Council,http://www.opendatacommunities.org/id/unitary-authority/southend,ED Adults & Communities,Adult Social Care,1192,Runwood Homes,06/01/2021,12068568," 2,163.84 ",Private Contractors,Other Agencies
Southend-on-Sea Borough Council,http://www.opendatacommunities.org/id/unitary-authority/southend,ED Adults & Communities,Adult Social Care,1070,Runwood Homes,06/01/2021,12068568," 8,413.28 ",Private Contractors,Other Agencies
Southend-on-Sea Borough Council,http://www.opendatacommunities.org/id/unitary-authority/southend,ED Adults & Communities,Adult Social Care,1070,Runwood Homes,06/01/2021,12068568," 1,749.44 ",Private Contractors,Other Agencies
Southend-on-Sea Borough Council,http://www.opendatacommunities.org/id/unitary-authority/southend,ED Adults & Communities,Adult Social Care,1079,Runwood Homes,06/01/2021,12068568," 2,171.68 ",Private Contractors,Other Agencies
Southend-on-Sea Borough Council,http://www.opendatacommunities.org/id/unitary-authority/southend,ED Adults & Communities,Adult Social Care,1070,Runwood Homes,06/01/2021,12068568," 2,340.32 ",Private Contractors,Other Agencies
Southend-on-Sea Borough Council,http://www.opendatacommunities.org/id/unitary-authority/southend,ED Adults & Communities,Adult Social Care,1070,Runwood Homes,06/01/2021,12068568," 21,468.96 ",Private Contractors,Other Agencies
Southend-on-Sea Borough Council,http://www.opendatacommunities.org/id/unitary-authority/southend,ED Adults & Communities,Adult Social Care,1386,S B Care Ltd,06/01/2021,12068568," 10,165.00 ",Private Contractors,Other Agencies
Southend-on-Sea Borough Council,http://www.opendatacommunities.org/id/unitary-authority/southend,ED Finance & Resources,Central Services,2027,Salford City Council General Fund,06/01/2021,12068568," 10,000.00 ",Subscriptions,Grants And Subscriptions
Southend-on-Sea Borough Council,http://www.opendatacommunities.org/id/unitary-authority/southend,ED Adults & Communities,Adult Social Care,1070,Salvation Army,06/01/2021,12068568," 30,293.46 ",Private Contractors,Other Agencies
Southend-on-Sea Borough Council,http://www.opendatacommunities.org/id/unitary-authority/southend,ED Adults & Communities,Adult Social Care,1070,Sanctuary Care Ltd,06/01/2021,12068568," 2,085.72 ",Private Contractors,Other Agencies
Southend-on-Sea Borough Council,http://www.opendatacommunities.org/id/unitary-authority/southend,ED Adults & Communities,Adult Social Care,1641,Sanctuary Care Property (2) Limited - Collection Account T/A Hatfield Residential Care Home,06/01/2021,12068568," 2,117.60 ",Private Contractors,Other Agencies
Southend-on-Sea Borough Council,http://www.opendatacommunities.org/id/unitary-authority/southend,ED Adults & Communities,Adult Social Care,1294,Sas Support & Solutions Limited,06/01/2021,12068568," 8,808.12 ",Private Contractors,Other Agencies
Southend-on-Sea Borough Council,http://www.opendatacommunities.org/id/unitary-authority/southend,ED Adults & Communities,Adult Social Care,1260,Saturn Healthcare Holdings Ltd T/A Brett Vale Residential Home,06/01/2021,12068568," 9,201.36 ",Private Contractors,Other Agencies
Southend-on-Sea Borough Council,http://www.opendatacommunities.org/id/unitary-authority/southend,ED Legal & Democratic Services,Central Services,7105,Sharpe Pritchard,06/01/2021,12068568," 4,112.00 ",Court Costs And Legal Fees,Services
Southend-on-Sea Borough Council,http://www.opendatacommunities.org/id/unitary-authority/southend,ED Adults & Communities,Adult Social Care,1070,Southend Blind Welfare Organisation,06/01/2021,12068568," 5,749.52 ",Private Contractors,Other Agencies
Southend-on-Sea Borough Council,http://www.opendatacommunities.org/id/unitary-authority/southend,ED Adults & Communities,Adult Social Care,1070,Southend On Sea Darby & Joan Organisation,06/01/2021,12068568," 16,726.60 ",Private Contractors,Other Agencies
Southend-on-Sea Borough Council,http://www.opendatacommunities.org/id/unitary-authority/southend,ED Adults & Communities,Adult Social Care,1079,Southend On Sea Darby & Joan Organisation,06/01/2021,12068568," 9,308.88 ",Private Contractors,Other Agencies
Southend-on-Sea Borough Council,http://www.opendatacommunities.org/id/unitary-authority/southend,ED Adults & Communities,Adult Social Care,1176,Southend On Sea Darby & Joan Organisation,06/01/2021,12068568," 2,356.00 ",Private Contractors,Other Agencies
Southend-on-Sea Borough Council,http://www.opendatacommunities.org/id/unitary-authority/southend,ED Adults & Communities,Adult Social Care,1581,Southend On Sea Darby & Joan Organisation,06/01/2021,12068568," 2,324.56 ",Private Contractors,Other Agencies
Southend-on-Sea Borough Council,http://www.opendatacommunities.org/id/unitary-authority/southend,ED Adults & Communities,Adult Social Care,1641,Southend On Sea Darby & Joan Organisation,06/01/2021,12068568," 2,324.00 ",Private Contractors,Other Agencies
Southend-on-Sea Borough Council,http://www.opendatacommunities.org/id/unitary-authority/southend,ED Adults & Communities,Adult Social Care,1070,Southend On Sea Darby & Joan Organisation,06/01/2021,12068568," 11,875.04 ",Private Contractors,Other Agencies
Southend-on-Sea Borough Council,http://www.opendatacommunities.org/id/unitary-authority/southend,ED Adults & Communities,Adult Social Care,1083,Southend On Sea Darby & Joan Organisation,06/01/2021,12068568," 1,986.00 ",Private Contractors,Other Agencies
Southend-on-Sea Borough Council,http://www.opendatacommunities.org/id/unitary-authority/southend,ED Adults & Communities,Adult Social Care,1294,Spotlight Healthcare Services Limited,06/01/2021,12068568," 20,363.84 ",Private Contractors,Other Agencies
Southend-on-Sea Borough Council,http://www.opendatacommunities.org/id/unitary-authority/southend,ED Adults & Communities,Adult Social Care,1294,Spotlight Healthcare Services Limited,06/01/2021,12068568," 19,868.60 ",Private Contractors,Other Agencies
Southend-on-Sea Borough Council,http://www.opendatacommunities.org/id/unitary-authority/southend,ED Adults & Communities,Adult Social Care,1391,Spotlight Healthcare Services Limited,06/01/2021,12068568," 6,431.88 ",Private Contractors,Other Agencies
Southend-on-Sea Borough Council,http://www.opendatacommunities.org/id/unitary-authority/southend,ED Adults & Communities,Adult Social Care,1294,Spotlight Healthcare Services Limited,06/01/2021,12068568," 3,252.00 ",Private Contractors,Other Agencies
Southend-on-Sea Borough Council,http://www.opendatacommunities.org/id/unitary-authority/southend,ED Adults & Communities,Adult Social Care,1070,St Ediths Court,06/01/2021,12068568," 3,185.05 ",Private Contractors,Other Agencies
Southend-on-Sea Borough Council,http://www.opendatacommunities.org/id/unitary-authority/southend,ED Adults & Communities,Adult Social Care,1294,Summercare Homes Ltd,06/01/2021,12068568," 13,451.20 ",Private Contractors,Other Agencies
Southend-on-Sea Borough Council,http://www.opendatacommunities.org/id/unitary-authority/southend,ED Adults & Communities,Adult Social Care,1675,Summercare Homes Ltd,06/01/2021,12068568, 654.76 ,Private Contractors,Other Agencies
Southend-on-Sea Borough Council,http://www.opendatacommunities.org/id/unitary-authority/southend,ED Adults & Communities,Adult Social Care,1294,Summercare Homes Ltd,06/01/2021,12068568," 6,840.40 ",Private Contractors,Other Agencies
Southend-on-Sea Borough Council,http://www.opendatacommunities.org/id/unitary-authority/southend,ED Adults & Communities,Adult Social Care,1675,Summercare Homes Ltd,06/01/2021,12068568, 561.12 ,Private Contractors,Other Agencies
Southend-on-Sea Borough Council,http://www.opendatacommunities.org/id/unitary-authority/southend,ED Adults & Communities,Adult Social Care,1294,Summercare Homes Ltd,06/01/2021,12068568," 1,457.12 ",Private Contractors,Other Agencies
Southend-on-Sea Borough Council,http://www.opendatacommunities.org/id/unitary-authority/southend,ED Adults & Communities,Adult Social Care,1260,Summercare Homes Ltd,06/01/2021,12068568," 9,772.56 ",Private Contractors,Other Agencies
Southend-on-Sea Borough Council,http://www.opendatacommunities.org/id/unitary-authority/southend,ED Adults & Communities,Adult Social Care,1671,Summercare Homes Ltd,06/01/2021,12068568," 2,570.12 ",Private Contractors,Other Agencies
Southend-on-Sea Borough Council,http://www.opendatacommunities.org/id/unitary-authority/southend,ED Adults & Communities,Adult Social Care,1260,Summercare Homes Ltd,06/01/2021,12068568," 14,255.08 ",Private Contractors,Other Agencies
Southend-on-Sea Borough Council,http://www.opendatacommunities.org/id/unitary-authority/southend,ED Adults & Communities,Adult Social Care,1260,Summercare Homes Ltd,06/01/2021,12068568," 3,123.96 ",Private Contractors,Other Agencies
Southend-on-Sea Borough Council,http://www.opendatacommunities.org/id/unitary-authority/southend,ED Adults & Communities,Adult Social Care,1260,Summercare Homes Ltd,06/01/2021,12068568," 11,777.36 ",Private Contractors,Other Agencies
Southend-on-Sea Borough Council,http://www.opendatacommunities.org/id/unitary-authority/southend,ED Children & Public Health,Children And Education Services,3250,Swaay Child And Adolescent Services Ltd,06/01/2021,12068568," 19,419.40 ",Private Contractors,Other Agencies
Southend-on-Sea Borough Council,http://www.opendatacommunities.org/id/unitary-authority/southend,ED Neighbourhoods & Environment,Cultural and Related Services,7505,Tacit Golf Llp,06/01/2021,12068568, 519.00 ,Materials,Equipment Furniture And Materials
Southend-on-Sea Borough Council,http://www.opendatacommunities.org/id/unitary-authority/southend,ED Adults & Communities,Adult Social Care,1391,The Beach House,06/01/2021,12068568," 5,902.12 ",Private Contractors,Other Agencies
Southend-on-Sea Borough Council,http://www.opendatacommunities.org/id/unitary-authority/southend,ED Children & Public Health,Children And Education Services,3491,The Cobham Hotel,06/01/2021,12068568, 595.00 ,3rd Party Payments - Board & Lodgings,Other Agencies
Southend-on-Sea Borough Council,http://www.opendatacommunities.org/id/unitary-authority/southend,ED Children & Public Health,Children And Education Services,3491,The Cobham Hotel,06/01/2021,12068568, 595.00 ,3rd Party Payments - Board & Lodgings,Other Agencies
Southend-on-Sea Borough Council,http://www.opendatacommunities.org/id/unitary-authority/southend,ED Adults & Communities,Adult Social Care,1260,The Home Farm Trust,06/01/2021,12068568," 2,331.00 ",Private Contractors,Other Agencies
Southend-on-Sea Borough Council,http://www.opendatacommunities.org/id/unitary-authority/southend,ED Adults & Communities,Adult Social Care,1260,The Home Farm Trust,06/01/2021,12068568," 5,267.92 ",Private Contractors,Other Agencies
Southend-on-Sea Borough Council,http://www.opendatacommunities.org/id/unitary-authority/southend,ED Children & Public Health,Children And Education Services,3201,The Improvement & Development Agency Current Account,06/01/2021,12068568," 8,400.00 ",Commissioned Training,Services
Southend-on-Sea Borough Council,http://www.opendatacommunities.org/id/unitary-authority/southend,ED Adults & Communities,Adult Social Care,1070,The Lilacs Rest Home,06/01/2021,12068568," 10,537.80 ",Private Contractors,Other Agencies
Southend-on-Sea Borough Council,http://www.opendatacommunities.org/id/unitary-authority/southend,ED Adults & Communities,Adult Social Care,1083,The Lilacs Rest Home,06/01/2021,12068568," 3,161.34 ",Private Contractors,Other Agencies
Southend-on-Sea Borough Council,http://www.opendatacommunities.org/id/unitary-authority/southend,ED Adults & Communities,Adult Social Care,1671,The National Society For Epilepsy,06/01/2021,12068568," 4,524.00 ",Private Contractors,Other Agencies
Southend-on-Sea Borough Council,http://www.opendatacommunities.org/id/unitary-authority/southend,ED Adults & Communities,Adult Social Care,1145,The Peaceful Place,06/01/2021,12068568, 900.00 ,Private Contractors,Other Agencies
Southend-on-Sea Borough Council,http://www.opendatacommunities.org/id/unitary-authority/southend,ED Adults & Communities,Adult Social Care,1210,The Peaceful Place,06/01/2021,12068568, 825.00 ,Private Contractors,Other Agencies
Southend-on-Sea Borough Council,http://www.opendatacommunities.org/id/unitary-authority/southend,ED Adults & Communities,Adult Social Care,1260,The Regard Partnership Ltd,06/01/2021,12068568," 17,844.00 ",Private Contractors,Other Agencies
Southend-on-Sea Borough Council,http://www.opendatacommunities.org/id/unitary-authority/southend,ED Adults & Communities,Adult Social Care,1070,The Strathmore Care Group,06/01/2021,12068568," 17,283.72 ",Private Contractors,Other Agencies
Southend-on-Sea Borough Council,http://www.opendatacommunities.org/id/unitary-authority/southend,ED Adults & Communities,Adult Social Care,1079,The Strathmore Care Group,06/01/2021,12068568,"-2,586.95 ",Private Contractors,Other Agencies
Southend-on-Sea Borough Council,http://www.opendatacommunities.org/id/unitary-authority/southend,ED Adults & Communities,Adult Social Care,1083,The Strathmore Care Group,06/01/2021,12068568," 3,612.96 ",Private Contractors,Other Agencies
Southend-on-Sea Borough Council,http://www.opendatacommunities.org/id/unitary-authority/southend,ED Adults & Communities,Adult Social Care,1165,The Strathmore Care Group,06/01/2021,12068568," 4,064.58 ",COVID-19 Response,Other Agencies
Southend-on-Sea Borough Council,http://www.opendatacommunities.org/id/unitary-authority/southend,ED Adults & Communities,Adult Social Care,1070,The Strathmore Care Group,06/01/2021,12068568," 39,011.43 ",Private Contractors,Other Agencies
Southend-on-Sea Borough Council,http://www.opendatacommunities.org/id/unitary-authority/southend,ED Adults & Communities,Adult Social Care,1079,The Strathmore Care Group,06/01/2021,12068568," 4,215.12 ",Private Contractors,Other Agencies
Southend-on-Sea Borough Council,http://www.opendatacommunities.org/id/unitary-authority/southend,ED Adults & Communities,Adult Social Care,1083,The Strathmore Care Group,06/01/2021,12068568," 16,875.63 ",Private Contractors,Other Agencies
Southend-on-Sea Borough Council,http://www.opendatacommunities.org/id/unitary-authority/southend,ED Adults & Communities,Adult Social Care,1192,The Strathmore Care Group,06/01/2021,12068568," 8,430.24 ",Private Contractors,Other Agencies
Southend-on-Sea Borough Council,http://www.opendatacommunities.org/id/unitary-authority/southend,ED Adults & Communities,Adult Social Care,1581,The Strathmore Care Group,06/01/2021,12068568," 4,215.12 ",Private Contractors,Other Agencies
Southend-on-Sea Borough Council,http://www.opendatacommunities.org/id/unitary-authority/southend,ED Adults & Communities,Adult Social Care,1641,The Strathmore Care Group,06/01/2021,12068568," 4,215.12 ",Private Contractors,Other Agencies
Southend-on-Sea Borough Council,http://www.opendatacommunities.org/id/unitary-authority/southend,ED Adults & Communities,Adult Social Care,1260,Tlc Care Homes Ltd,06/01/2021,12068568," 4,977.56 ",Private Contractors,Other Agencies
Southend-on-Sea Borough Council,http://www.opendatacommunities.org/id/unitary-authority/southend,ED Adults & Communities,Adult Social Care,1105,Trends Healthcare Ltd,06/01/2021,12068568," 1,424.51 ",COVID-19 Response,Other Agencies
Southend-on-Sea Borough Council,http://www.opendatacommunities.org/id/unitary-authority/southend,ED Adults & Communities,Adult Social Care,1079,Umika Trading Ltd T/A Stafford Court Care Home,06/01/2021,12068568," 1,923.32 ",Private Contractors,Other Agencies
Southend-on-Sea Borough Council,http://www.opendatacommunities.org/id/unitary-authority/southend,ED Adults & Communities,Adult Social Care,1450,Vibrance,06/01/2021,12068568," 14,244.00 ",Other Agencies,Other Agencies
Southend-on-Sea Borough Council,http://www.opendatacommunities.org/id/unitary-authority/southend,ED Adults & Communities,Adult Social Care,1070,Victoria Court Rest Home,06/01/2021,12068568," 8,778.00 ",Private Contractors,Other Agencies
Southend-on-Sea Borough Council,http://www.opendatacommunities.org/id/unitary-authority/southend,ED Adults & Communities,Adult Social Care,1079,Victoria Court Rest Home,06/01/2021,12068568," 2,712.92 ",Private Contractors,Other Agencies
Southend-on-Sea Borough Council,http://www.opendatacommunities.org/id/unitary-authority/southend,ED Adults & Communities,Adult Social Care,1083,Victoria Court Rest Home,06/01/2021,12068568," 10,236.72 ",Private Contractors,Other Agencies
Southend-on-Sea Borough Council,http://www.opendatacommunities.org/id/unitary-authority/southend,ED Adults & Communities,Adult Social Care,1260,Victoria Court Rest Home,06/01/2021,12068568, 602.16 ,Private Contractors,Other Agencies
Southend-on-Sea Borough Council,http://www.opendatacommunities.org/id/unitary-authority/southend,ED Adults & Communities,Adult Social Care,1641,Victoria Court Rest Home,06/01/2021,12068568," 2,107.56 ",Private Contractors,Other Agencies
Southend-on-Sea Borough Council,http://www.opendatacommunities.org/id/unitary-authority/southend,ED Adults & Communities,Adult Social Care,1671,Victoria Court Rest Home,06/01/2021,12068568," 4,823.84 ",Private Contractors,Other Agencies
Southend-on-Sea Borough Council,http://www.opendatacommunities.org/id/unitary-authority/southend,ED Adults & Communities,Adult Social Care,1070,Vital Balance Ltd T/A Bank Close House,06/01/2021,12068568," 2,345.56 ",Private Contractors,Other Agencies
Southend-on-Sea Borough Council,http://www.opendatacommunities.org/id/unitary-authority/southend,ED Adults & Communities,Adult Social Care,1260,Voyage Care,06/01/2021,12068568," 6,664.28 ",Private Contractors,Other Agencies
Southend-on-Sea Borough Council,http://www.opendatacommunities.org/id/unitary-authority/southend,ED Adults & Communities,Adult Social Care,1070,Westcliff Lodge,06/01/2021,12068568," 15,587.04 ",Private Contractors,Other Agencies
Southend-on-Sea Borough Council,http://www.opendatacommunities.org/id/unitary-authority/southend,ED Adults & Communities,Adult Social Care,1083,Westcliff Lodge,06/01/2021,12068568," 4,742.01 ",Private Contractors,Other Agencies
Southend-on-Sea Borough Council,http://www.opendatacommunities.org/id/unitary-authority/southend,ED Adults & Communities,Adult Social Care,1641,Westcliff Lodge,06/01/2021,12068568," 2,107.56 ",Private Contractors,Other Agencies
Southend-on-Sea Borough Council,http://www.opendatacommunities.org/id/unitary-authority/southend,ED Adults & Communities,Adult Social Care,1070,Westminster House,06/01/2021,12068568," 5,647.36 ",Private Contractors,Other Agencies
Southend-on-Sea Borough Council,http://www.opendatacommunities.org/id/unitary-authority/southend,ED Growth & Housing,Housing Services,9005,Wheeldon And Deacon,06/01/2021,12068568, 700.00 ,Surveyors Fees,Surveyors Fees
Southend-on-Sea Borough Council,http://www.opendatacommunities.org/id/unitary-authority/southend,ED Growth & Housing,Housing Services,9005,Wheeldon And Deacon,06/01/2021,12068568, 700.00 ,Surveyors Fees,Surveyors Fees
Southend-on-Sea Borough Council,http://www.opendatacommunities.org/id/unitary-authority/southend,ED Growth & Housing,Housing Services,9005,Wheeldon And Deacon,06/01/2021,12068568, 700.00 ,Surveyors Fees,Surveyors Fees
Southend-on-Sea Borough Council,http://www.opendatacommunities.org/id/unitary-authority/southend,ED Growth & Housing,Housing Services,9005,Wheeldon And Deacon,06/01/2021,12068568, 700.00 ,Surveyors Fees,Surveyors Fees
Southend-on-Sea Borough Council,http://www.opendatacommunities.org/id/unitary-authority/southend,ED Adults & Communities,Adult Social Care,9010,Wifigear Limited T/A Digitalair Wireless Networks,06/01/2021,12068568," 2,400.00 ",Other Expenses,Other Expenses
Southend-on-Sea Borough Council,http://www.opendatacommunities.org/id/unitary-authority/southend,ED Adults & Communities,Adult Social Care,1070,Windermere Rest Home,06/01/2021,12068568," 17,772.96 ",Private Contractors,Other Agencies
Southend-on-Sea Borough Council,http://www.opendatacommunities.org/id/unitary-authority/southend,ED Adults & Communities,Adult Social Care,1391,York Lodge Limited,06/01/2021,12068568, 775.88 ,Private Contractors,Other Agencies
Southend-on-Sea Borough Council,http://www.opendatacommunities.org/id/unitary-authority/southend,ED Neighbourhoods & Environment,Environmental And Regulatory Services,4535,(G) Eurovia Infrastructure Limited,08/01/2021,12068596," 1,910.89 ",Tools And Equipment Repair And Maintenance,Equipment Furniture And Materials
Southend-on-Sea Borough Council,http://www.opendatacommunities.org/id/unitary-authority/southend,ED Growth & Housing,Housing Services,9005,(G) Gracelands Cms Ltd,08/01/2021,12068596," 14,311.80 ",Contractors General,Contractors General
Southend-on-Sea Borough Council,http://www.opendatacommunities.org/id/unitary-authority/southend,ED Adults & Communities,Adult Social Care,1325,(G) Mde Power Ltd,08/01/2021,12068596, 505.17 ,Repairs And Maintenance Contracts,"Repairs, alterations and maintenance of buildings"
Southend-on-Sea Borough Council,http://www.opendatacommunities.org/id/unitary-authority/southend,ED Neighbourhoods & Environment,Central Services,9008,(G) Nr Shared Services Control Account T/A Network Rail Infrastructure Ltd,08/01/2021,12068596," 4,077.04 ",Main Contractor,Main Contractor
Southend-on-Sea Borough Council,http://www.opendatacommunities.org/id/unitary-authority/southend,ED Adults & Communities,Cultural And Related Services,4045,(G) Powertecnique Ltd,08/01/2021,12068596," 1,452.00 ",Repairs And Maintenance Contracts,"Repairs, alterations and maintenance of buildings"
Southend-on-Sea Borough Council,http://www.opendatacommunities.org/id/unitary-authority/southend,ED Transformation,Central Services,8602,(G) Vodafone Ltd,08/01/2021,12068596," 1,460.03 ",Corporate IT Security,Communications And Computing
Southend-on-Sea Borough Council,http://www.opendatacommunities.org/id/unitary-authority/southend,ED Adults & Communities,Adult Social Care,9010,(N) Ccr Property Services Ltd,08/01/2021,12068596," 4,392.00 ",Main Contractor,Main Contractor
Southend-on-Sea Borough Council,http://www.opendatacommunities.org/id/unitary-authority/southend,ED Adults & Communities,Cultural And Related Services,4065,(N) Ccr Property Services Ltd,08/01/2021,12068596, 721.72 ,Repairs And Maintenance Contracts,"Repairs, alterations and maintenance of buildings"
Southend-on-Sea Borough Council,http://www.opendatacommunities.org/id/unitary-authority/southend,ED Adults & Communities,Adult Social Care,1209,(N) Chiltern Invadex (Uk) Ltd,08/01/2021,12068596, 675.00 ,Tools And Equipment Purchase,Equipment Furniture And Materials
Southend-on-Sea Borough Council,http://www.opendatacommunities.org/id/unitary-authority/southend,ED Neighbourhoods & Environment,Central Services,9008,(N) Impact Utilities Limited,08/01/2021,12068596," 22,974.24 ",Main Contractor,Main Contractor
Southend-on-Sea Borough Council,http://www.opendatacommunities.org/id/unitary-authority/southend,ED Finance & Resources,Cultural And Related Services,4095,369 Marketing Ltd,08/01/2021,12068596, 868.66 ,Tools And Equipment Purchase,Equipment Furniture And Materials
Southend-on-Sea Borough Council,http://www.opendatacommunities.org/id/unitary-authority/southend,ED Legal & Democratic Services,Central Services,7105,42 Bedford Row No. 2 Account T/A Mathew Mcdermott,08/01/2021,12068596," 1,500.00 ",Barristers fees,Services
Southend-on-Sea Borough Council,http://www.opendatacommunities.org/id/unitary-authority/southend,ED Children & Public Health,Children And Education Services,3250,Acorn Homes (Uk) Ltd,08/01/2021,12068596," 14,400.12 ",Private Contractors,Other Agencies
Southend-on-Sea Borough Council,http://www.opendatacommunities.org/id/unitary-authority/southend,ED Growth & Housing,Planning Services,5638,Additta Ltd,08/01/2021,12068596," 2,960.11 ",Grants,Grants And Subscriptions
Southend-on-Sea Borough Council,http://www.opendatacommunities.org/id/unitary-authority/southend,ED Neighbourhoods & Environment,Environmental And Regulatory Services,4525,Afi Uplift Ltd,08/01/2021,12068596," 1,000.00 ",Training Expenses,Indirect Employee Expenses
Southend-on-Sea Borough Council,http://www.opendatacommunities.org/id/unitary-authority/southend,ED Neighbourhoods & Environment,Environmental And Regulatory Services,4525,Afi Uplift Ltd,08/01/2021,12068596, 750.00 ,Training Expenses,Indirect Employee Expenses
Southend-on-Sea Borough Council,http://www.opendatacommunities.org/id/unitary-authority/southend,ED Neighbourhoods & Environment,Environmental And Regulatory Services,4525,Afi Uplift Ltd,08/01/2021,12068596, 500.00 ,Training Expenses,Indirect Employee Expenses
Southend-on-Sea Borough Council,http://www.opendatacommunities.org/id/unitary-authority/southend,ED Adults & Communities,Adult Social Care,1105,Angel Solutions Community Care,08/01/2021,12068596, 516.80 ,Private Contractors,Other Agencies
Southend-on-Sea Borough Council,http://www.opendatacommunities.org/id/unitary-authority/southend,ED Adults & Communities,Adult Social Care,1105,Angel Solutions Community Care,08/01/2021,12068596, 500.85 ,Private Contractors,Other Agencies
Southend-on-Sea Borough Council,http://www.opendatacommunities.org/id/unitary-authority/southend,ED Adults & Communities,Adult Social Care,1105,Angel Solutions Community Care,08/01/2021,12068596, 516.80 ,Private Contractors,Other Agencies
Southend-on-Sea Borough Council,http://www.opendatacommunities.org/id/unitary-authority/southend,ED Adults & Communities,Adult Social Care,1105,Angel Solutions Community Care,08/01/2021,12068596, 500.85 ,Private Contractors,Other Agencies
Southend-on-Sea Borough Council,http://www.opendatacommunities.org/id/unitary-authority/southend,ED Adults & Communities,Adult Social Care,1105,Angel Solutions Community Care,08/01/2021,12068596, 500.85 ,Private Contractors,Other Agencies
Southend-on-Sea Borough Council,http://www.opendatacommunities.org/id/unitary-authority/southend,ED Adults & Communities,Adult Social Care,1105,Angel Solutions Community Care,08/01/2021,12068596, 500.85 ,Private Contractors,Other Agencies
Southend-on-Sea Borough Council,http://www.opendatacommunities.org/id/unitary-authority/southend,ED Adults & Communities,Adult Social Care,1105,Angel Solutions Community Care,08/01/2021,12068596, 516.80 ,Private Contractors,Other Agencies
Southend-on-Sea Borough Council,http://www.opendatacommunities.org/id/unitary-authority/southend,ED Children & Public Health,Children And Education Services,3201,Anglia Ruskin University,08/01/2021,12068596," 14,500.00 ",Commissioned Training,Services
Southend-on-Sea Borough Council,http://www.opendatacommunities.org/id/unitary-authority/southend,ED Adults & Communities,Adult Social Care,1105,Ashley Community Care Services Ltd T/A Ashley Care,08/01/2021,12068596," 13,503.90 ",Private Contractors,Other Agencies
Southend-on-Sea Borough Council,http://www.opendatacommunities.org/id/unitary-authority/southend,ED Adults & Communities,Adult Social Care,1108,Ashley Community Care Services Ltd T/A Ashley Care,08/01/2021,12068596, 584.33 ,Private Contractors,Other Agencies
Southend-on-Sea Borough Council,http://www.opendatacommunities.org/id/unitary-authority/southend,ED Adults & Communities,Adult Social Care,1205,Ashley Community Care Services Ltd T/A Ashley Care,08/01/2021,12068596," 2,134.64 ",Private Contractors,Other Agencies
Southend-on-Sea Borough Council,http://www.opendatacommunities.org/id/unitary-authority/southend,ED Adults & Communities,Adult Social Care,1115,Ashley Community Care Services Ltd T/A Ashley Care,08/01/2021,12068596, 619.55 ,Contractor - Programmed Works,Other Agencies
Southend-on-Sea Borough Council,http://www.opendatacommunities.org/id/unitary-authority/southend,ED Adults & Communities,Adult Social Care,1165,Ashley Community Care Services Ltd T/A Ashley Care,08/01/2021,12068596," 2,863.62 ",COVID-19 Response,Other Agencies
Southend-on-Sea Borough Council,http://www.opendatacommunities.org/id/unitary-authority/southend,ED Growth & Housing,Growth & Housing,9007,Atg Access Ltd,08/01/2021,12068596," 1,620.00 ",S106 Highway/Transport Expend,S106 Highway/Transport Expend
Southend-on-Sea Borough Council,http://www.opendatacommunities.org/id/unitary-authority/southend,ED Children & Public Health,Children And Education Services,3590,Attenti Ltd,08/01/2021,12068596," 1,443.00 ",Agency Staff,Direct Employee Expenses
Southend-on-Sea Borough Council,http://www.opendatacommunities.org/id/unitary-authority/southend,ED Adults & Communities,Cultural And Related Services,4120,Biffa Waste Services Ltd,08/01/2021,12068596," 1,339.80 ",Waste Management,Cleaning And Domestic Supplies
Southend-on-Sea Borough Council,http://www.opendatacommunities.org/id/unitary-authority/southend,ED Finance & Resources,Central Services,7140,Biffa Waste Services Ltd,08/01/2021,12068596, 734.03 ,Waste Management,Cleaning And Domestic Supplies
Southend-on-Sea Borough Council,http://www.opendatacommunities.org/id/unitary-authority/southend,ED Adults & Communities,Adult Social Care,1105,Brooks Care & Nursing Services Ltd,08/01/2021,12068596," 5,298.04 ",Private Contractors,Other Agencies
Southend-on-Sea Borough Council,http://www.opendatacommunities.org/id/unitary-authority/southend,ED Adults & Communities,Adult Social Care,1165,Brooks Care & Nursing Services Ltd,08/01/2021,12068596, 521.06 ,COVID-19 Response,Other Agencies
Southend-on-Sea Borough Council,http://www.opendatacommunities.org/id/unitary-authority/southend,ED Adults & Communities,Adult Social Care,1105,Caring Carers Ltd,08/01/2021,12068596," 6,958.35 ",Private Contractors,Other Agencies
Southend-on-Sea Borough Council,http://www.opendatacommunities.org/id/unitary-authority/southend,ED Adults & Communities,Adult Social Care,1205,Caring Carers Ltd,08/01/2021,12068596," 1,732.46 ",Private Contractors,Other Agencies
Southend-on-Sea Borough Council,http://www.opendatacommunities.org/id/unitary-authority/southend,ED Adults & Communities,Adult Social Care,1165,Caring Carers Ltd,08/01/2021,12068596, 870.47 ,COVID-19 Response,Other Agencies
Southend-on-Sea Borough Council,http://www.opendatacommunities.org/id/unitary-authority/southend,ED Children & Public Health,Children And Education Services,3183,Carole Brooks Associates Ltd,08/01/2021,12068596," 5,994.00 ",Consultancy Services,Services
Southend-on-Sea Borough Council,http://www.opendatacommunities.org/id/unitary-authority/southend,ED Adults & Communities,Housing Services,6011,Cast Communities And Sanctuary Seekers Together,08/01/2021,12068596, 552.00 ,COVID-19 Response,Other Agencies
Southend-on-Sea Borough Council,http://www.opendatacommunities.org/id/unitary-authority/southend,ED Adults & Communities,Housing Services,6011,Cast Communities And Sanctuary Seekers Together,08/01/2021,12068596, 552.00 ,COVID-19 Response,Other Agencies
Southend-on-Sea Borough Council,http://www.opendatacommunities.org/id/unitary-authority/southend,ED Adults & Communities,Housing Services,6011,Cast Communities And Sanctuary Seekers Together,08/01/2021,12068596, 552.00 ,COVID-19 Response,Other Agencies
Southend-on-Sea Borough Council,http://www.opendatacommunities.org/id/unitary-authority/southend,ED Adults & Communities,Housing Services,6011,Cast Communities And Sanctuary Seekers Together,08/01/2021,12068596, 552.00 ,COVID-19 Response,Other Agencies
Southend-on-Sea Borough Council,http://www.opendatacommunities.org/id/unitary-authority/southend,ED Adults & Communities,Housing Services,6011,Cast Communities And Sanctuary Seekers Together,08/01/2021,12068596, 552.00 ,COVID-19 Response,Other Agencies
Southend-on-Sea Borough Council,http://www.opendatacommunities.org/id/unitary-authority/southend,ED Adults & Communities,Housing Services,6011,Cast Communities And Sanctuary Seekers Together,08/01/2021,12068596," 1,104.00 ",COVID-19 Response,Other Agencies
Southend-on-Sea Borough Council,http://www.opendatacommunities.org/id/unitary-authority/southend,ED Adults & Communities,Housing Services,6011,Cast Communities And Sanctuary Seekers Together,08/01/2021,12068596, 552.00 ,COVID-19 Response,Other Agencies
Southend-on-Sea Borough Council,http://www.opendatacommunities.org/id/unitary-authority/southend,ED Adults & Communities,Housing Services,6011,Cast Communities And Sanctuary Seekers Together,08/01/2021,12068596, 552.00 ,COVID-19 Response,Other Agencies
Southend-on-Sea Borough Council,http://www.opendatacommunities.org/id/unitary-authority/southend,ED Children & Public Health,Children And Education Services,3091,Castledon School,08/01/2021,12068596," 9,896.15 ",Private Contractors,Other Agencies
Southend-on-Sea Borough Council,http://www.opendatacommunities.org/id/unitary-authority/southend,ED Adults & Communities,Adult Social Care,1105,Christies Care Ltd.,08/01/2021,12068596," 4,193.28 ",Private Contractors,Other Agencies
Southend-on-Sea Borough Council,http://www.opendatacommunities.org/id/unitary-authority/southend,ED Adults & Communities,Adult Social Care,1205,Christies Care Ltd.,08/01/2021,12068596," 3,824.00 ",Private Contractors,Other Agencies
Southend-on-Sea Borough Council,http://www.opendatacommunities.org/id/unitary-authority/southend,ED Transformation,Central Services,2190,Civil Ceremonies Ltd,08/01/2021,12068596, 773.45 ,Printing,Printing Stationery And General Office Expenses
Southend-on-Sea Borough Council,http://www.opendatacommunities.org/id/unitary-authority/southend,ED Children & Public Health,Children And Education Services,3092,College Saint Pierre,08/01/2021,12068596," 1,063.35 ",Services On Behalf Of Pupils,Services
Southend-on-Sea Borough Council,http://www.opendatacommunities.org/id/unitary-authority/southend,ED Adults & Communities,Adult Social Care,1260,Craegmoor Turketel Road Priory,08/01/2021,12068596," 9,018.24 ",Private Contractors,Other Agencies
Southend-on-Sea Borough Council,http://www.opendatacommunities.org/id/unitary-authority/southend,ED Adults & Communities,Adult Social Care,1260,Craegmoor Turketel Road Priory,08/01/2021,12068596," 9,018.24 ",Private Contractors,Other Agencies
Southend-on-Sea Borough Council,http://www.opendatacommunities.org/id/unitary-authority/southend,ED Neighbourhoods & Environment,Highways And Transport Services,5105,Danaher & Walsh (Civil Engineering) Ltd ::(Accounts Payable Sundry),08/01/2021,12068596," 2,500.00 ",Private Contractors,Other Agencies
Southend-on-Sea Borough Council,http://www.opendatacommunities.org/id/unitary-authority/southend,ED Finance & Resources,Central Services,8605,Dwp Compensation Recovery Unit,08/01/2021,12068596, 743.00 ,Professional Fees,Services
Southend-on-Sea Borough Council,http://www.opendatacommunities.org/id/unitary-authority/southend,ED Children & Public Health,Children And Education Services,3389,E J C Associates Ltd,08/01/2021,12068596," 5,400.00 ",Professional Fees,Services
Southend-on-Sea Borough Council,http://www.opendatacommunities.org/id/unitary-authority/southend,ED Children & Public Health,Children And Education Services,3389,E J C Associates Ltd,08/01/2021,12068596," 5,400.00 ",Professional Fees,Services
Southend-on-Sea Borough Council,http://www.opendatacommunities.org/id/unitary-authority/southend,ED Children & Public Health,Children And Education Services,3591,E4Law Limited T/A Lextox,08/01/2021,12068596," 1,090.00 ",Medical And Health Services,Services
Southend-on-Sea Borough Council,http://www.opendatacommunities.org/id/unitary-authority/southend,ED Neighbourhoods & Environment,Highways And Transport Services,5117,Elgin T/As Roadworks Information Limited,08/01/2021,12068596," 6,258.46 ",Private Contractors,Other Agencies
Southend-on-Sea Borough Council,http://www.opendatacommunities.org/id/unitary-authority/southend,ED Adults & Communities,Adult Social Care,1083,Elgincare,08/01/2021,12068596, 903.24 ,Private Contractors,Other Agencies
Southend-on-Sea Borough Council,http://www.opendatacommunities.org/id/unitary-authority/southend,ED Adults & Communities,Adult Social Care,1076,Elgincare,08/01/2021,12068596," 1,053.78 ",Private Contractors,Other Agencies
Southend-on-Sea Borough Council,http://www.opendatacommunities.org/id/unitary-authority/southend,ED Adults & Communities,Adult Social Care,1083,Elgincare,08/01/2021,12068596," 1,103.70 ",Private Contractors,Other Agencies
Southend-on-Sea Borough Council,http://www.opendatacommunities.org/id/unitary-authority/southend,ED Neighbourhoods & Environment,Cultural and Related Services,7540,Ernest Doe And Sons Ltd,08/01/2021,12068596," 3,588.38 ",Tools And Equipment Repair And Maintenance,Equipment Furniture And Materials
Southend-on-Sea Borough Council,http://www.opendatacommunities.org/id/unitary-authority/southend,ED Adults & Communities,Adult Social Care,1145,Essex Autistic Society,08/01/2021,12068596, 605.00 ,COVID-19 Response,Other Agencies
Southend-on-Sea Borough Council,http://www.opendatacommunities.org/id/unitary-authority/southend,ED Children & Public Health,Public Health,8700,Focus Media Uk Ltd,08/01/2021,12068596, 850.00 ,Printing,Printing Stationery And General Office Expenses
Southend-on-Sea Borough Council,http://www.opendatacommunities.org/id/unitary-authority/southend,ED Children & Public Health,Children And Education Services,3250,Foster Care Uk,08/01/2021,12068596," 5,115.00 ",Private Contractors,Other Agencies
Southend-on-Sea Borough Council,http://www.opendatacommunities.org/id/unitary-authority/southend,ED Children & Public Health,Children And Education Services,3250,Fusion Fostering Ltd,08/01/2021,12068596," 4,096.43 ",Private Contractors,Other Agencies
Southend-on-Sea Borough Council,http://www.opendatacommunities.org/id/unitary-authority/southend,ED Children & Public Health,Children And Education Services,3250,Futures For Children,08/01/2021,12068596," 3,180.24 ",Private Contractors,Other Agencies
Southend-on-Sea Borough Council,http://www.opendatacommunities.org/id/unitary-authority/southend,ED Children & Public Health,Children And Education Services,3250,Futures For Children,08/01/2021,12068596," 3,180.24 ",Private Contractors,Other Agencies
Southend-on-Sea Borough Council,http://www.opendatacommunities.org/id/unitary-authority/southend,ED Children & Public Health,Children And Education Services,3250,Futures For Children,08/01/2021,12068596," 3,148.60 ",Private Contractors,Other Agencies
Southend-on-Sea Borough Council,http://www.opendatacommunities.org/id/unitary-authority/southend,ED Children & Public Health,Public Health,8700,G2V Recruitment Group Ltd T/A Vivid Resourcing,08/01/2021,12068596," 2,379.00 ",Agency Staff,Direct Employee Expenses
Southend-on-Sea Borough Council,http://www.opendatacommunities.org/id/unitary-authority/southend,ED Children & Public Health,Children And Education Services,3482,Georgina Hanser For Fairview Farm Enterprises,08/01/2021,12068596," 1,088.00 ",Education Services,Services
Southend-on-Sea Borough Council,http://www.opendatacommunities.org/id/unitary-authority/southend,ED Finance & Resources,Central Services,8605,Graham High Group Limited,08/01/2021,12068596," 1,005.37 ",Professional Fees,Services
Southend-on-Sea Borough Council,http://www.opendatacommunities.org/id/unitary-authority/southend,ED Adults & Communities,Adult Social Care,1025,Hays Specialist Recruitment Ltd Receipts Recruitment File Only,08/01/2021,12068596," 2,205.21 ",Agency Staff,Direct Employee Expenses
Southend-on-Sea Borough Council,http://www.opendatacommunities.org/id/unitary-authority/southend,ED Adults & Communities,Adult Social Care,1025,Hays Specialist Recruitment Ltd Receipts Recruitment File Only,08/01/2021,12068596," 4,042.89 ",Agency Staff,Direct Employee Expenses
Southend-on-Sea Borough Council,http://www.opendatacommunities.org/id/unitary-authority/southend,ED Adults & Communities,Adult Social Care,1365,Hays Specialist Recruitment Ltd Receipts Recruitment File Only,08/01/2021,12068596," 1,173.64 ",Agency Staff,Direct Employee Expenses
Southend-on-Sea Borough Council,http://www.opendatacommunities.org/id/unitary-authority/southend,ED Adults & Communities,Adult Social Care,1340,Hays Specialist Recruitment Ltd Receipts Recruitment File Only,08/01/2021,12068596, 661.57 ,Agency Staff,Direct Employee Expenses
Southend-on-Sea Borough Council,http://www.opendatacommunities.org/id/unitary-authority/southend,ED Adults & Communities,Adult Social Care,1180,Hays Specialist Recruitment Ltd Receipts Recruitment File Only,08/01/2021,12068596, 663.52 ,Agency Staff,Direct Employee Expenses
Southend-on-Sea Borough Council,http://www.opendatacommunities.org/id/unitary-authority/southend,ED Adults & Communities,Adult Social Care,1357,Hays Specialist Recruitment Ltd Receipts Recruitment File Only,08/01/2021,12068596," 1,173.64 ",Agency Staff,Direct Employee Expenses
Southend-on-Sea Borough Council,http://www.opendatacommunities.org/id/unitary-authority/southend,ED Adults & Communities,Adult Social Care,1231,Hays Specialist Recruitment Ltd Receipts Recruitment File Only,08/01/2021,12068596," 1,247.29 ",Agency Staff,Direct Employee Expenses
Southend-on-Sea Borough Council,http://www.opendatacommunities.org/id/unitary-authority/southend,ED Adults & Communities,Adult Social Care,1350,Hays Specialist Recruitment Ltd Receipts Recruitment File Only,08/01/2021,12068596," 1,173.64 ",Agency Staff,Direct Employee Expenses
Southend-on-Sea Borough Council,http://www.opendatacommunities.org/id/unitary-authority/southend,ED Adults & Communities,Adult Social Care,1352,Hays Specialist Recruitment Ltd Receipts Recruitment File Only,08/01/2021,12068596," 1,321.64 ",Agency Staff,Direct Employee Expenses
Southend-on-Sea Borough Council,http://www.opendatacommunities.org/id/unitary-authority/southend,ED Adults & Communities,Cultural And Related Services,4120,Hays Specialist Recruitment Ltd Receipts Recruitment File Only,08/01/2021,12068596, 553.15 ,Agency Staff,Direct Employee Expenses
Southend-on-Sea Borough Council,http://www.opendatacommunities.org/id/unitary-authority/southend,ED Adults & Communities,Cultural And Related Services,4120,Hays Specialist Recruitment Ltd Receipts Recruitment File Only,08/01/2021,12068596, 545.65 ,Agency Staff,Direct Employee Expenses
Southend-on-Sea Borough Council,http://www.opendatacommunities.org/id/unitary-authority/southend,ED Adults & Communities,Cultural And Related Services,4120,Hays Specialist Recruitment Ltd Receipts Recruitment File Only,08/01/2021,12068596, 504.68 ,Agency Staff,Direct Employee Expenses
Southend-on-Sea Borough Council,http://www.opendatacommunities.org/id/unitary-authority/southend,ED Adults & Communities,Housing Services,1011,Hays Specialist Recruitment Ltd Receipts Recruitment File Only,08/01/2021,12068596," 2,625.35 ",Agency Staff,Direct Employee Expenses
Southend-on-Sea Borough Council,http://www.opendatacommunities.org/id/unitary-authority/southend,ED Adults & Communities,Housing Services,6190,Hays Specialist Recruitment Ltd Receipts Recruitment File Only,08/01/2021,12068596," 3,718.54 ",Agency Staff,Direct Employee Expenses
Southend-on-Sea Borough Council,http://www.opendatacommunities.org/id/unitary-authority/southend,ED Adults & Communities,Housing Services,6190,Hays Specialist Recruitment Ltd Receipts Recruitment File Only,08/01/2021,12068596," 3,718.54 ",Agency Staff,Direct Employee Expenses
Southend-on-Sea Borough Council,http://www.opendatacommunities.org/id/unitary-authority/southend,ED Adults & Communities,Housing Services,6130,Hays Specialist Recruitment Ltd Receipts Recruitment File Only,08/01/2021,12068596," 1,118.14 ",Agency Staff,Direct Employee Expenses
Southend-on-Sea Borough Council,http://www.opendatacommunities.org/id/unitary-authority/southend,ED Adults & Communities,Housing Services,6130,Hays Specialist Recruitment Ltd Receipts Recruitment File Only,08/01/2021,12068596," 1,118.14 ",Agency Staff,Direct Employee Expenses
Southend-on-Sea Borough Council,http://www.opendatacommunities.org/id/unitary-authority/southend,ED Adults & Communities,Housing Services,1011,Hays Specialist Recruitment Ltd Receipts Recruitment File Only,08/01/2021,12068596," 2,858.15 ",Agency Staff,Direct Employee Expenses
Southend-on-Sea Borough Council,http://www.opendatacommunities.org/id/unitary-authority/southend,ED Adults & Communities,Housing Services,6130,Hays Specialist Recruitment Ltd Receipts Recruitment File Only,08/01/2021,12068596," 1,155.14 ",Agency Staff,Direct Employee Expenses
Southend-on-Sea Borough Council,http://www.opendatacommunities.org/id/unitary-authority/southend,ED Adults & Communities,Housing Services,6011,Hays Specialist Recruitment Ltd Receipts Recruitment File Only,08/01/2021,12068596," 1,118.14 ",Agency Staff,Direct Employee Expenses
Southend-on-Sea Borough Council,http://www.opendatacommunities.org/id/unitary-authority/southend,ED Adults & Communities,Housing Services,6130,Hays Specialist Recruitment Ltd Receipts Recruitment File Only,08/01/2021,12068596," 1,010.47 ",Agency Staff,Direct Employee Expenses
Southend-on-Sea Borough Council,http://www.opendatacommunities.org/id/unitary-authority/southend,ED Adults & Communities,Housing Services,6011,Hays Specialist Recruitment Ltd Receipts Recruitment File Only,08/01/2021,12068596," 1,118.14 ",Agency Staff,Direct Employee Expenses
Southend-on-Sea Borough Council,http://www.opendatacommunities.org/id/unitary-authority/southend,ED Children & Public Health,Adult Social Care,1035,Hays Specialist Recruitment Ltd Receipts Recruitment File Only,08/01/2021,12068596, 687.05 ,Agency Staff,Direct Employee Expenses
Southend-on-Sea Borough Council,http://www.opendatacommunities.org/id/unitary-authority/southend,ED Children & Public Health,Adult Social Care,1035,Hays Specialist Recruitment Ltd Receipts Recruitment File Only,08/01/2021,12068596, 588.92 ,Agency Staff,Direct Employee Expenses
Southend-on-Sea Borough Council,http://www.opendatacommunities.org/id/unitary-authority/southend,ED Children & Public Health,Adult Social Care,1035,Hays Specialist Recruitment Ltd Receipts Recruitment File Only,08/01/2021,12068596, 843.66 ,Agency Staff,Direct Employee Expenses
Southend-on-Sea Borough Council,http://www.opendatacommunities.org/id/unitary-authority/southend,ED Children & Public Health,Adult Social Care,1035,Hays Specialist Recruitment Ltd Receipts Recruitment File Only,08/01/2021,12068596, 562.44 ,Agency Staff,Direct Employee Expenses
Southend-on-Sea Borough Council,http://www.opendatacommunities.org/id/unitary-authority/southend,ED Children & Public Health,Children And Education Services,3690,Hays Specialist Recruitment Ltd Receipts Recruitment File Only,08/01/2021,12068596," 1,173.29 ",Agency Staff,Direct Employee Expenses
Southend-on-Sea Borough Council,http://www.opendatacommunities.org/id/unitary-authority/southend,ED Children & Public Health,Children And Education Services,3690,Hays Specialist Recruitment Ltd Receipts Recruitment File Only,08/01/2021,12068596," 1,321.64 ",Agency Staff,Direct Employee Expenses
Southend-on-Sea Borough Council,http://www.opendatacommunities.org/id/unitary-authority/southend,ED Children & Public Health,Children And Education Services,3690,Hays Specialist Recruitment Ltd Receipts Recruitment File Only,08/01/2021,12068596," 1,321.64 ",Agency Staff,Direct Employee Expenses
Southend-on-Sea Borough Council,http://www.opendatacommunities.org/id/unitary-authority/southend,ED Children & Public Health,Children And Education Services,3220,Hays Specialist Recruitment Ltd Receipts Recruitment File Only,08/01/2021,12068596," 1,543.64 ",Agency Staff,Direct Employee Expenses
Southend-on-Sea Borough Council,http://www.opendatacommunities.org/id/unitary-authority/southend,ED Children & Public Health,Children And Education Services,3183,Hays Specialist Recruitment Ltd Receipts Recruitment File Only,08/01/2021,12068596, 576.45 ,Agency Staff,Direct Employee Expenses
Southend-on-Sea Borough Council,http://www.opendatacommunities.org/id/unitary-authority/southend,ED Children & Public Health,Children And Education Services,3480,Hays Specialist Recruitment Ltd Receipts Recruitment File Only,08/01/2021,12068596," 1,173.64 ",Agency Staff,Direct Employee Expenses
Southend-on-Sea Borough Council,http://www.opendatacommunities.org/id/unitary-authority/southend,ED Children & Public Health,Children And Education Services,3690,Hays Specialist Recruitment Ltd Receipts Recruitment File Only,08/01/2021,12068596," 1,321.64 ",Agency Staff,Direct Employee Expenses
Southend-on-Sea Borough Council,http://www.opendatacommunities.org/id/unitary-authority/southend,ED Finance & Resources,Central Services,2156,Hays Specialist Recruitment Ltd Receipts Recruitment File Only,08/01/2021,12068596," 1,048.76 ",Agency Staff,Direct Employee Expenses
Southend-on-Sea Borough Council,http://www.opendatacommunities.org/id/unitary-authority/southend,ED Finance & Resources,Central Services,2072,Hays Specialist Recruitment Ltd Receipts Recruitment File Only,08/01/2021,12068596, 763.57 ,Agency Staff,Direct Employee Expenses
Southend-on-Sea Borough Council,http://www.opendatacommunities.org/id/unitary-authority/southend,ED Finance & Resources,Central Services,2072,Hays Specialist Recruitment Ltd Receipts Recruitment File Only,08/01/2021,12068596, 752.96 ,Agency Staff,Direct Employee Expenses
Southend-on-Sea Borough Council,http://www.opendatacommunities.org/id/unitary-authority/southend,ED Finance & Resources,Central Services,7070,Hays Specialist Recruitment Ltd Receipts Recruitment File Only,08/01/2021,12068596," 1,762.60 ",Agency Staff,Direct Employee Expenses
Southend-on-Sea Borough Council,http://www.opendatacommunities.org/id/unitary-authority/southend,ED Finance & Resources,Central Services,7070,Hays Specialist Recruitment Ltd Receipts Recruitment File Only,08/01/2021,12068596," 6,286.00 ",Recruitment,Indirect Employee Expenses
Southend-on-Sea Borough Council,http://www.opendatacommunities.org/id/unitary-authority/southend,ED Finance & Resources,Central Services,7165,Hays Specialist Recruitment Ltd Receipts Recruitment File Only,08/01/2021,12068596," 1,893.50 ",Agency Staff,Direct Employee Expenses
Southend-on-Sea Borough Council,http://www.opendatacommunities.org/id/unitary-authority/southend,ED Finance & Resources,Central Services,7165,Hays Specialist Recruitment Ltd Receipts Recruitment File Only,08/01/2021,12068596," 1,137.60 ",Agency Staff,Direct Employee Expenses
Southend-on-Sea Borough Council,http://www.opendatacommunities.org/id/unitary-authority/southend,ED Growth & Housing,Housing Services,6501,Hays Specialist Recruitment Ltd Receipts Recruitment File Only,08/01/2021,12068596," 2,331.28 ",Agency Staff,Direct Employee Expenses
Southend-on-Sea Borough Council,http://www.opendatacommunities.org/id/unitary-authority/southend,ED Growth & Housing,Planning Services,5520,Hays Specialist Recruitment Ltd Receipts Recruitment File Only,08/01/2021,12068596, 577.64 ,Agency Staff,Direct Employee Expenses
Southend-on-Sea Borough Council,http://www.opendatacommunities.org/id/unitary-authority/southend,ED Growth & Housing,Planning Services,5530,Hays Specialist Recruitment Ltd Receipts Recruitment File Only,08/01/2021,12068596, 945.30 ,Agency Staff,Direct Employee Expenses
Southend-on-Sea Borough Council,http://www.opendatacommunities.org/id/unitary-authority/southend,ED Growth & Housing,Planning Services,5640,Hays Specialist Recruitment Ltd Receipts Recruitment File Only,08/01/2021,12068596," 2,715.65 ",Agency Staff,Direct Employee Expenses
Southend-on-Sea Borough Council,http://www.opendatacommunities.org/id/unitary-authority/southend,ED Growth & Housing,Planning Services,5530,Hays Specialist Recruitment Ltd Receipts Recruitment File Only,08/01/2021,12068596, 945.30 ,Agency Staff,Direct Employee Expenses
Southend-on-Sea Borough Council,http://www.opendatacommunities.org/id/unitary-authority/southend,ED Legal & Democratic Services,Central Services,7105,Hays Specialist Recruitment Ltd Receipts Recruitment File Only,08/01/2021,12068596," 1,079.55 ",Agency Staff,Direct Employee Expenses
Southend-on-Sea Borough Council,http://www.opendatacommunities.org/id/unitary-authority/southend,ED Neighbourhoods & Environment,Cultural and Related Services,7505,Hays Specialist Recruitment Ltd Receipts Recruitment File Only,08/01/2021,12068596, 557.57 ,Agency Staff,Direct Employee Expenses
Southend-on-Sea Borough Council,http://www.opendatacommunities.org/id/unitary-authority/southend,ED Neighbourhoods & Environment,Cultural and Related Services,7505,Hays Specialist Recruitment Ltd Receipts Recruitment File Only,08/01/2021,12068596, 504.33 ,Agency Staff,Direct Employee Expenses
Southend-on-Sea Borough Council,http://www.opendatacommunities.org/id/unitary-authority/southend,ED Neighbourhoods & Environment,Cultural and Related Services,7505,Hays Specialist Recruitment Ltd Receipts Recruitment File Only,08/01/2021,12068596, 504.33 ,Agency Staff,Direct Employee Expenses
Southend-on-Sea Borough Council,http://www.opendatacommunities.org/id/unitary-authority/southend,ED Neighbourhoods & Environment,Cultural and Related Services,7505,Hays Specialist Recruitment Ltd Receipts Recruitment File Only,08/01/2021,12068596, 545.65 ,Agency Staff,Direct Employee Expenses
Southend-on-Sea Borough Council,http://www.opendatacommunities.org/id/unitary-authority/southend,ED Neighbourhoods & Environment,Cultural and Related Services,7505,Hays Specialist Recruitment Ltd Receipts Recruitment File Only,08/01/2021,12068596, 545.65 ,Agency Staff,Direct Employee Expenses
Southend-on-Sea Borough Council,http://www.opendatacommunities.org/id/unitary-authority/southend,ED Neighbourhoods & Environment,Cultural and Related Services,7505,Hays Specialist Recruitment Ltd Receipts Recruitment File Only,08/01/2021,12068596, 603.84 ,Agency Staff,Direct Employee Expenses
Southend-on-Sea Borough Council,http://www.opendatacommunities.org/id/unitary-authority/southend,ED Neighbourhoods & Environment,Cultural and Related Services,7505,Hays Specialist Recruitment Ltd Receipts Recruitment File Only,08/01/2021,12068596, 538.37 ,Agency Staff,Direct Employee Expenses
Southend-on-Sea Borough Council,http://www.opendatacommunities.org/id/unitary-authority/southend,ED Neighbourhoods & Environment,Cultural and Related Services,7505,Hays Specialist Recruitment Ltd Receipts Recruitment File Only,08/01/2021,12068596, 625.66 ,Agency Staff,Direct Employee Expenses
Southend-on-Sea Borough Council,http://www.opendatacommunities.org/id/unitary-authority/southend,ED Neighbourhoods & Environment,Environmental And Regulatory Services,4506,Hays Specialist Recruitment Ltd Receipts Recruitment File Only,08/01/2021,12068596, 505.42 ,Agency Staff,Direct Employee Expenses
Southend-on-Sea Borough Council,http://www.opendatacommunities.org/id/unitary-authority/southend,ED Neighbourhoods & Environment,Environmental And Regulatory Services,4535,Hays Specialist Recruitment Ltd Receipts Recruitment File Only,08/01/2021,12068596, 764.25 ,Agency Staff,Direct Employee Expenses
Southend-on-Sea Borough Council,http://www.opendatacommunities.org/id/unitary-authority/southend,ED Neighbourhoods & Environment,Environmental And Regulatory Services,4535,Hays Specialist Recruitment Ltd Receipts Recruitment File Only,08/01/2021,12068596, 898.08 ,Agency Staff,Direct Employee Expenses
Southend-on-Sea Borough Council,http://www.opendatacommunities.org/id/unitary-authority/southend,ED Neighbourhoods & Environment,Environmental And Regulatory Services,4506,Hays Specialist Recruitment Ltd Receipts Recruitment File Only,08/01/2021,12068596, 504.33 ,Agency Staff,Direct Employee Expenses
Southend-on-Sea Borough Council,http://www.opendatacommunities.org/id/unitary-authority/southend,ED Neighbourhoods & Environment,Environmental And Regulatory Services,7035,Hays Specialist Recruitment Ltd Receipts Recruitment File Only,08/01/2021,12068596," 1,191.60 ",Agency Staff,Direct Employee Expenses
Southend-on-Sea Borough Council,http://www.opendatacommunities.org/id/unitary-authority/southend,ED Neighbourhoods & Environment,Environmental And Regulatory Services,7031,Hays Specialist Recruitment Ltd Receipts Recruitment File Only,08/01/2021,12068596, 660.00 ,Recruitment,Indirect Employee Expenses
Southend-on-Sea Borough Council,http://www.opendatacommunities.org/id/unitary-authority/southend,ED Neighbourhoods & Environment,Environmental And Regulatory Services,7035,Hays Specialist Recruitment Ltd Receipts Recruitment File Only,08/01/2021,12068596," 2,400.00 ",Recruitment,Indirect Employee Expenses
Southend-on-Sea Borough Council,http://www.opendatacommunities.org/id/unitary-authority/southend,ED Neighbourhoods & Environment,Cultural and Related Services,7540,Hays Specialist Recruitment Ltd Receipts Recruitment File Only,08/01/2021,12068596, 505.42 ,Agency Staff,Direct Employee Expenses
Southend-on-Sea Borough Council,http://www.opendatacommunities.org/id/unitary-authority/southend,ED Neighbourhoods & Environment,Cultural and Related Services,7540,Hays Specialist Recruitment Ltd Receipts Recruitment File Only,08/01/2021,12068596, 504.68 ,Agency Staff,Direct Employee Expenses
Southend-on-Sea Borough Council,http://www.opendatacommunities.org/id/unitary-authority/southend,ED Neighbourhoods & Environment,Highways And Transport Services,5180,Hays Specialist Recruitment Ltd Receipts Recruitment File Only,08/01/2021,12068596," 1,303.05 ",Agency Staff,Direct Employee Expenses
Southend-on-Sea Borough Council,http://www.opendatacommunities.org/id/unitary-authority/southend,ED Neighbourhoods & Environment,Highways And Transport Services,5180,Hays Specialist Recruitment Ltd Receipts Recruitment File Only,08/01/2021,12068596," 1,417.72 ",Agency Staff,Direct Employee Expenses
Southend-on-Sea Borough Council,http://www.opendatacommunities.org/id/unitary-authority/southend,ED Neighbourhoods & Environment,Highways And Transport Services,5065,Hays Specialist Recruitment Ltd Receipts Recruitment File Only,08/01/2021,12068596," 1,054.55 ",Agency Staff,Direct Employee Expenses
Southend-on-Sea Borough Council,http://www.opendatacommunities.org/id/unitary-authority/southend,ED Neighbourhoods & Environment,Highways And Transport Services,5180,Hays Specialist Recruitment Ltd Receipts Recruitment File Only,08/01/2021,12068596," 1,417.72 ",Agency Staff,Direct Employee Expenses
Southend-on-Sea Borough Council,http://www.opendatacommunities.org/id/unitary-authority/southend,ED Neighbourhoods & Environment,Highways And Transport Services,5702,Hays Specialist Recruitment Ltd Receipts Recruitment File Only,08/01/2021,12068596, 510.65 ,Agency Staff,Direct Employee Expenses
Southend-on-Sea Borough Council,http://www.opendatacommunities.org/id/unitary-authority/southend,ED Transformation,Central Services,7130,Hays Specialist Recruitment Ltd Receipts Recruitment File Only,08/01/2021,12068596," 1,155.14 ",Agency Staff,Direct Employee Expenses
Southend-on-Sea Borough Council,http://www.opendatacommunities.org/id/unitary-authority/southend,ED Transformation,Central Services,7130,Hays Specialist Recruitment Ltd Receipts Recruitment File Only,08/01/2021,12068596," 1,180.00 ",Agency Staff,Direct Employee Expenses
Southend-on-Sea Borough Council,http://www.opendatacommunities.org/id/unitary-authority/southend,ED Transformation,Central Services,7130,Hays Specialist Recruitment Ltd Receipts Recruitment File Only,08/01/2021,12068596," 2,113.15 ",Agency Staff,Direct Employee Expenses
Southend-on-Sea Borough Council,http://www.opendatacommunities.org/id/unitary-authority/southend,ED Transformation,Central Services,7130,Hays Specialist Recruitment Ltd Receipts Recruitment File Only,08/01/2021,12068596," 1,162.44 ",Agency Staff,Direct Employee Expenses
Southend-on-Sea Borough Council,http://www.opendatacommunities.org/id/unitary-authority/southend,ED Transformation,Central Services,7130,Hays Specialist Recruitment Ltd Receipts Recruitment File Only,08/01/2021,12068596," 2,516.35 ",Agency Staff,Direct Employee Expenses
Southend-on-Sea Borough Council,http://www.opendatacommunities.org/id/unitary-authority/southend,ED Transformation,Central Services,7130,Hays Specialist Recruitment Ltd Receipts Recruitment File Only,08/01/2021,12068596," 1,849.05 ",Agency Staff,Direct Employee Expenses
Southend-on-Sea Borough Council,http://www.opendatacommunities.org/id/unitary-authority/southend,ED Transformation,Central Services,7125,Hays Specialist Recruitment Ltd Receipts Recruitment File Only,08/01/2021,12068596, 632.45 ,Agency Staff,Direct Employee Expenses
Southend-on-Sea Borough Council,http://www.opendatacommunities.org/id/unitary-authority/southend,ED Transformation,Central Services,7130,Hays Specialist Recruitment Ltd Receipts Recruitment File Only,08/01/2021,12068596," 1,000.00 ",Agency Staff,Direct Employee Expenses
Southend-on-Sea Borough Council,http://www.opendatacommunities.org/id/unitary-authority/southend,ED Transformation,Central Services,7125,Hays Specialist Recruitment Ltd Receipts Recruitment File Only,08/01/2021,12068596, 547.40 ,Agency Staff,Direct Employee Expenses
Southend-on-Sea Borough Council,http://www.opendatacommunities.org/id/unitary-authority/southend,ED Transformation,Central Services,7125,Hays Specialist Recruitment Ltd Receipts Recruitment File Only,08/01/2021,12068596, 650.65 ,Agency Staff,Direct Employee Expenses
Southend-on-Sea Borough Council,http://www.opendatacommunities.org/id/unitary-authority/southend,ED Transformation,Central Services,7130,Hays Specialist Recruitment Ltd Receipts Recruitment File Only,08/01/2021,12068596," 2,906.10 ",Agency Staff,Direct Employee Expenses
Southend-on-Sea Borough Council,http://www.opendatacommunities.org/id/unitary-authority/southend,ED Transformation,Central Services,7130,Hays Specialist Recruitment Ltd Receipts Recruitment File Only,08/01/2021,12068596," 2,377.25 ",Agency Staff,Direct Employee Expenses
Southend-on-Sea Borough Council,http://www.opendatacommunities.org/id/unitary-authority/southend,ED Transformation,Central Services,7130,Hays Specialist Recruitment Ltd Receipts Recruitment File Only,08/01/2021,12068596," 1,849.05 ",Agency Staff,Direct Employee Expenses
Southend-on-Sea Borough Council,http://www.opendatacommunities.org/id/unitary-authority/southend,ED Transformation,Central Services,7125,Hays Specialist Recruitment Ltd Receipts Recruitment File Only,08/01/2021,12068596, 600.91 ,Agency Staff,Direct Employee Expenses
Southend-on-Sea Borough Council,http://www.opendatacommunities.org/id/unitary-authority/southend,ED Transformation,Central Services,7130,Hays Specialist Recruitment Ltd Receipts Recruitment File Only,08/01/2021,12068596, 994.10 ,Agency Staff,Direct Employee Expenses
Southend-on-Sea Borough Council,http://www.opendatacommunities.org/id/unitary-authority/southend,ED Transformation,Central Services,7130,Hays Specialist Recruitment Ltd Receipts Recruitment File Only,08/01/2021,12068596, 994.10 ,Agency Staff,Direct Employee Expenses
Southend-on-Sea Borough Council,http://www.opendatacommunities.org/id/unitary-authority/southend,ED Transformation,Central Services,2045,Hays Specialist Recruitment Ltd Receipts Recruitment File Only,08/01/2021,12068596," 3,713.10 ",Agency Staff,Direct Employee Expenses
Southend-on-Sea Borough Council,http://www.opendatacommunities.org/id/unitary-authority/southend,ED Transformation,Central Services,7134,Hays Specialist Recruitment Ltd Receipts Recruitment File Only,08/01/2021,12068596," 3,019.10 ",Agency Staff,Direct Employee Expenses
Southend-on-Sea Borough Council,http://www.opendatacommunities.org/id/unitary-authority/southend,ED Transformation,Central Services,7134,Hays Specialist Recruitment Ltd Receipts Recruitment File Only,08/01/2021,12068596," 3,019.10 ",Agency Staff,Direct Employee Expenses
Southend-on-Sea Borough Council,http://www.opendatacommunities.org/id/unitary-authority/southend,ED Transformation,Central Services,7134,Hays Specialist Recruitment Ltd Receipts Recruitment File Only,08/01/2021,12068596," 1,859.55 ",Agency Staff,Direct Employee Expenses
Southend-on-Sea Borough Council,http://www.opendatacommunities.org/id/unitary-authority/southend,ED Transformation,Central Services,7134,Hays Specialist Recruitment Ltd Receipts Recruitment File Only,08/01/2021,12068596," 1,356.10 ",Agency Staff,Direct Employee Expenses
Southend-on-Sea Borough Council,http://www.opendatacommunities.org/id/unitary-authority/southend,ED Transformation,Central Services,7134,Hays Specialist Recruitment Ltd Receipts Recruitment File Only,08/01/2021,12068596," 1,356.10 ",Agency Staff,Direct Employee Expenses
Southend-on-Sea Borough Council,http://www.opendatacommunities.org/id/unitary-authority/southend,ED Adults & Communities,Adult Social Care,1321,Hitachi Capital (Uk) Plc Re Fisk Fire Protection Ltd,08/01/2021,12068596, 720.00 ,Repairs And Maintenance Contracts,"Repairs, alterations and maintenance of buildings"
Southend-on-Sea Borough Council,http://www.opendatacommunities.org/id/unitary-authority/southend,ED Transformation,Central Services,8602,Intuity Communications Limited,08/01/2021,12068596, 946.95 ,Communications Telephone Call Charges,Communications And Computing
Southend-on-Sea Borough Council,http://www.opendatacommunities.org/id/unitary-authority/southend,ED Children & Public Health,Children And Education Services,3062,Jenx Limited,08/01/2021,12068596," 2,060.00 ",Tools And Equipment Purchase,Equipment Furniture And Materials
Southend-on-Sea Borough Council,http://www.opendatacommunities.org/id/unitary-authority/southend,ED Finance & Resources,Central Services,8605,Judgement Limited Fees Account T/A Kate Vaughan-Neil,08/01/2021,12068596," 1,190.00 ",Court Costs And Legal Fees,Services
Southend-on-Sea Borough Council,http://www.opendatacommunities.org/id/unitary-authority/southend,ED Finance & Resources,Central Services,8605,Kennedys Law Llp Office A/C,08/01/2021,12068596," 2,038.00 ",Court Costs And Legal Fees,Services
Southend-on-Sea Borough Council,http://www.opendatacommunities.org/id/unitary-authority/southend,ED Children & Public Health,Public Health,8701,Kenyon Block Consultants Ltd,08/01/2021,12068596," 1,012.50 ",Consultancy Services,Services
Southend-on-Sea Borough Council,http://www.opendatacommunities.org/id/unitary-authority/southend,ED Neighbourhoods & Environment,Environmental And Regulatory Services,4625,Kenyon Block Consultants Ltd,08/01/2021,12068596," 1,400.00 ",Consultancy Services,Services
Southend-on-Sea Borough Council,http://www.opendatacommunities.org/id/unitary-authority/southend,ED Growth & Housing,Planning Services,5638,Land & Marine Publications Ltd,08/01/2021,12068596," 2,607.50 ",Grants,Grants And Subscriptions
Southend-on-Sea Borough Council,http://www.opendatacommunities.org/id/unitary-authority/southend,ED Children & Public Health,Children And Education Services,3310,Learn Solutions Ltd T/A Tlc Live,08/01/2021,12068596," 1,040.00 ",Education Services,Services
Southend-on-Sea Borough Council,http://www.opendatacommunities.org/id/unitary-authority/southend,ED Children & Public Health,Children And Education Services,3310,Learn Solutions Ltd T/A Tlc Live,08/01/2021,12068596," 1,040.00 ",Education Services,Services
Southend-on-Sea Borough Council,http://www.opendatacommunities.org/id/unitary-authority/southend,ED Children & Public Health,Children And Education Services,3011,Little Stars Day Nursery (Southend),08/01/2021,12068596," 1,200.00 ",Child Minding,Services
Southend-on-Sea Borough Council,http://www.opendatacommunities.org/id/unitary-authority/southend,ED Children & Public Health,Children And Education Services,3011,Little Treasures Day Nursery,08/01/2021,12068596," 1,155.00 ",Child Minding,Services
Southend-on-Sea Borough Council,http://www.opendatacommunities.org/id/unitary-authority/southend,ED Children & Public Health,Children And Education Services,3011,Little Treasures Day Nursery,08/01/2021,12068596, 616.00 ,Child Minding,Services
Southend-on-Sea Borough Council,http://www.opendatacommunities.org/id/unitary-authority/southend,ED Children & Public Health,Children And Education Services,3011,Little Treasures Day Nursery,08/01/2021,12068596, 770.00 ,Child Minding,Services
Southend-on-Sea Borough Council,http://www.opendatacommunities.org/id/unitary-authority/southend,ED Children & Public Health,Children And Education Services,9009,Metson Architects,08/01/2021,12068596," 16,853.00 ",Main Contractor,Main Contractor
Southend-on-Sea Borough Council,http://www.opendatacommunities.org/id/unitary-authority/southend,ED Legal & Democratic Services,Central Services,7105,Miss Kate Miller,08/01/2021,12068596," 3,750.00 ",Barristers fees,Services
Southend-on-Sea Borough Council,http://www.opendatacommunities.org/id/unitary-authority/southend,ED Adults & Communities,Adult Social Care,1209,Morris & Alexander Ltd,08/01/2021,12068596, 949.02 ,Tools And Equipment Purchase,Equipment Furniture And Materials
Southend-on-Sea Borough Council,http://www.opendatacommunities.org/id/unitary-authority/southend,ED Growth & Housing,Growth & Housing,9007,Mott Macdonald,08/01/2021,12068596," 24,000.00 ",Main Contractor,Main Contractor
Southend-on-Sea Borough Council,http://www.opendatacommunities.org/id/unitary-authority/southend,ED Adults & Communities,Adult Social Care,1145,Ncs T/A Westbury Day Care,08/01/2021,12068596, 843.15 ,Private Contractors,Other Agencies
Southend-on-Sea Borough Council,http://www.opendatacommunities.org/id/unitary-authority/southend,ED Adults & Communities,Adult Social Care,1145,Ncs T/A Westbury Day Care,08/01/2021,12068596, 505.89 ,Private Contractors,Other Agencies
Southend-on-Sea Borough Council,http://www.opendatacommunities.org/id/unitary-authority/southend,ED Adults & Communities,Adult Social Care,1145,Ncs T/A Westbury Day Care,08/01/2021,12068596, 618.31 ,Private Contractors,Other Agencies
Southend-on-Sea Borough Council,http://www.opendatacommunities.org/id/unitary-authority/southend,ED Adults & Communities,Adult Social Care,1145,Ncs T/A Westbury Day Care,08/01/2021,12068596, 674.52 ,Private Contractors,Other Agencies
Southend-on-Sea Borough Council,http://www.opendatacommunities.org/id/unitary-authority/southend,ED Adults & Communities,Adult Social Care,1145,Ncs T/A Westbury Day Care,08/01/2021,12068596," 1,067.99 ",Private Contractors,Other Agencies
Southend-on-Sea Borough Council,http://www.opendatacommunities.org/id/unitary-authority/southend,ED Adults & Communities,Adult Social Care,1145,Ncs T/A Westbury Day Care,08/01/2021,12068596," 1,067.99 ",Private Contractors,Other Agencies
Southend-on-Sea Borough Council,http://www.opendatacommunities.org/id/unitary-authority/southend,ED Adults & Communities,Adult Social Care,1146,Ncs T/A Westbury Day Care,08/01/2021,12068596, 618.31 ,Private Contractors,Other Agencies
Southend-on-Sea Borough Council,http://www.opendatacommunities.org/id/unitary-authority/southend,ED Finance & Resources,Central Services,7070,Phoenix Software Ltd,08/01/2021,12068596, 925.40 ,IT Software,Communications And Computing
Southend-on-Sea Borough Council,http://www.opendatacommunities.org/id/unitary-authority/southend,ED Children & Public Health,Children And Education Services,3250,Quality Foster Care Limited,08/01/2021,12068596," 1,103.20 ",Private Contractors,Other Agencies
Southend-on-Sea Borough Council,http://www.opendatacommunities.org/id/unitary-authority/southend,ED Children & Public Health,Children And Education Services,3250,Quality Foster Care Limited,08/01/2021,12068596," 3,088.96 ",Private Contractors,Other Agencies
Southend-on-Sea Borough Council,http://www.opendatacommunities.org/id/unitary-authority/southend,ED Adults & Communities,Adult Social Care,1320,Re House Limited,08/01/2021,12068596, 727.04 ,Private Contractors,Other Agencies
Southend-on-Sea Borough Council,http://www.opendatacommunities.org/id/unitary-authority/southend,ED Adults & Communities,Adult Social Care,1320,Re House Limited,08/01/2021,12068596," 1,298.40 ",Private Contractors,Other Agencies
Southend-on-Sea Borough Council,http://www.opendatacommunities.org/id/unitary-authority/southend,ED Adults & Communities,Adult Social Care,1320,Re House Limited,08/01/2021,12068596, 715.35 ,Private Contractors,Other Agencies
Southend-on-Sea Borough Council,http://www.opendatacommunities.org/id/unitary-authority/southend,ED Finance & Resources,Central Services,2182,REDACTED PERSONAL DATA,08/01/2021,12068596," 3,000.00 ",Grants,Grants And Subscriptions
Southend-on-Sea Borough Council,http://www.opendatacommunities.org/id/unitary-authority/southend,ED Finance & Resources,Central Services,2182,REDACTED PERSONAL DATA,08/01/2021,12068596," 3,000.00 ",Grants,Grants And Subscriptions
Southend-on-Sea Borough Council,http://www.opendatacommunities.org/id/unitary-authority/southend,ED Finance & Resources,Central Services,2182,REDACTED PERSONAL DATA,08/01/2021,12068596," 2,000.00 ",Grants,Grants And Subscriptions
Southend-on-Sea Borough Council,http://www.opendatacommunities.org/id/unitary-authority/southend,ED Finance & Resources,Central Services,2118,REDACTED PERSONAL DATA,08/01/2021,12068596, 500.00 ,Grants,Grants And Subscriptions
Southend-on-Sea Borough Council,http://www.opendatacommunities.org/id/unitary-authority/southend,ED Finance & Resources,Central Services,2118,REDACTED PERSONAL DATA,08/01/2021,12068596, 500.00 ,Grants,Grants And Subscriptions
Southend-on-Sea Borough Council,http://www.opendatacommunities.org/id/unitary-authority/southend,ED Finance & Resources,Central Services,2118,REDACTED PERSONAL DATA,08/01/2021,12068596, 500.00 ,Grants,Grants And Subscriptions
Southend-on-Sea Borough Council,http://www.opendatacommunities.org/id/unitary-authority/southend,ED Adults & Communities,Cultural And Related Services,4010,REDACTED PERSONAL DATA,08/01/2021,12068596, 500.00 ,Professional Fees,Services
Southend-on-Sea Borough Council,http://www.opendatacommunities.org/id/unitary-authority/southend,ED Finance & Resources,Central Services,2118,REDACTED PERSONAL DATA,08/01/2021,12068596, 500.00 ,Grants,Grants And Subscriptions
Southend-on-Sea Borough Council,http://www.opendatacommunities.org/id/unitary-authority/southend,ED Finance & Resources,Central Services,2182,REDACTED PERSONAL DATA,08/01/2021,12068596," 1,334.00 ",Grants,Grants And Subscriptions
Southend-on-Sea Borough Council,http://www.opendatacommunities.org/id/unitary-authority/southend,ED Finance & Resources,Central Services,2118,REDACTED PERSONAL DATA,08/01/2021,12068596, 500.00 ,Grants,Grants And Subscriptions
Southend-on-Sea Borough Council,http://www.opendatacommunities.org/id/unitary-authority/southend,ED Finance & Resources,Central Services,2182,REDACTED PERSONAL DATA,08/01/2021,12068596," 1,334.00 ",Grants,Grants And Subscriptions
Southend-on-Sea Borough Council,http://www.opendatacommunities.org/id/unitary-authority/southend,ED Finance & Resources,Central Services,2118,REDACTED PERSONAL DATA,08/01/2021,12068596, 500.00 ,Grants,Grants And Subscriptions
Southend-on-Sea Borough Council,http://www.opendatacommunities.org/id/unitary-authority/southend,ED Finance & Resources,Central Services,2118,REDACTED PERSONAL DATA,08/01/2021,12068596, 500.00 ,Grants,Grants And Subscriptions
Southend-on-Sea Borough Council,http://www.opendatacommunities.org/id/unitary-authority/southend,ED Finance & Resources,Central Services,2118,REDACTED PERSONAL DATA,08/01/2021,12068596, 500.00 ,Grants,Grants And Subscriptions
Southend-on-Sea Borough Council,http://www.opendatacommunities.org/id/unitary-authority/southend,ED Finance & Resources,Central Services,2182,REDACTED PERSONAL DATA,08/01/2021,12068596," 2,000.00 ",Grants,Grants And Subscriptions
Southend-on-Sea Borough Council,http://www.opendatacommunities.org/id/unitary-authority/southend,ED Finance & Resources,Central Services,2182,REDACTED PERSONAL DATA,08/01/2021,12068596," 1,334.00 ",Grants,Grants And Subscriptions
Southend-on-Sea Borough Council,http://www.opendatacommunities.org/id/unitary-authority/southend,ED Finance & Resources,Central Services,2182,REDACTED PERSONAL DATA,08/01/2021,12068596," 1,334.00 ",Grants,Grants And Subscriptions
Southend-on-Sea Borough Council,http://www.opendatacommunities.org/id/unitary-authority/southend,ED Finance & Resources,Housing Services,6165,REDACTED PERSONAL DATA,08/01/2021,12068596," 50,000.00 ",Catering Food And Beverages,Catering
Southend-on-Sea Borough Council,http://www.opendatacommunities.org/id/unitary-authority/southend,ED Finance & Resources,Central Services,2182,REDACTED PERSONAL DATA,08/01/2021,12068596," 1,334.00 ",Grants,Grants And Subscriptions
Southend-on-Sea Borough Council,http://www.opendatacommunities.org/id/unitary-authority/southend,ED Children & Public Health,Children And Education Services,3290,REDACTED PERSONAL DATA,08/01/2021,12068596," 1,200.00 ",Accomodation Payment,Services
Southend-on-Sea Borough Council,http://www.opendatacommunities.org/id/unitary-authority/southend,ED Finance & Resources,Central Services,2182,REDACTED PERSONAL DATA,08/01/2021,12068596," 2,000.00 ",Grants,Grants And Subscriptions
Southend-on-Sea Borough Council,http://www.opendatacommunities.org/id/unitary-authority/southend,ED Finance & Resources,Central Services,2182,REDACTED PERSONAL DATA,08/01/2021,12068596," 1,334.00 ",Grants,Grants And Subscriptions
Southend-on-Sea Borough Council,http://www.opendatacommunities.org/id/unitary-authority/southend,ED Finance & Resources,Central Services,2184,REDACTED PERSONAL DATA,08/01/2021,12068596, 858.00 ,Grants,Grants And Subscriptions
Southend-on-Sea Borough Council,http://www.opendatacommunities.org/id/unitary-authority/southend,ED Finance & Resources,Central Services,8607,Ricoh Uk Limited,08/01/2021,12068596," 17,153.85 ",Photocopier Operating Lease,Printing Stationery And General Office Expenses
Southend-on-Sea Borough Council,http://www.opendatacommunities.org/id/unitary-authority/southend,ED Finance & Resources,Central Services,7111,Royal Mail,08/01/2021,12068596," 1,907.04 ",Mail Services� Postage,Communications And Computing
Southend-on-Sea Borough Council,http://www.opendatacommunities.org/id/unitary-authority/southend,ED Finance & Resources,Housing Services,6165,Sale Appliances,08/01/2021,12068596, 633.17 ,Materials,Equipment Furniture And Materials
Southend-on-Sea Borough Council,http://www.opendatacommunities.org/id/unitary-authority/southend,ED Adults & Communities,Adult Social Care,1209,Scan Mobility Ltd,08/01/2021,12068596," 3,496.10 ",Tools And Equipment Repair And Maintenance,Equipment Furniture And Materials
Southend-on-Sea Borough Council,http://www.opendatacommunities.org/id/unitary-authority/southend,ED Adults & Communities,Housing Services,6130,Seaview Property Client Account,08/01/2021,12068596, 849.00 ,Loans,Services
Southend-on-Sea Borough Council,http://www.opendatacommunities.org/id/unitary-authority/southend,ED Adults & Communities,Adult Social Care,1105,Seven Day Care (Uk) Ltd T/A Surecare Southend,08/01/2021,12068596," 9,186.68 ",Private Contractors,Other Agencies
Southend-on-Sea Borough Council,http://www.opendatacommunities.org/id/unitary-authority/southend,ED Adults & Communities,Adult Social Care,1115,Seven Day Care (Uk) Ltd T/A Surecare Southend,08/01/2021,12068596, 971.12 ,Contractor - Programmed Works,Other Agencies
Southend-on-Sea Borough Council,http://www.opendatacommunities.org/id/unitary-authority/southend,ED Finance & Resources,Central Services,2116,Shared Space,08/01/2021,12068596," 13,000.00 ",Grants,Grants And Subscriptions
Southend-on-Sea Borough Council,http://www.opendatacommunities.org/id/unitary-authority/southend,ED Legal & Democratic Services,Central Services,7105,Sharpe Pritchard,08/01/2021,12068596," 7,902.00 ",Professional Fees,Services
Southend-on-Sea Borough Council,http://www.opendatacommunities.org/id/unitary-authority/southend,ED Adults & Communities,Housing Services,6130,Shores Property Ltd,08/01/2021,12068596," 1,650.00 ",Loans,Services
Southend-on-Sea Borough Council,http://www.opendatacommunities.org/id/unitary-authority/southend,ED Adults & Communities,Adult Social Care,1130,Southend Carers Forum,08/01/2021,12068596," 45,000.00 ",Social Care Services,Services
Southend-on-Sea Borough Council,http://www.opendatacommunities.org/id/unitary-authority/southend,ED Adults & Communities,Adult Social Care,1060,Southend University Hospital Nhs Foundation Trust,08/01/2021,12068596," 2,266.20 ",Social Care Services,Services
Southend-on-Sea Borough Council,http://www.opendatacommunities.org/id/unitary-authority/southend,ED Neighbourhoods & Environment,Environmental And Regulatory Services,4545,Southern Ecological Solutions Ltd,08/01/2021,12068596, 920.00 ,Consultancy Services,Services
Southend-on-Sea Borough Council,http://www.opendatacommunities.org/id/unitary-authority/southend,ED Neighbourhoods & Environment,Environmental And Regulatory Services,4545,Southern Ecological Solutions Ltd,08/01/2021,12068596," 1,540.00 ",Consultancy Services,Services
Southend-on-Sea Borough Council,http://www.opendatacommunities.org/id/unitary-authority/southend,ED Adults & Communities,Adult Social Care,1105,Spdns Nurse Care Cic.,08/01/2021,12068596," 9,781.30 ",Private Contractors,Other Agencies
Southend-on-Sea Borough Council,http://www.opendatacommunities.org/id/unitary-authority/southend,ED Adults & Communities,Adult Social Care,1205,Spdns Nurse Care Cic.,08/01/2021,12068596," 1,049.26 ",Private Contractors,Other Agencies
Southend-on-Sea Borough Council,http://www.opendatacommunities.org/id/unitary-authority/southend,ED Adults & Communities,Adult Social Care,1165,Spdns Nurse Care Cic.,08/01/2021,12068596, 580.44 ,COVID-19 Response,Other Agencies
Southend-on-Sea Borough Council,http://www.opendatacommunities.org/id/unitary-authority/southend,ED Adults & Communities,Adult Social Care,1105,Spdns Nurse Care Cic.,08/01/2021,12068596," 8,716.47 ",Private Contractors,Other Agencies
Southend-on-Sea Borough Council,http://www.opendatacommunities.org/id/unitary-authority/southend,ED Adults & Communities,Adult Social Care,1205,Spdns Nurse Care Cic.,08/01/2021,12068596, 930.30 ,Private Contractors,Other Agencies
Southend-on-Sea Borough Council,http://www.opendatacommunities.org/id/unitary-authority/southend,ED Transformation,Central Services,9012,Symology Limited,08/01/2021,12068596," 169,738.52 ",Main Contractor,Main Contractor
Southend-on-Sea Borough Council,http://www.opendatacommunities.org/id/unitary-authority/southend,ED Adults & Communities,Cultural And Related Services,4120,T R Fossett Ltd,08/01/2021,12068596," 3,267.00 ",Private Contractors,Other Agencies
Southend-on-Sea Borough Council,http://www.opendatacommunities.org/id/unitary-authority/southend,ED Neighbourhoods & Environment,Environmental And Regulatory Services,4505,Teleshore Uk Ltd,08/01/2021,12068596, 685.80 ,Tools And Equipment Purchase,Equipment Furniture And Materials
Southend-on-Sea Borough Council,http://www.opendatacommunities.org/id/unitary-authority/southend,ED Neighbourhoods & Environment,Environmental And Regulatory Services,4505,Teleshore Uk Ltd,08/01/2021,12068596," 1,268.95 ",Tools And Equipment Repair And Maintenance,Equipment Furniture And Materials
Southend-on-Sea Borough Council,http://www.opendatacommunities.org/id/unitary-authority/southend,ED Children & Public Health,Children And Education Services,3011,Temple Sutton Primary School,08/01/2021,12068596, 924.00 ,Child Minding,Services
Southend-on-Sea Borough Council,http://www.opendatacommunities.org/id/unitary-authority/southend,ED Children & Public Health,Children And Education Services,3011,Temple Sutton Primary School,08/01/2021,12068596, 672.00 ,Child Minding,Services
Southend-on-Sea Borough Council,http://www.opendatacommunities.org/id/unitary-authority/southend,ED Adults & Communities,Public Health,7600,Terrence Higgins Trust,08/01/2021,12068596," 2,750.00 ",Medical And Health Services,Services
Southend-on-Sea Borough Council,http://www.opendatacommunities.org/id/unitary-authority/southend,ED Children & Public Health,Children And Education Services,3092,The Children'S Trust,08/01/2021,12068596," 5,326.83 ",Private Contractors,Other Agencies
Southend-on-Sea Borough Council,http://www.opendatacommunities.org/id/unitary-authority/southend,ED Growth & Housing,Planning Services,5638,The Crown Hastings,08/01/2021,12068596," 2,190.00 ",Grants,Grants And Subscriptions
Southend-on-Sea Borough Council,http://www.opendatacommunities.org/id/unitary-authority/southend,ED Adults & Communities,Adult Social Care,1213,The Helping Hand Company Ledbury Ltd,08/01/2021,12068596," 1,025.30 ",Tools And Equipment Purchase,Equipment Furniture And Materials
Southend-on-Sea Borough Council,http://www.opendatacommunities.org/id/unitary-authority/southend,ED Neighbourhoods & Environment,Environmental And Regulatory Services,4660,Veolia Environmental Services,08/01/2021,12068596," 36,092.70 ",Waste Management,Cleaning And Domestic Supplies
